{"text_format":"1","workbook":"xlsx","n_sheets":1,"sheets":["2017-2018"],"not_rendered":{"charts":0,"images":0,"macros":1,"external_links":0,"defined_names":2,"comments":1,"pivot_tables":0},"unopened":[],"bounds":{"document_bytes":16777216,"sheet_cells":100000,"rows_first":2000,"rows_last":500,"rows_between":2000,"halvings":0,"cell_chars":16384,"cell_head_chars":4096},"cells_cut":0,"cells_raw":0,"read":"whole","date_system":"1900"}

{"sheet":"2017-2018","index":0,"n_rows":258,"n_cols":71,"rows_kept":258,"cut":false,"hidden":false,"merged":[[1,42,1,51],[1,56,1,64],[3,62,6,62],[3,63,6,63],[3,64,6,64],[3,51,6,51],[2,43,2,45],[2,46,2,48],[3,47,6,47],[3,48,6,48],[3,40,6,40],[2,56,2,58],[2,59,2,61],[3,56,6,56],[3,57,6,57],[3,58,6,58],[3,59,6,59],[3,60,6,60],[3,61,6,61],[3,42,6,42],[3,43,6,43],[3,44,6,44],[3,45,6,45],[3,46,6,46],[3,49,6,49],[3,50,6,50],[3,39,6,39],[3,3,6,3],[3,38,6,38],[11,22,13,22],[5,13,5,14],[5,11,5,12],[3,4,3,10],[3,30,4,31],[3,32,4,33],[5,30,6,30],[5,31,6,31],[5,32,6,32],[5,33,6,33],[4,6,6,6],[4,5,6,5],[4,4,6,4],[1,0,1,28],[3,22,6,22],[3,25,4,26],[3,23,4,24],[3,28,6,28],[5,26,6,26],[5,25,6,25],[5,24,6,24],[3,1,4,2],[5,2,6,2],[5,1,6,1],[3,0,6,0],[4,11,4,14],[4,15,4,18],[5,17,5,18],[4,7,5,8],[4,9,5,10],[3,27,6,27],[5,23,6,23],[3,11,3,18],[5,15,5,16],[3,19,6,19],[3,20,5,21],[7,20,7,21],[5,37,6,37],[3,34,4,35],[3,36,4,37],[5,34,6,34],[5,35,6,35],[5,36,6,36],[3,29,6,29]]}
[null,null,null,null,null,null,null,null,null,null,null,null,null,null,null,null,null,null,null,null,null,null,null,null,null,null,null,null,null,null,null,null,null,null,null,null,null,null,null,null,null,null,null,null,null,null,null,null,null,null,null,null,null,"parteneri adiacenti","UR",null,null,null,null,null,null,null,null,null,null,null,"parteneri adiacenti","UR"]
["EVIDENȚA LIMITĂRILOR ȘI/SAU ÎNTRERUPERILOR PLANIFICATE ȘI NEPLANIFICATE pentru anul gazier 2017 - 2018 / RECORD OF THE PLANNED AND UNPLANNED LIMITATIONS AND/OR INTERRUPTIONS related to the gas year 2017 - 2018",null,null,null,null,null,null,null,null,null,null,null,null,null,null,null,null,null,null,null,null,null,null,null,null,null,null,null,null,null,null,null,null,null,null,null,null,null,null,null,null,null,"Lucrari neprogramate",null,null,null,null,null,null,null,null,null,"NU6 ",{"$f":"SUBTOTAL(9,AS:AS)","v":66},{"$f":"SUBTOTAL(9,AV:AV)","v":245},null,"Lucrari programate",null,null,null,null,null,null,null,null,"NU5",{"$f":"SUBTOTAL(9,BF:BF)","v":1},{"$f":"SUBTOTAL(9,BI:BI)","v":0},null,"Data","Sarbatoare"]
[null,null,null,null,null,null,null,null,null,null,null,null,null,null,null,null,null,null,null,null,null,null,null,null,null,null,null,null,null,null,null,null,null,null,null,null,null,null,null,null,null,null,null,"Partener adiacent",null,null,"UR",null,null,null,null,null,"NUafectati ",{"$f":"SUBTOTAL(9,AT:AT)","v":66},{"$f":"SUBTOTAL(9,AW:AW)","v":363},null,"Partener adiacent",null,null,"UR",null,null,null,null,null,"NUafectati ",{"$f":"SUBTOTAL(9,BG:BG)","v":1},{"$f":"SUBTOTAL(9,BJ:BJ)","v":10},null,"2017-11-30","Sf Andrei"]
["Nr. crt. / Item No.","Tipul limitării/întreruperii / \nType of limitation/interruption",null,"Denumire lucrare/motiv limitare și/sau întrerupere / \nName of the works/reason for the limitation and/or interruption ","Locația limitării/întreruperii / Location of the limitation/interruption ",null,null,null,null,null,null,"Punct de ieșire/intrare afectat / Affected exit/entry point",null,null,null,null,null,null,null,"Cod punct relevant / Code of the relevant point","Utilizator ST afectat / Affected TS user ",null,"Perioada planificată de execuție a lucrării / Planned period for the execution of the works","Data și ora limitării/întreruperii / Date and hour of the limitation/interruption ",null,"Data și ora reluării prestării serviciului / Date and hour the service supply is resumed",null,"Exploatarea Teritorială / Regional Office","Observații / Comments","Justificarea modificării perioadei planificate de execuție a lucrări","Data și ora efectivă de limitare/întrerupere ",null,"Data și ora efectivă de reluare a prestării serviciului",null,"Data și ora informării UR",null,"Data și ora informării partenerului adiacent",null,"Foaia de manevră","A fost afectat producătorul (în cazul PM) sau consumatorul final (în cazul SM)? \n(DA/NU)","Observatii",null,"Partener adiacent informat din 12 in 12 ore, daca durata mai mare de 24h\n(DA/NU)","Numar de ore de la producerea intreruperii / limitarii pana la anuntarea partenerului adiacent\n (trebuie sa fie mai mic decat 6)","NU6","NUafectati","Numar de ore de la producerea intreruperii / limitarii pana la anuntarea UR\n (trebuie sa fie mai mic decat 6)","NU6","NUafectati","Durata intreruperii / limitarii [ore]\n(daca este mai mare de 24, trebuie sa fie completata celula aferenta de pe coloana AP)","NU24","Nuafectati","NU6 ",{"$f":"BB2+BC2","v":311},"IP51",null,"Numar de zile lucratoare de anuntare partener adiacent pana la limitare / intrerupere (trebuie sa fie mai mare de 5)","NU5","NUafectati","Numar de zile de anuntare UR pana la limitare / intrerupere \n(trebuie sa fie mai mare de 5)","NU5","NUafectati","Numar ore intre data anuntata si cea efectiva de reluare\n(trebuie sa fie mai mic sau egal cu 0)","NUreluate","NUafectati","NU5",{"$f":"BO2+BP2","v":1},"IP61",null,"2017-12-01","Ziua Nationala"]
[null,null,null,null,"Siruta / Siruta code","Localitate / Locality","Județ / County","Coordonate GPS început / GPS coordinates-beginning",null,"Coordonate GPS sfărșit / GPS coordinates-end",null,"Puncte de ieșire din SNT / NTS exit points",null,null,null,"Puncte de intrare în SNT / NTS entry points ",null,null,null,null,null,null,null,null,null,null,null,null,null,null,null,null,null,null,null,null,null,null,null,null,null,null,null,null,null,null,null,null,null,null,null,null,"NUafectati ",{"$f":"BB3+BC3","v":429},{"$f":"BB4/BB5","v":0.72494172494172493},null,null,null,null,null,null,null,null,null,null,"NUafectati ",{"$f":"BO3+BP3","v":11},{"$f":"IF(BO5=0,1,BO4/BO5)","v":9.0909090909090912E-2},null,"2017-12-26","Craciun"]
[null,"Neplanificată / Unplanned","Planificată / Planned",null,null,null,null,null,null,null,null,"Limitare / Limitation",null,"Întrerupere / Interruption",null,"Limitare / Limitation",null,"Întrerupere / Interruption",null,null,null,null,null,"Data / Date","Ora / Hour","Data / Date","Ora / Hour",null,null,null,"Data","Ora","Data","Ora","Data","Ora","Data","Ora",null,null,null,null,null,null,null,null,null,null,null,null,null,null,"NU24",{"$f":"SUBTOTAL(9,AY:AY)","v":0},"IP52",null,null,null,null,null,null,null,null,null,null,"NUreluare",{"$f":"SUBTOTAL(9,BL:BL)","v":11},"IP62",null,"2018-01-02","Anul nou"]
[null,null,null,null,null,null,null,"X1","Y1","X2","Y2","Cod / Code","Denumire / Name","Cod / Code","Denumire / Name","Cod / Code","Denumire / Name","Cod / Code","Denumire / Name",null,"Utilizator de rețea / Network User","Partener adiacent / Adjacent Partner",null,null,null,null,null,null,null,null,null,null,null,null,null,null,null,null,null,null,null,null,null,null,null,null,null,null,null,null,null,null,"NUafectati",{"$f":"SUBTOTAL(9,AZ:AZ)","v":0},{"$f":"IFERROR(BB6/BB7,1)","v":1},null,null,null,null,null,null,null,null,null,null,"NUafectati",{"$f":"SUBTOTAL(9,BM:BM)","v":11},{"$f":"IF(BO7=0,1,BO6/BO7)","v":1},null,"2018-01-24","Ziua unirii"]
[0,1,2,3,4,5,6,7,8,9,10,11,12,13,14,15,16,17,18,19,20,null,21,22,23,24,25,26,27,null,28,29,30,31,33,34,35,36,37,38,null,null,null,null,null,null,null,null,null,null,null,null,null,null,null,null,null,null,null,null,null,null,null,null,null,null,null,null,null,"2018-04-06","Vinerea Mare"]
[1,"X","-","Probleme tehnice în instalația tehnologică SRM Vaduri",124938,"Vaduri","Neamț",594758.29,604040.56000000006,594758.29,604040.56000000006,"-","-","SM1052D0","Vaduri","-","-","-","-","SM-SD001","Premier Energy, Engie România, E.on Energie, OMV Petrom, Restart Energy, Enel","Delgaz Grid","-","2017-10-01","01:05:00","2017-10-01","09:05:00","Bacău","Efectuată",null,"2017-10-01","01:05:00","2017-10-01","09:05:00","2017-10-02","17:32:00","2017-10-01","01:15:00","-","DA",null,null,null,{"$f":"IF(B9=\"X\",IF(AN9=\"\",\"Afectat sau NU?\",IF(AN9=\"DA\",IF(AK9=\"\",\"Neinformat\",((AK9+AL9)-(AE9+AF9))*24),IF(AN9=\"NU\",\"Nu a fost afectat producator/consumator\",\"Afectat sau NU?\"))),\"\")","v":0.16666666668606922},{"$f":"IF(B9=\"X\",IF(AN9=\"DA\",IF(AR9<6,LEN(TRIM(V9))-LEN(SUBSTITUTE(V9,CHAR(44),\"\"))+1,0),\"-\"),\"\")","v":1},{"$f":"IF(B9=\"X\",IF(AN9=\"DA\",LEN(TRIM(V9))-LEN(SUBSTITUTE(V9,CHAR(44),\"\"))+1,\"-\"),\"\")","v":1},{"$f":"IF(B9=\"X\",IF(AN9=\"\",\"Afectat sau NU?\",IF(AN9=\"DA\",IF(AI9=\"\",\"Neinformat\",((AI9+AJ9)-(AE9+AF9))*24),IF(AN9=\"NU\",\"Nu a fost afectat producator/consumator\",\"Afectat sau NU?\"))),\"\")","v":40.450000000011642},{"$f":"IF(B9=\"X\",IF(AN9=\"DA\",IF(AU9<6,LEN(TRIM(U9))-LEN(SUBSTITUTE(U9,CHAR(44),\"\"))+1,0),\"-\"),\"\")","v":0},{"$f":"IF(B9=\"X\",IF(AN9=\"DA\",LEN(TRIM(U9))-LEN(SUBSTITUTE(U9,CHAR(44),\"\"))+1,\"-\"),\"\")","v":6},{"$f":"IF(B9=\"X\",IF(AN9=\"\",\"Afectat sau NU?\",IF(AN9=\"DA\",((AG9+AH9)-(AE9+AF9))*24,IF(AN9=\"NU\",\"Nu a fost afectat producator/consumator\",\"Afectat sau NU?\"))),\"\")","v":7.9999999998835847},{"$f":"IF(B9=\"X\",IF(AN9=\"DA\",IF(AX9>24,IF(AQ9=\"NU\",0,LEN(TRIM(V9))-LEN(SUBSTITUTE(V9,CHAR(44),\"\"))+1),0),\"-\"),\"\")","v":0},{"$f":"IF(B9=\"X\",IF(AN9=\"DA\",IF(AX9>24,LEN(TRIM(V9))-LEN(SUBSTITUTE(V9,CHAR(44),\"\"))+1,0),\"-\"),\"\")","v":0},null,null,null,null,{"$f":"IF(C9=\"X\",IF(AN9=\"\",\"Afectat sau NU?\",IF(AN9=\"DA\",IF(AK9=\"\",\"Neinformat\",NETWORKDAYS(AK9+AL9,AE9+AF9,$BR$3:$BR$13)-1),IF(AN9=\"NU\",\"Nu a fost afectat producator/consumator\",\"Afectat sau NU?\"))),\"\")","v":""},{"$f":"IF(C9=\"X\",IF(AN9=\"DA\",IF(AND(BE9>=5,AK9<>\"\"),LEN(TRIM(V9))-LEN(SUBSTITUTE(V9,CHAR(44),\"\"))+1,0),\"-\"),\"\")","v":""},{"$f":"IF(C9=\"X\",IF(AN9=\"DA\",LEN(TRIM(V9))-LEN(SUBSTITUTE(V9,CHAR(44),\"\"))+1,\"-\"),\"\")","v":""},{"$f":"IF(C9=\"X\",IF(AN9=\"\",\"Afectat sau NU?\",IF(AN9=\"DA\",IF(AI9=\"\",\"Neinformat\",NETWORKDAYS(AI9+AJ9,AE9+AF9,$BR$3:$BR$13)-1),IF(AN9=\"NU\",\"Nu a fost afectat producator/consumator\",\"Afectat sau NU?\"))),\"\")","v":""},{"$f":"IF(C9=\"X\",IF(AN9=\"DA\",IF(AND(BH9>=5,AI9<>\"\"),LEN(TRIM(U9))-LEN(SUBSTITUTE(U9,CHAR(44),\"\"))+1,0),\"-\"),\"\")","v":""},{"$f":"IF(C9=\"X\",IF(AN9=\"DA\",LEN(TRIM(U9))-LEN(SUBSTITUTE(U9,CHAR(44),\"\"))+1,\"-\"),\"\")","v":""},{"$f":"IF(C9=\"X\",IF(AN9=\"\",\"Afectat sau NU?\",IF(AN9=\"DA\",((AG9+AH9)-(Z9+AA9))*24,IF(AN9=\"NU\",\"Nu a fost afectat producator/consumator\",\"Afectat sau NU?\"))),\"\")","v":""},{"$f":"IF(C9=\"X\",IF(AN9<>\"DA\",\"-\",IF(AND(AN9=\"DA\",BK9<=0),LEN(TRIM(V9))-LEN(SUBSTITUTE(V9,CHAR(44),\"\"))+1+LEN(TRIM(U9))-LEN(SUBSTITUTE(U9,CHAR(44),\"\"))+1,0)),\"\")","v":""},{"$f":"IF(C9=\"X\",IF(AN9=\"DA\",LEN(TRIM(V9))-LEN(SUBSTITUTE(V9,CHAR(44),\"\"))+1+LEN(TRIM(U9))-LEN(SUBSTITUTE(U9,CHAR(44),\"\"))+1,\"-\"),\"\")","v":""},null,null,null,null,"2018-04-09","Paste"]
[2,"X","-","Scoaterea din funcțiune SRM Ilimbav - la solicitarea Delgaz Grid",144893,"Ilimbav","Sibiu",462643.53,486014.51,462643.53,486014.51,"-","-","SM0792D0","Ilimbav","-","-","-","-","SM-SD001","E.on Energie","Delgaz Grid","-","2017-10-02","10:00:00","2017-10-02","13:00:00","Mediaș","Efectuată",null,"2017-10-02","10:00:00","2017-10-02","11:00:00","2017-10-02","17:32:00","2017-09-28",null,"6615/29.09.2017","DA",null,null,null,-105.99999999994179,{"$f":"IF(B10=\"X\",IF(AN10=\"DA\",IF(AR10<6,LEN(TRIM(V10))-LEN(SUBSTITUTE(V10,CHAR(44),\"\"))+1,0),\"-\"),\"\")","v":1},{"$f":"IF(B10=\"X\",IF(AN10=\"DA\",LEN(TRIM(V10))-LEN(SUBSTITUTE(V10,CHAR(44),\"\"))+1,\"-\"),\"\")","v":1},7.5333333334419876,{"$f":"IF(B10=\"X\",IF(AN10=\"DA\",IF(AU10<6,LEN(TRIM(U10))-LEN(SUBSTITUTE(U10,CHAR(44),\"\"))+1,0),\"-\"),\"\")","v":0},{"$f":"IF(B10=\"X\",IF(AN10=\"DA\",LEN(TRIM(U10))-LEN(SUBSTITUTE(U10,CHAR(44),\"\"))+1,\"-\"),\"\")","v":1},1.0000000001164153,{"$f":"IF(B10=\"X\",IF(AN10=\"DA\",IF(AX10>24,IF(AQ10=\"NU\",0,LEN(TRIM(V10))-LEN(SUBSTITUTE(V10,CHAR(44),\"\"))+1),0),\"-\"),\"\")","v":0},{"$f":"IF(B10=\"X\",IF(AN10=\"DA\",IF(AX10>24,LEN(TRIM(V10))-LEN(SUBSTITUTE(V10,CHAR(44),\"\"))+1,0),\"-\"),\"\")","v":0},null,null,null,null,"","","","","","",{"$f":"IF(C10=\"X\",IF(AN10=\"\",\"Afectat sau NU?\",IF(AN10=\"DA\",((AG10+AH10)-(Z10+AA10))*24,IF(AN10=\"NU\",\"Nu a fost afectat producator/consumator\",\"Afectat sau NU?\"))),\"\")","v":""},"","",null,null,null,null,"2018-05-01","Ziua muncii"]
[3,"X","-","Înlocuire robinet R7 de pe racord SRM Monsanto",105026,"Sinești","Ialomița",613320.56000000006,346763.66,613643.84,346539.06,"-","-","SM1073D0","SC Monsanto Sinești","-","-","-","-","SM-CF001","Conef Gaz","SC Monsanto","-","2017-10-03","10:00:00","2017-10-03","15:00:00","București","Efectuată",null,"2017-10-03","10:00:00","2017-10-03","15:00:00","2017-10-02","17:32:00","2017-09-28","16:01:00","7781/29.09.2017","DA",null,null,null,-113.98333333327901,1,1,-16.466666666558012,1,1,5.0000000000582077,0,0,null,null,null,null,"","","","","","","","","",null,null,null,null,"2018-06-01","Ziua copilului"]
[{"$f":"A11+1","v":4},"-","X","Curățire interioară 28” Medieșu Aurit - Sărmășel",109265,"Ulmeni","Maramureș",371312.82,665034.53,371420.04,664986.78,"SM0953D0","Ulmeni","-","-","-","-","-","-","SM-SD001","Cez Vânzare, Engie România, E-on Energie, Enel, E.on Energie","Delgaz Grid","aprilie - octombrie\n(reducere pe perioada trecerii PIG-ului / întrerupere în caz de blocare PIG)","2017-10-03","07:00:00","2017-10-04","16:00:00","Cluj","Efectuată",null,null,null,null,null,"2017-10-02","17:32:00",null,null,"11793/02.10.2017","NU",null,null,null,"","","","","","","","","",null,null,null,null,"Nu a fost afectat producator/consumator","-","-","Nu a fost afectat producator/consumator","-","-","Nu a fost afectat producator/consumator","-","-",null,null,null,null,"2018-05-28","Rusalii"]
[{"$f":"A12+1","v":5},"-","X","Curățire interioară 28” Medieșu Aurit - Sărmășel",140244,"Benesat","Sălaj",369672.11,658600.05000000005,370018.54,658821.16,"SM0954D0","Benesat","-","-","-","-","-","-","SM-SD001","Premier Energy, Alpiq Romindustries, Nova Power, Engie România, E.on Energie, OMV Petrom, Enel","CPL Concordia",null,"2017-10-03","07:00:00","2017-10-04","16:00:00","Cluj","Efectuată",null,null,null,null,null,"2017-10-02","17:32:00",null,null,"11793/02.10.2017","NU",null,null,null,"","","","","","","","","",null,null,null,null,"Nu a fost afectat producator/consumator","-","-","Nu a fost afectat producator/consumator","-","-","Nu a fost afectat producator/consumator","-","-",null,null,null,null,"2018-08-15","Adormirea Maicii Domnului"]
[6,"-","X","Curățire interioară 28” Medieșu Aurit - Sărmășel",142710,"Someș Odorhei","Sălaj",369658.85,649334.05000000005,369552.55,649326.13,"SM1230D0","Someș Odorhei","-","-","-","-","-","-","SM-SD001","Nova Power, E.on Energie","CPL Concordia",null,"2017-10-03","07:00:00","2017-10-04","16:00:00","Cluj","Efectuată",null,null,null,null,null,"2017-10-02","17:32:00",null,null,"11793/02.10.2017","NU",null,null,null,"","","","","","","","","",null,null,null,null,"Nu a fost afectat producator/consumator","-","-","Nu a fost afectat producator/consumator","-","-","Nu a fost afectat producator/consumator","-","-"]
[7,"X","-","Lucrări de mentenanță în SRM Brașov I",40198,"Brașov","Brașov",545998.22,463646.55,545998.22,463646.55,"-","-","SM0047D0","Brașov I","-","-","-","-","SM-SD001","Premier Energy, Met România, Alpiq Romindustries, Nova Power, Cez Vânzare, Cis Gaz, Engie România, E.on Energie, Gaz Est, OMV Petrom, Energy Gas, Restart Energy, RWE Supply, Tinmar, Enel, Gaz&Energy Distribuție","Distrigaz Sud Rețele","-","2017-09-04","10:00:00","2017-10-02","10:00:00","Brașov","Efectuată",null,"2017-09-04","10:00:00","2017-10-02","10:00:00","04.09.2017\n25.09.2017 (modificare PIF)","07:50:00\n13:37:00","2017-08-07","10:37:00","3099/02.10.2017","NU",null,null,null,"Nu a fost afectat producator/consumator","-","-","Nu a fost afectat producator/consumator","-","-","Nu a fost afectat producator/consumator","-","-",null,null,null,null,"","","","","","","","",""]
[8,"X","-","Curățire interioară conductă 12” Mărșa - Videle",104225,"Mârșa","Giurgiu",543749.42000000004,321212.49,543275.22172774305,310036.73,"-","-","SM1165D0","Depozit 160 Videle","-","-","-","-","SM-SD001","","OMV Petrom","-","2017-10-04","08:00:00","2017-10-04","20:00:00","București","Efectuată",null,null,null,null,null,"2017-09-29","08:35:00","2017-09-23","10:30:00","7735/28.09.2017","NU",null,null,null,"Nu a fost afectat producator/consumator","-","-","Nu a fost afectat producator/consumator","-","-","Nu a fost afectat producator/consumator","-","-",null,null,null,null,"","","","","","","","",""]
[9,"X","-","Curățire interioară conductă 12” Mărșa - Videle",151905,"Videle","Teleorman",543749.42000000004,321212.49,543275.22172774305,310036.73,"-","-","SM1111D0","Videle","-","-","-","-","SM-SD001","Cez Vânzare, Energie România, E-on Energie, Gaz Est, OMV Petrom","Premier Energy","-","2017-10-04","08:00:00","2017-10-04","20:00:00","București","Efectuată",null,"2017-10-04","08:00:00","2017-10-04","19:39:00","2017-09-29","08:35:00","2017-09-25","09:43:00","7735/28.09.2017","DA",null,null,null,-214.28333333332557,1,1,-119.41666666668607,5,5,11.649999999906868,0,0,null,null,null,null,"","","","","","","","",""]
[10,"X","-","Sistare alimentare cu gaze naturale a SRM Giugiu - la solicitarea WIROM Gas SA",100521,"Giurgiu","Giurgiu",580171.38,269491.87,580171.38,269491.87,"-","-","SM1047D0","Giurgiu","-","-","-","-","SM-SD001","Premier Energy, Alpha Metal, Alpiq Romindustries, Cez Vânzare, Engie România, E-on Energie, OMV Petrom, Restart Energy, WIEE România, Cis Gaz, Enel","Wirom Gas","-","2017-10-05","07:00:00","2017-10-05","19:00:00","București","Efectuată",null,"2017-10-05","07:12:00","2017-10-05","16:00:00","2017-09-29","08:35:00","2017-09-25",null,"7736/28.09.2017","DA",null,null,null,-247.20000000006985,1,1,-142.61666666669771,11,11,8.7999999998719431,0,0,null,null,null,null,"","","","","","","","",""]
[11,"X","-","Scoatere din funcțiune SRM Bazna - la solicitarea Delgaz Grid",144152,"Bazna","Sibiu",445143.62,521596.53,445143.62,521596.53,"-","-","SM0854D0","Bazna","-","-","-","-","SM-SD001","E.on Energie","Delgaz Grid","-","2017-10-05","09:00:00","2017-10-05","18:00:00","Mediaș","Efectuată",null,"2017-10-05","09:00:00","2017-10-05","18:00:00","2017-10-05","08:47:00","2017-10-02",null,"6726/04.10.2017","DA",null,null,null,-81,1,1,-0.21666666667442769,1,1,9,0,0,null,null,null,null,"","","","","","","","",""]
[{"$f":"A19+1","v":12},"X","-","Lucrări de mentenanță în SRM Măgurele București",179409,"Măgurele","Ilfov",583339.9,319846.43,583339.9,319846.43,"-","-","SM0252D0","Măgurele București","-","-","-","-","SM-SD001","Premier Energy, Met România, Alpiq Romindustries, Nova Power, Cez Vânzare, Cis Gaz, Conef Gaz, Distrigaz Vest, Engie România, Axpo Energy, E.on Energie, Electrocentrale București, Gaz Est, OMV Petrom, Energy Gas, Restart Energy, RWE Supply, Tinmar, WIEE România, Energy Distribution, Enel, C-Gaz&Energy","Distrigaz Sud Rețele","-","2017-09-25","10:00:00","2017-10-05","12:00:00","București","Efectuată",null,"2017-09-25","10:00:00","2017-10-05","11:18:00","2017-09-22","16:53:00","2017-09-20","09:21:00","7563/22.09.2017","NU",null,null,null,"Nu a fost afectat producator/consumator","-","-","Nu a fost afectat producator/consumator","-","-","Nu a fost afectat producator/consumator","-","-",null,null,null,null,"","","","","","","","",""]
[13,"X","-","Demontare priză de prelevare gaze naturale a gazcromatografului montat în panoul de măsură Munteni",75267,"Munteni","Galați",688535.03,495715.6,688535.67,495718.75,"-","-","-","-","-","-","PM0103","Munteni","PM-PP001","Premier Energy, Met România, Alpha Metal, Azomures, Cez Vânzare, Engie România, E-on Energie, Gaz Est, Ottogaz, OMV Petrom, Energy Gas, Restart Energy, Saint Gobain, WIEE România, Donau Chem, E.on Energie, Cis Gaz, C-Gaz&Energy","OMV Petrom","-","2017-10-06","11:00:00","2017-10-06","12:00:00","Brăila","Efectuată",null,"2017-10-06","10:20:00","2017-10-06","10:40:00","2017-10-05","17:19:00","2017-10-04","09:43:00","7243/05.10.2017","DA",null,null,null,-48.616666666581295,1,1,-17.016666666604578,18,18,0.33333333337213844,0,0,null,null,null,null,"","","","","","","","",""]
[14,"-","X","Curățire interioară 28” Medieșu Aurit - Sărmășel",109265,"Ulmeni","Maramureș",371312.82,665034.53,371420.04,664986.78,"SM0953D0","Ulmeni","-","-","-","-","-","-","SM-SD001","Cez Vânzare, Engie România, E-on Energie, Enel, E.on Energie","Delgaz Grid","aprilie - octombrie\n(reducere pe perioada trecerii PIG-ului / întrerupere în caz de blocare PIG)","2017-10-10","08:00:00","2017-10-11","17:00:00","Cluj","Efectuată",null,null,null,null,null,"2017-10-10","08:32:00",null,null,"12139/09.10.2017","NU",null,null,null,"","","","","","","","","",null,null,null,null,"Nu a fost afectat producator/consumator","-","-","Nu a fost afectat producator/consumator","-","-","Nu a fost afectat producator/consumator","-","-"]
[15,"-","X","Curățire interioară 28” Medieșu Aurit - Sărmășel",140244,"Benesat","Sălaj",369672.11,658600.05000000005,370018.54,658821.16,"SM0954D0","Benesat","-","-","-","-","-","-","SM-SD001","Premier Energy, Alpiq Romindustries, Nova Power, Engie România, E-on Energie, OMV Petrom, Tinmar, Enel","CPL Concordia","aprilie - octombrie\n(reducere pe perioada trecerii PIG-ului / întrerupere în caz de blocare PIG)","2017-10-10","08:00:00","2017-10-11","17:00:00","Cluj","Efectuată",null,null,null,null,null,"2017-10-10","08:32:00",null,null,"12139/09.10.2017","NU",null,null,null,"","","","","","","","","",null,null,null,null,"Nu a fost afectat producator/consumator","-","-","Nu a fost afectat producator/consumator","-","-","Nu a fost afectat producator/consumator","-","-"]
[16,"-","X","Curățire interioară 28” Medieșu Aurit - Sărmășel",142710,"Someș Odorhei","Sălaj",369658.85,649334.05000000005,369552.55,649326.13,"SM1230D0","Someș Odorhei","-","-","-","-","-","-","SM-SD001","Nova Power, E.on Energie","CPL Concordia","aprilie - octombrie\n(reducere pe perioada trecerii PIG-ului / întrerupere în caz de blocare PIG)","2017-10-10","08:00:00","2017-10-11","17:00:00","Cluj","Efectuată",null,null,null,null,null,"2017-10-10","08:32:00",null,null,"12139/09.10.2017","NU",null,null,null,"","","","","","","","","",null,null,null,null,"Nu a fost afectat producator/consumator","-","-","Nu a fost afectat producator/consumator","-","-","Nu a fost afectat producator/consumator","-","-"]
[17,"X","-","Lucrări de mentenanță în SRM Măgurele București",179409,"Măgurele","Ilfov",583339.9,319846.43,583339.9,319846.43,"-","-","SM0252D0","Măgurele București","-","-","-","-","SM-SD001","Premier Energy, Met România, Alpiq Romindustries, Nova Power, Cez Vânzare, Cis Gaz, Conef Gaz, Distrigaz Vest, Engie România, Axpo Energy, E-on Energy, Electrocentrale București, Gaz Est, OMV Petrom, Energy Gas, Restart Energy, RWE Supply, Tinmar, WIEE România, Energy Distribution, Enel, C-Gaz&Energy","Distrigaz Sud Rețele","-","2017-10-10","09:00:00","2017-10-10","15:00:00","București","Efectuată",null,"2017-10-10","09:12:00","2017-10-10","16:42:00","2017-10-10","08:32:00","2017-10-06","10:07:00","7973/09.10.2017","NU",null,null,null,"Nu a fost afectat producator/consumator","-","-","Nu a fost afectat producator/consumator","-","-","Nu a fost afectat producator/consumator","-","-",null,null,null,null,"","","","","","","","",""]
[18,"X","-","Remediere defect produs pe conducta 3\" Racord SRM Spitalul de pneumoftiziologie Bisericani",124938,"Bisericani","Neamț",596501.02,605284.88,594526.65,607349.32999999996,"-","-","SM0456D0","Spitalul de pneumoftiziologie Bisericani","-","-","-","-","SM-CF001","Met Romania,  Engie România","Spitalul de pneumoftiziologie Bisericani","-","2017-10-12","07:30:00","2017-10-12","18:00:00","Bacău","Efectuată",null,"2017-10-12","07:40:00","2017-10-12","13:30:00","2017-10-12","10:32:00","2017-10-12","12:42:00","-","DA",null,null,null,5.0333333333255723,1,1,2.8666666665812954,1,1,5.8333333333139308,0,0,null,null,null,null,"","","","","","","","",""]
[19,"X","-","Cuplare si punere in funcțiune SRM Boureni nou",98220,"Moțca","Iași",620717.24,637616.85,620717.24,637616.85,"-","-","SM0477D1","Boureni","-","-","-","-","SM-SD001","Wiee Romania SRL","Prisma Serv Company","-","2017-10-13","08:00:00","2017-10-13","15:00:00","Bacău","Efectuată",null,"2017-10-13","10:30:00","2017-10-13","13:15:00","2017-10-12","13:18:00","2017-10-13","09:00:00","7048/11.10.2017","DA",null,null,null,-1.5,1,1,-21.199999999953434,1,1,2.7500000000582077,0,0,null,null,null,null,"","","","","","","","",""]
[20,"X","-","Înlocuire flanșă electroizolantă pe conducta 2” racord SRM SC Fabrica de pâine Șerban Filipești",22576,"Filipești","Bacău",632623.04,526849.34,632633.76,526820.47,"-","-","SM0128D0","SC Fabrica de pâine Șerban Filipești","-","-","-","-","SM-CF001","E-on Energie","SC Fabrica de pâine Șerban SRL","-","2017-10-10","09:00:00","2017-10-10","13:00:00","Bacău","Efectuată",null,"2017-10-10","10:20:00","2017-10-10","12:40:00",null,null,"2017-10-04","09:30:00","6916/09.10.2017","DA","FM aprobată nu a ajuns la BET ptr publicare și informare",null,null,-144.83333333325572,1,1,"Neinformat",0,1,2.3333333334303461,0,0,null,null,null,null,"","","","","","","","",""]
[21,"X","-","Remediere definitivă a defectului apărut pe conducta 20” Hurezani - Corbu, fir II, zona Oporelu",127858,"Oporelu","Olt",453702.67,343855.96,445078.83,351326.97,"-","-","SM0243D0","Oporelu","-","-","-","-","SM-CF001","","OMV Petrom","-","2017-10-18","08:00:00","2017-10-18","18:00:00","Craiova","Efectuată",null,"2017-10-18","08:00:00","2017-10-18","16:00:00","2017-10-16","16:28:00","2017-10-13","13:57:00","2663/16.10.2017","NU",null,null,null,"Nu a fost afectat producator/consumator","-","-","Nu a fost afectat producator/consumator","-","-","Nu a fost afectat producator/consumator","-","-",null,null,null,null,"","","","","","","","",""]
[22,"X","-","Refulare conductă 4” racord SRM SC Vanbet Rebricea în scopul eliminării impurităților lichide",165719,"Rebricea","Vaslui",695823.67,600897.4,695520.33,600606.66,"-","-","SM1177D0","SC Vanbet Rebricea","-","-","-","-","SM-CF001","WIEE România","Vanbet SRL","-","2017-10-18","10:00:00","2017-10-18","14:00:00","Brăila","Efectuată",null,"2017-10-18","11:15:00","2017-10-18","12:00:00","2017-10-17","12:33:00","2017-10-16","13:52:00","7529/16.10.2017","DA",null,null,null,-45.383333333360497,1,1,-22.699999999953434,1,1,0.75,0,0,null,null,null,null,"","","","","","","","",""]
[23,"X","-","Remediere defect de coroziune pe conducta 12” Nord I, Cormeniș - Apa, zona Finteuș",109176,"Finteușu Mare","Maramureș",382207,677818.04,386030.18,665573.94999999995,"-","-","SM0569D0","Finteușu Mare","-","-","-","-","SM-SD001","E.on Energie","Delgaz Grid","-","2017-10-18","08:00:00","2017-10-18","16:00:00","Cluj","Efectuată",null,null,null,null,null,"2017-10-17","15:01:00","2017-10-05",null,"12536/17.10.2017","NU",null,null,null,"Nu a fost afectat producator/consumator","-","-","Nu a fost afectat producator/consumator","-","-","Nu a fost afectat producator/consumator","-","-",null,null,null,null,"","","","","","","","",""]
[24,"X","-","Remediere defect de coroziune pe conducta 12” Nord I, Cormeniș - Apa, zona Finteuș",108491,"Remetea Chioarului","Maramureș",382207,677818.04,386030.18,665573.94999999995,"-","-","SM0568D0","Remetea Chioarului","-","-","-","-","SM-SD001","E.on Energie","Delgaz Grid","-","2017-10-18","08:00:00","2017-10-18","16:00:00","Cluj","Efectuată",null,null,null,null,null,"2017-10-17","15:01:00","2017-10-17","11:16:00","12536/17.10.2017","NU",null,null,null,"Nu a fost afectat producator/consumator","-","-","Nu a fost afectat producator/consumator","-","-","Nu a fost afectat producator/consumator","-","-",null,null,null,null,"","","","","","","","",""]
[25,"X","-","Remediere defect de coroziune pe conducta 12” Nord I, Cormeniș - Apa, zona Finteuș",108712,"Satulung","Maramureș",382207,677818.04,386030.18,665573.94999999995,"-","-","SM0562D0","Satulung","-","-","-","-","SM-SD001","Engie România, Enel, E.on Energie","Delgaz Grid","-","2017-10-18","08:00:00","2017-10-18","16:00:00","Cluj","Efectuată",null,null,null,null,null,"2017-10-17","15:01:00","2017-10-05",null,"12536/17.10.2017","NU",null,null,null,"Nu a fost afectat producator/consumator","-","-","Nu a fost afectat producator/consumator","-","-","Nu a fost afectat producator/consumator","-","-",null,null,null,null,"","","","","","","","",""]
[26,"X","-","Cuplare tronson relocat/protejat al racordului 6” SRM Zimandu Nou",12876,"Zimandu Nou","Arad",226619.64,535961.09,222116.54,536871.12,"-","-","SM0355D0","Zimandu Nou","-","-","-","-","SM-SD001","Alpiq Romindustries, Engie România, OMV Petrom","Gaz Vest","-","2017-10-23","08:00:00","2017-10-23","16:00:00","Arad","Efectuată",null,"2017-10-23","10:40:00","2017-10-23","14:57:00","2017-10-19","13:47:00","2017-10-16",null,"10379/17.10.2017","DA",null,null,null,-178.66666666668607,1,1,-92.883333333302289,3,3,4.2833333333255723,0,0,null,null,null,null,"","","","","","","","",""]
[27,"-","X","Curățirea interioară 20” Urziceni - Moara Domnească",100683,"Urziceni","Ialomița",626882.03,358926.8,626882.03,358926.8,"SM1098D0","SC Lemarco Cristal Urziceni","-","-","-","-","-","-","SM-CF001","Engie România","Lemarco Cristal","septembrie - octombrie\n(reducere pe perioada trecerii PIG-ului / întrerupere în caz de blocare PIG)","2017-10-24","09:00:00","2017-10-24","15:00:00","Brăila","Efectuată",null,null,null,null,null,"2017-10-23","15:45:00",null,null,"7704/23.10.2017","NU",null,null,null,"","","","","","","","","",null,null,null,null,"Nu a fost afectat producator/consumator","-","-","Nu a fost afectat producator/consumator","-","-","Nu a fost afectat producator/consumator","-","-"]
[28,"-","X","Curățirea interioară 20” Urziceni - Moara Domnească",102240,"Coșereni","Ialomița",622086.68000000005,355324.11,622086.68000000005,355324.11,"SM1178D0","Coșereni","-","-","-","-","-","-","SM-SD001","Cez Vânzare, Engie România","Megaconstruct","septembrie - octombrie\n(reducere pe perioada trecerii PIG-ului / întrerupere în caz de blocare PIG)","2017-10-24","09:00:00","2017-10-24","15:00:00","București","Efectuată",null,null,null,null,null,"2017-10-23","15:45:00",null,null,"8305/23.10.2017","NU",null,null,null,"","","","","","","","","",null,null,null,null,"Nu a fost afectat producator/consumator","-","-","Nu a fost afectat producator/consumator","-","-","Nu a fost afectat producator/consumator","-","-"]
[29,"X","-","Sistare alimentare cu gaze naturale a SRM Șura Mare - la solicitarea Delgaz Grid",145765,"Șura Mare","Sibiu",434542.98,483711.13,434542.98,483711.13,"-","-","SM0742D0","Șura Mare","-","-","-","-","SM-SD001","Engie România, E-on Energie, Enel","Delgaz Grid","-","2017-10-25","10:00:00","2017-10-25","14:00:00","Mediaș","Efectuată",null,"2017-10-25","10:00:00","2017-10-25","13:45:00","2017-10-25","08:32:00","2017-10-23",null,"7228/24.10.2017","DA",null,null,null,-57.999999999941792,1,1,-1.4666666665580124,3,3,3.75,0,0,null,null,null,null,"","","","","","","","",""]
[30,"-","X","Curățire interioară 28” Medieșu Aurit - Sărmășel",109265,"Ulmeni","Maramureș",371312.82,665034.53,371420.04,664986.78,"SM0953D0","Ulmeni","-","-","-","-","-","-","SM-SD001","Cez Vânzare, Engie România, E-on Energie, OMV Petrom, Enel, E.on Energie","Delgaz Grid","aprilie - octombrie\n(reducere pe perioada trecerii PIG-ului / întrerupere în caz de blocare PIG)","2017-10-25","13:00:00","2017-10-26","10:00:00","Cluj","Efectuată",null,null,null,null,null,"2017-10-25","08:32:00",null,null,"12848/24.10.2017","NU",null,null,null,"","","","","","","","","",null,null,null,null,"Nu a fost afectat producator/consumator","-","-","Nu a fost afectat producator/consumator","-","-","Nu a fost afectat producator/consumator","-","-"]
[31,"-","X","Curățire interioară 28” Medieșu Aurit - Sărmășel",140244,"Benesat","Sălaj",369672.11,658600.05000000005,370018.54,658821.16,"SM0954D0","Benesat","-","-","-","-","-","-","SM-SD001","Premier Energy, Alpiq Romindustries, Nova Power, Engie România, E-on Energie, OMV Petrom, Tinmar, Enel","CPL Concordia","aprilie - octombrie\n(reducere pe perioada trecerii PIG-ului / întrerupere în caz de blocare PIG)","2017-10-25","13:00:00","2017-10-26","10:00:00","Cluj","Efectuată",null,null,null,null,null,"2017-10-25","08:32:00",null,null,"12848/24.10.2017","NU",null,null,null,"","","","","","","","","",null,null,null,null,"Nu a fost afectat producator/consumator","-","-","Nu a fost afectat producator/consumator","-","-","Nu a fost afectat producator/consumator","-","-"]
[32,"-","X","Curățire interioară 28” Medieșu Aurit - Sărmășel",142710,"Someș Odorhei","Sălaj",369658.85,649334.05000000005,369552.55,649326.13,"SM1230D0","Someș Odorhei","-","-","-","-","-","-","SM-SD001","Nova Power, E.on Energie","CPL Concordia","aprilie - octombrie\n(reducere pe perioada trecerii PIG-ului / întrerupere în caz de blocare PIG)","2017-10-25","13:00:00","2017-10-26","10:00:00","Cluj","Efectuată",null,null,null,null,null,"2017-10-25","08:32:00",null,null,"12848/24.10.2017","NU",null,null,null,"","","","","","","","","",null,null,null,null,"Nu a fost afectat producator/consumator","-","-","Nu a fost afectat producator/consumator","-","-","Nu a fost afectat producator/consumator","-","-"]
[33,"X","-","Înlocuire contor în SRM Sâmbăta de Sus",42464,"Sâmbata de Sus","Brașov",486437.48,474249.04,486437.48,474249.04,"-","-","SM0807D0","Sâmbăta de Sus","-","-","-","-","SM-SD001","Engie Romania","Distrigaz Sud Rețele","-","2017-10-27","10:00:00","2017-10-27","13:00:00","Brașov","Efectuată",null,"2017-10-27","10:00:00","2017-10-27","13:00:00","2017-10-27","14:06:00","2017-10-23","12:50:00","3412/27.10.2017","NU",null,null,null,"Nu a fost afectat producator/consumator","-","-","Nu a fost afectat producator/consumator","-","-","Nu a fost afectat producator/consumator","-","-",null,null,null,null,{"$f":"IF(C41=\"X\",IF(AN41=\"\",\"Afectat sau NU?\",IF(AN41=\"DA\",IF(AK41=\"\",\"Neinformat\",NETWORKDAYS(AK41+AL41,AE41+AF41,$BR$3:$BR$13)-1),IF(AN41=\"NU\",\"Nu a fost afectat producator/consumator\",\"Afectat sau NU?\"))),\"\")","v":""},"","",{"$f":"IF(C41=\"X\",IF(AN41=\"\",\"Afectat sau NU?\",IF(AN41=\"DA\",IF(AI41=\"\",\"Neinformat\",NETWORKDAYS(AI41+AJ41,AE41+AF41,$BR$3:$BR$13)-1),IF(AN41=\"NU\",\"Nu a fost afectat producator/consumator\",\"Afectat sau NU?\"))),\"\")","v":""},"","","","",""]
[34,"X","-","Remedierea unui defect de coroziune în regim de urgență pe conducta 24” Ernei - Târgu Mureș",116652,"Ernei","Mureș",62284.936518039598,56742.047873945899,471863.91251365602,66227.458515810795,"-","-","-","-","-","-","PM0125","Ernei - golire SU","PM-PP001","Premier Energy, Met România, Alpha Metal, Nova Power, Cis Gaz, Complex Energetic Hunedoara, Conef Gaz, Engie România, E-on Energie, Electrocentrale București, C-Gaz&Energy, Ottogaz, Romgaz, WIEE România, Energy Distribution, Tinmar","Romgaz","-","2017-10-27","14:27:00","2017-10-27","20:00:00","Cluj","Efectuată",null,"2017-10-27","11:18:00","2017-10-27","18:48:00",null,null,"2017-10-27","11:36:00","12989/27.10.2017","DA","FM a ajuns la BET după ora 15:30",null,null,0.29999999993015081,1,1,"Neinformat",0,16,7.5,0,0,null,null,null,null,"","","","","","","","",""]
[35,"X","-","Lucrări de mentenanță pe conducta 12” Sibiu - Cisnădie - Tălmaciu și înlocuire SRM Șelimbăr",143557,"Șelimbăr","Sibiu",438109.45,473474.76,438109.45,473474.76,"-","-","SM0732D0","Șelimbăr","-","-","-","-","SM-SD001","Premier Energy, Alpiq Romindustries, Cez Vânzare, Engie România, E-on Energie, Gaz Est, OMV Petrom, Energy Gas, Restart Energy, Enel","Delgaz Grid","-","2017-10-28","08:00:00","2017-10-28","15:00:00","Mediaș","Efectuată",null,"2017-10-28","08:00:00","2017-10-28","16:00:00",null,null,"2017-10-13",null,"7346/27.10.2017","DA","FM neaprobată",null,null,-368.00000000005821,1,1,"Neinformat",{"$f":"IF(B43=\"X\",IF(AN43=\"DA\",IF(AU43<6,LEN(TRIM(U43))-LEN(SUBSTITUTE(U43,CHAR(44),\"\"))+1,0),\"-\"),\"\")","v":0},10,7.9999999998835847,0,0,null,null,null,null,"","","","","","","","",""]
[36,"X","-","Lucrări de mentenanță pe conducta 12” Sibiu - Cisnădie - Tălmaciu și înlocuire SRM Șelimbăr",143557,"Șelimbăr","Sibiu",437947.89,473137.15,437947.89,473137.15,"-","-","SM0888D0","SC Intercar Șelimbăr","-","-","-","-","SM-CF001","E-on Energie, C-Gaz&Energy","Intercar","-","2017-10-28","08:00:00","2017-10-28","15:00:00","Mediaș","Efectuată",null,"2017-10-28","08:00:00","2017-10-28","16:30:00",null,null,"2017-10-25","12:00:00","7346/27.10.2017","DA","FM neaprobată",null,null,-68.000000000058208,1,1,"Neinformat",0,2,8.4999999999417923,0,0,null,null,null,null,"","","","","","","","",""]
[37,"X","-","Lucrări de mentenanță pe conducta 12” Sibiu - Cisnădie - Tălmaciu și înlocuire SRM Șelimbăr",143557,"Șelimbăr","Sibiu",437768,473110.81,437768,473110.81,"-","-","SM0762D0","SC Transilvania Automobile Șelimbăr","-","-","-","-","SM-CF001","E-on Energie","Transilvania Automobile","-","2017-10-28","08:00:00","2017-10-28","15:00:00","Mediaș","Efectuată",null,"2017-10-28","08:00:00","2017-10-28","20:00:00",null,null,"2017-10-25","12:00:00","7346/27.10.2017","DA","FM neaprobată",null,null,-68.000000000058208,1,1,"Neinformat",0,1,12,0,0,null,null,null,null,"","","","","","","","",""]
[38,"X","-","Lucrări de mentenanță pe conducta 12” Sibiu - Cisnădie - Tălmaciu și înlocuire SRM Șelimbăr",143557,"Șelimbăr","Sibiu",437717.49,472496.31,437717.49,472496.31,"-","-","SM0728D0","SC Germano Trans Șelimbăr","-","-","-","-","SM-CF001","E-on Energie","Germano Trans","-","2017-10-28","08:00:00","2017-10-28","15:00:00","Mediaș","Efectuată",null,"2017-10-28","08:00:00","2017-10-28","16:15:00",null,null,"2017-10-25","12:00:00","7346/27.10.2017","DA","FM neaprobată",null,null,-68.000000000058208,1,1,"Neinformat",0,1,8.25,0,0,null,null,null,null,"","","","","","","","",""]
[39,"X","-","Lucrări de mentenanță pe conducta 12” Sibiu - Cisnădie - Tălmaciu și înlocuire SRM Șelimbăr",143557,"Șelimbăr","Sibiu",435532.6,470616.06,435532.6,470616.06,"-","-","SM0760D0","SC Prodial Cisnădie","-","-","-","-","SM-CF001","E-on Energie","Prodial","-","2017-10-28","08:00:00","2017-10-28","15:00:00","Mediaș","Efectuată",null,"2017-10-28","08:00:00","2017-10-28","16:45:00",null,null,"2017-10-25","12:00:00","7346/27.10.2017","DA","FM neaprobată",null,null,-68.000000000058208,1,1,"Neinformat",0,1,8.7499999998835847,0,0,null,null,null,null,"","","","","","","","",""]
[40,"X","-","Lucrări de mentenanță pe conducta 12” Sibiu - Cisnădie - Tălmaciu și înlocuire SRM Șelimbăr",143735,"Cisnădie","Sibiu",434558.17,469530.9,434558.17,469530.9,"-","-","SM0726D0","Cisnădie","-","-","-","-","SM-SD001","Premier Energy, Cez Vânzare, Cis Gaz, Engie România, E-on Energie, Restart Energy, RWE Supply, Enel","Delgaz Grid","-","2017-10-28","08:00:00","2017-10-28","15:00:00","Mediaș","Efectuată",null,"2017-10-28","08:00:00","2017-10-28","17:30:00",null,null,"2017-10-13",null,"7346/27.10.2017","DA","FM neaprobată",null,null,-368.00000000005821,1,1,"Neinformat",0,8,9.4999999998835847,0,0,null,null,null,null,"","","","","","","","",""]
[41,"X","-","Lucrări de mentenanță pe conducta 12” Sibiu - Cisnădie - Tălmaciu și înlocuire SRM Șelimbăr",143735,"Cisnădie","Sibiu",433908.5,472158.75,433908.5,472158.75,"-","-","SM0727D0","Cisnădie II (Seviș)","-","-","-","-","SM-SD001","Premier Energy, Cez Vânzare, Cis Gaz, Engie România, E-on Energie, Restart Energy, RWE Supply, Enel","Delgaz Grid","-","2017-10-28","08:00:00","2017-10-28","15:00:00","Mediaș","Efectuată",null,"2017-10-28","08:00:00","2017-10-28","17:10:00",null,null,"2017-10-13",null,"7346/27.10.2017","DA","FM neaprobată",null,null,-368.00000000005821,1,1,"Neinformat",0,8,9.1666666666860692,0,0,null,null,null,null,"","","","","","","","",""]
[42,"X","-","Lucrări de mentenanță pe conducta 12” Sibiu - Cisnădie - Tălmaciu și înlocuire SRM Șelimbăr",143735,"Cisnădie","Sibiu",435212.79,469658.34,435212.79,469658.34,"-","-","SM1007D0","SC Panalim Cisnădie","-","-","-","-","SM-CF001","Premier Energy","Panalim","-","2017-10-28","08:00:00","2017-10-28","15:00:00","Mediaș","Efectuată",null,"2017-10-28","08:00:00","2017-10-28","17:45:00",null,null,"2017-10-25","12:00:00","7346/27.10.2017","DA","FM neaprobată",null,null,-68.000000000058208,1,1,"Neinformat",0,1,9.75,0,0,null,null,null,null,"","","","","","","","",""]
[43,"X","-","Lucrări de mentenanță pe conducta 12” Sibiu - Cisnădie - Tălmaciu și înlocuire SRM Șelimbăr",145836,"Tălmaciu","Sibiu",441989.99,463883.41,441989.99,463883.41,"-","-","SM0733D1","SC Romanofir Tălmaciu","-","-","-","-","SM-CF001","E-on Energie","Romanofir","-","2017-10-28","08:00:00","2017-10-28","15:00:00","Mediaș","Efectuată",null,"2017-10-28","08:00:00","2017-10-28","19:00:00",null,null,"2017-10-25","12:00:00","7346/27.10.2017","DA","FM neaprobată",null,null,-68.000000000058208,1,1,"Neinformat",0,1,10.999999999883585,0,0,null,null,null,null,"","","","","","","","",""]
[44,"X","-","Lucrări de mentenanță pe conducta 12” Sibiu - Cisnădie - Tălmaciu și înlocuire SRM Șelimbăr",145827,"Tălmaciu","Sibiu",441989.99,463883.41,441989.99,463883.41,"-","-","SM0733D2","Tălmaciu","-","-","-","-","SM-SD001","Engie România, E-on România, Gaz Est, OMV Petrom, Enel","Delgaz Grid","-","2017-10-28","08:00:00","2017-10-28","15:00:00","Mediaș","Efectuată",null,"2017-10-28","08:00:00","2017-10-28","19:00:00",null,null,"2017-10-13",null,"7346/27.10.2017","DA","FM neaprobată",null,null,-368.00000000005821,1,1,"Neinformat",0,5,10.999999999883585,0,0,null,null,null,null,"","","","","","","","",""]
[45,"X","-","Lucrări de mentenanță pe conducta 12” Sibiu - Cisnădie - Tălmaciu și înlocuire SRM Șelimbăr",145471,"Sadu","Sibiu",437389.03,464457.73,437389.03,464457.73,"-","-","SM0730D0","Sadu","-","-","-","-","SM-SD001","E-on Energie","Delgaz Grid","-","2017-10-28","08:00:00","2017-10-28","15:00:00","Mediaș","Efectuată",null,"2017-10-28","08:00:00","2017-10-28","19:00:00",null,null,"2017-10-13",null,"7346/27.10.2017","DA","FM neaprobată",null,null,-368.00000000005821,1,1,"Neinformat",0,1,10.999999999883585,0,0,null,null,null,null,"","","","","","","","",""]
[46,"X","-","Lucrări de mentenanță pe conducta 12” Sibiu - Cisnădie - Tălmaciu și înlocuire SRM Șelimbăr",145827,"Tălmaciu","Sibiu",441290.51,461208.58,441290.51,461208.58,"-","-","SM0735D0","Tălmăcel  ","-","-","-","-","SM-SD001","E-on Energie, Enel","Delgaz Grid","-","2017-10-28","08:00:00","2017-10-28","15:00:00","Mediaș","Efectuată",null,"2017-10-28","08:00:00","2017-10-28","19:00:00",null,null,"2017-10-13",null,"7346/27.10.2017","DA","FM neaprobată",null,null,-368.00000000005821,1,1,"Neinformat",0,2,10.999999999883585,0,0,null,null,null,null,"","","","","","","","",""]
[47,"X","-","Lucrări de mentenanță pe conducta 12” Sibiu - Cisnădie - Tălmaciu și înlocuire SRM Șelimbăr",145827,"Tălmăcel","Sibiu",441757.18,461422.56,441757.18,461422.56,"-","-","SM1160D0","Tălmăcel II","-","-","-","-","SM-SD001","","Delgaz Grid","-","2017-10-28","08:00:00","2017-10-28","15:00:00","Mediaș","Efectuată",null,null,null,null,null,null,null,"2017-10-13",null,"7346/27.10.2017","NU","FM neaprobată",null,null,"Nu a fost afectat producator/consumator","-","-","Nu a fost afectat producator/consumator","-","-","Nu a fost afectat producator/consumator","-","-",null,null,null,null,"","","","","","","","",""]
[48,"X","-","Lucrări de mentenanță pe conducta 12” Sibiu - Cisnădie - Tălmaciu și înlocuire SRM Șelimbăr",145827,"Boița","Sibiu",442446.22,460048.53,442446.22,460048.53,"-","-","SM0736D0","Boița","-","-","-","-","SM-SD001","E-on Energie","Delgaz Grid","-","2017-10-28","08:00:00","2017-10-28","15:00:00","Mediaș","Efectuată",null,"2017-10-28","08:00:00","2017-10-28","19:00:00",null,null,"2017-10-13",null,"7346/27.10.2017","DA","FM neaprobată",null,null,-368.00000000005821,1,1,"Neinformat",0,1,10.999999999883585,0,0,null,null,null,null,"","","","","","","","",""]
[49,"X","-","Lucrări de mentenanță pe conducta 12” Sibiu - Cisnădie - Tălmaciu și înlocuire SRM Șelimbăr",143735,"Cisnădioara","Sibiu",430124.60314534197,467602.03,430124.60314534197,467602.03,"-","-","SM0051D0","Cisnădioara","-","-","-","-","SM-SD001","E-on Energie, Enel","Delgaz Grid","-","2017-10-28","08:00:00","2017-10-28","15:00:00","Mediaș","Efectuată",null,null,null,null,null,null,null,"2017-10-13",null,"7346/27.10.2017","NU","FM neaprobată",null,null,"Nu a fost afectat producator/consumator","-","-","Nu a fost afectat producator/consumator","-","-","Nu a fost afectat producator/consumator","-","-",null,null,null,null,"","","","","","","","",""]
[50,"X","-","Cuplare tronson relocat/protejat al conductei 20” Deleni - Cuci",116395,"Șeulia de Mureș","Mureș",438160.16,550349.32999999996,442750.25,543079.81000000006,"-","-","SM0685D0","Șeulia de Mureș","-","-","-","-","SM-SD001","CIS Gaz, E-on Energie","Delgaz Grid","-","2017-10-30","08:00:00","2017-10-30","19:00:00","Cluj","Efectuată",null,"2017-10-30","12:00:00","2017-10-31","10:03:00","2017-10-30","11:42:00","2017-10-19",null,"13003/27.10.2017","DA",null,null,null,-276,1,1,-0.29999999993015081,2,2,22.049999999930151,0,0,null,null,null,null,"","","","","","","","",""]
[51,"X","-","Scoaterea din funcțiune SRM Târnava Șomârd - la solicitarea Delgaz Grid",143646,"Târnava","Sibiu",447307.59491874801,514435.10820620001,447307.59491874801,514435.10820620001,"-","-","SM0865D0","Târnava Șomârd","-","-","-","-","SM-SD001","E-on Energie, E-on Gaz Furnizare, Restart Energy","Delgaz Grid","-","2017-11-01","09:00:00","2017-11-01","13:00:00","Mediaș","Efectuată",null,"2017-11-01","09:00:00","2017-11-01","10:00:00","2017-11-01","15:29:00","2017-10-31",null,"7453/31.10.2017","DA",null,null,null,-33,1,1,6.4833333333372138,0,3,0.99999999994179234,0,0,null,null,null,null,"","","","","","","","",""]
[52,"X","-","Lucrări de mentenanță în SRM Drăgășani I",167981,"Drăgășani","Vâlcea",442104.89,347636.75,442104.89,347636.75,"-","-","SM0234D1","Drăgășani I","-","-","-","-","SM-SD001","Cez Vanzare, Engie România, Restart Energy","Distrigaz Sud Rețele","-","2017-11-03","11:00:00","2017-11-03","13:00:00","Craiova","Efectuată",null,"2017-11-03","11:02:00","2017-11-03","11:18:00","2017-11-02","15:25:00","2017-10-31","14:44:00","2926/02.11.2017","NU",null,null,null,"Nu a fost afectat producator/consumator","-","-","Nu a fost afectat producator/consumator","-","-","Nu a fost afectat producator/consumator","-","-",null,null,null,null,"","","","","","","","",""]
[53,"X","-","Realizare by-pass între conducta 10” Șincai - Zau - Ceanu Mare și racordul 3” SRM Hodăi Boian",56844,"Hodăi-Boian","Cluj",424196.47,572114.56999999995,424309.89,572213.86,"-","-","SM0627D0","Hodăi Boian","-","-","-","-","SM-SD001","E-on Energie, E.on Gaz Furnizare","Delgaz Grid","-","2017-11-07","10:00:00","2017-11-07","13:00:00","Cluj","Efectuată",null,"2017-11-07","10:00:00","2017-11-07","13:15:00","2017-11-07","11:12:00","2017-11-03","14:52:00","13385/06.11.2017","DA",null,null,null,-91.133333333360497,1,1,1.2000000000698492,2,2,3.2500000001164153,0,0,null,null,null,null,"","","","","","","","",""]
[54,"X","-","Înlocuire flanșă electroizolantă pe conducta 2” racord SRM Moara Maria Chizătău",155797,"Chizătău","Timiș",245621.16,478903.88,245549.45,478986.31,"-","-","SM0329D0","SC Moara Maria Chizătău","-","-","-","-","SM-CF001","E-on Energie","SC Moara Maria Chizătău SRL","-","2017-11-09","09:00:00","2017-11-09","15:00:00","Arad","Efectuată",null,"2017-11-09","09:00:00","2017-11-09","11:30:00","2017-11-09","12:25:00","2017-11-03",null,"11234/08.11.2017","DA",null,null,null,-153,1,1,3.4166666666278616,1,1,2.4999999999417923,0,0,null,null,null,null,"","","","","","","","",""]
[55,"X","-","Scoaterea din funcțiune SRM Conpet Bărăganu - la solicitarea CONPET",92961,"Borcea","Călărași",713270.06,327780.58,713270.06,327780.58,"-","-","SM1090D0","SC Conpet Bărăganu","-","-","-","-","SM-CF001","Premier Energy, Engie România","SC Conpet","-","2017-11-08","08:00:00","2017-11-08","14:00:00","Brăila","Efectuată",null,"2017-11-08","10:00:00","2017-11-08","14:00:00",null,null,"2017-11-07","08:59:00","8144/07.11.2017","DA","Nu s-a informat UR",null,null,-25.016666666662786,1,1,"Neinformat",0,2,4.0000000001164153,0,0,null,null,null,null,"","","","","","","","",""]
[56,"X","-","Cuplare conducta 8\" racord SRM Lemarco Cristal Urziceni în conducta 32\" Urziceni - București",100683,"Uriceni","Ialomița",626908.04495539505,358786.74311477703,626881.99090049695,358926.85044227698,"-","-","SM1098D0","SC Lemarco Cristal Urziceni","-","-","-","-","SM-CF001","Engie Romania","SC Lemarco Cristal SRL","-","2017-11-15","09:00:00","2017-11-15","16:00:00","Brăila","Efectuată",null,"2017-11-15","10:15:00","2017-11-15","13:10:00","2017-11-13","13:12:00","2017-11-09","09:23:00","8272/10.11.2017","DA",null,null,null,-144.86666666669771,1,1,-45.049999999988358,1,1,2.9166666665696539,0,0,null,null,null,null,"","","","","","","","",""]
[57,"X","-","Înlocuire două tronsoane și montare robinet pe conducta 20” Bratei - Victoria",144232,"Pelișor","Sibiu",462529.73,505071.29,462529.73,505071.29,"-","-","SM0904D0","Pelișor","-","-","-","-","SM-SD001","E-on Energie, E.on Gaz Furnizare","Delgaz Grid","-","2017-11-14","08:00:00","2017-11-14","17:00:00","Mediaș","Efectuată",null,"2017-11-14","08:15:00","2017-11-14","18:10:00","2017-11-14","12:19:00","2017-11-08",null,"7710/13.11.2017","DA",null,null,null,-152.25,1,1,4.0666666666511446,2,2,9.9166666666860692,0,0,null,null,null,null,"","","","","","","","",""]
[58,"X","-","Înlocuire două tronsoane și montare robinet pe conducta 20” Bratei - Victoria",144232,"Bârghiș","Sibiu",464305.97,499196.48,464305.97,499196.48,"-","-","SM0787D0","Bârghiș","-","-","-","-","SM-SD001","E-on Energie, Enel, E.on Gaz Furnizare","Delgaz Grid","-","2017-11-14","08:00:00","2017-11-14","17:00:00","Mediaș","Efectuată",null,"2017-11-14","08:15:00","2017-11-14","17:20:00","2017-11-14","12:19:00","2017-11-08",null,"7710/13.11.2017","DA",null,null,null,-152.25,1,1,4.0666666666511446,3,3,9.0833333332557231,0,0,null,null,null,null,"","","","","","","","",""]
[59,"X","-","Înlocuire două tronsoane și montare robinet pe conducta 20” Bratei - Victoria",143682,"Coveș","Sibiu",467035.87,497972.82,467035.87,497972.82,"-","-","SM0781D0","Coveș","-","-","-","-","SM-SD001","E-on Energie, E.on Gaz Furnizare","Delgaz Grid","-","2017-11-14","08:00:00","2017-11-14","17:00:00","Mediaș","Efectuată",null,null,null,null,null,"2017-11-14","12:19:00","2017-11-08",null,"7710/13.11.2017","NU","A consumat din zestrea racordului",null,null,"Nu a fost afectat producator/consumator","-","-","Nu a fost afectat producator/consumator","-","-","Nu a fost afectat producator/consumator","-","-",null,null,null,null,"","","","","","","","",""]
[60,"X","-","Cuplare tronson relocat/protejat al conductei 20\" Corbu - București Fir 1",102605,"Dragomirești","Ilfov",574828.59776327701,328018.31914632203,578264.94846300897,331833.034992031,"-","-","SM0098D0","Dragomirești","-","-","-","-","SM-SD001","CEZ Vânzare, Engie România, Enel, Premier Enrgy, Energy Gas","Distrigaz Sud Rețele","-","2017-11-15","08:00:00","2017-11-15","20:00:00","București","Efectuată",null,"2017-11-15","08:10:00","2017-11-15","19:50:00",null,null,"2017-11-09","10:21:00","8844/13.11.2017","DA","SAS a omis transmiterea FM catre BET",null,null,-141.81666666670935,1,1,"Neinformat",0,5,11.666666666627862,0,0,null,null,null,null,"","","","","","","","",""]
[61,"X","-","Cuplare tronson relocat/protejat al conductei 20\" Corbu - București Fir 1",179285,"Rudeni","Ilfov",574828.59776327701,328018.31914632203,578264.94846300897,331833.034992031,"-","-","SM1023D0","Rudeni","-","-","-","-","SM-SD001","Alpiq Romindustries, Nova Power, Engie România, OMV Petrom","Distrigaz Sud Rețele","-","2017-11-15","08:00:00","2017-11-15","20:00:00","București","Efectuată",null,"2017-11-15","08:10:00","2017-11-15","19:50:00",null,null,"2017-11-09","10:21:00","8844/13.11.2017","DA","SAS a omis transmiterea FM catre BET",null,null,-141.81666666670935,1,1,"Neinformat",0,4,11.666666666627862,0,0,null,null,null,null,"","","","","","","","",""]
[62,"X","-","Scoaterea din funcțiune SRM Sălard - la solicitarea Delgaz Grid",31011,"Sălard","Bihor",275737.84059415502,639288.13728238898,275737.84059415502,639288.13728238898,"-","-","SM0364D0","Sălard","-","-","-","-","SM-SD001","Alpiq Romindustries, Distrigaz Vest, Engie România, E-on Energie, E-on Gaz Furnizare, Restart Energy","Delgaz Grid","-","2017-11-17","11:20:00","2017-11-17","15:20:00","Cluj","Efectuată",null,"2017-11-17","11:20:00","2017-11-17","15:15:00","2017-11-17","13:17:00","2017-11-17","10:45:00","-","DA","La solicitarea Delgaz Grid",null,null,-0.58333333331393078,1,1,1.9500000000698492,6,6,3.9166666666860692,0,0,null,null,null,null,"","","","","","","","",""]
[63,"X","-","Scoaterea din funcțiune SRM Godinești - la solicitarea Distrigaz Sud Rețele",80427,"Godinești","Gorj",339549.92,389220.58,339549.92,389220.58,"-","-","SM0960D0","Godinești","-","-","-","-","SM-SD001","Cez Vânzare, Engie România","Distrigaz Sud Rețele","-","2017-11-22","09:00:00","2017-11-22","15:00:00","Craiova","Efectuată",null,"2017-11-22","09:00:00","2017-11-22","14:00:00","2017-11-21","16:25:00","2017-11-20","13:54:00","-","DA","La solicitarea Distrigaz Sud Rețele",null,null,-43.099999999918509,1,1,-16.583333333255723,2,2,5.0000000000582077,0,0,null,null,null,null,"","","","","","","","",""]
[64,"X","-","Înlocuire contor cu pistoane rotative la SRM Simionești",120888,"Simionești","Neamț",641447.96,609975.43000000005,641447.96,609975.43000000005,"-","-","SM0957D0","Simionești","-","-","-","-","SM-SD001","Met Romania,  Engie România, Energy Gas, WIEE România","Cordun Gaz","-","2017-11-23","11:00:00","2017-11-23","13:00:00","Bacău","Efectuată",null,"2017-11-23","11:00:00","2017-11-23","12:40:00","2017-11-22","12:26:00","2017-11-21","11:20:00","8077/21.11.2017","NU",null,null,null,"Nu a fost afectat producator/consumator","-","-","Nu a fost afectat producator/consumator","-","-","Nu a fost afectat producator/consumator","-","-",null,null,null,null,"","","","","","","","",""]
[65,"X","-","Lucrări de mentenanță în SRM Henkel Heran București",179515,"Pantelimon","Ilfov",597907.15,332508.51,597907.15,332508.51,"-","-","SM0167D0","Henkel Heran București","-","-","-","-","SM-SD001","Premier Energy, Met România, Engie România, E-on Energie, OMV Petrom, C-Gaz&Energy","Gaz Sud","-","2017-11-23","10:00:00","2017-11-23","11:00:00","București","Efectuată",null,"2017-11-23","10:03:00","2017-11-23","11:00:00","2017-11-22","17:05:00","2017-11-22","12:21:00","9084/22.11.2017","DA",null,null,null,{"$f":"IF(B73=\"X\",IF(AN73=\"\",\"Afectat sau NU?\",IF(AN73=\"DA\",IF(AK73=\"\",\"Neinformat\",((AK73+AL73)-(AE73+AF73))*24),IF(AN73=\"NU\",\"Nu a fost afectat producator/consumator\",\"Afectat sau NU?\"))),\"\")","v":-21.700000000011642},1,1,{"$f":"IF(B73=\"X\",IF(AN73=\"\",\"Afectat sau NU?\",IF(AN73=\"DA\",IF(AI73=\"\",\"Neinformat\",((AI73+AJ73)-(AE73+AF73))*24),IF(AN73=\"NU\",\"Nu a fost afectat producator/consumator\",\"Afectat sau NU?\"))),\"\")","v":-16.96666666661622},6,6,{"$f":"IF(B73=\"X\",IF(AN73=\"\",\"Afectat sau NU?\",IF(AN73=\"DA\",((AG73+AH73)-(AE73+AF73))*24,IF(AN73=\"NU\",\"Nu a fost afectat producator/consumator\",\"Afectat sau NU?\"))),\"\")","v":0.95000000012805685},0,0,null,null,null,null,{"$f":"IF(C73=\"X\",IF(AN73=\"\",\"Afectat sau NU?\",IF(AN73=\"DA\",IF(AK73=\"\",\"Neinformat\",NETWORKDAYS(AK73+AL73,AE73+AF73,$BR$3:$BR$13)-1),IF(AN73=\"NU\",\"Nu a fost afectat producator/consumator\",\"Afectat sau NU?\"))),\"\")","v":""},{"$f":"IF(C73=\"X\",IF(AN73=\"DA\",IF(AND(BE73>=5,AK73<>\"\"),LEN(TRIM(V73))-LEN(SUBSTITUTE(V73,CHAR(44),\"\"))+1,0),\"-\"),\"\")","v":""},{"$f":"IF(C73=\"X\",IF(AN73=\"DA\",LEN(TRIM(V73))-LEN(SUBSTITUTE(V73,CHAR(44),\"\"))+1,\"-\"),\"\")","v":""},{"$f":"IF(C73=\"X\",IF(AN73=\"\",\"Afectat sau NU?\",IF(AN73=\"DA\",IF(AI73=\"\",\"Neinformat\",NETWORKDAYS(AI73+AJ73,AE73+AF73,$BR$3:$BR$13)-1),IF(AN73=\"NU\",\"Nu a fost afectat producator/consumator\",\"Afectat sau NU?\"))),\"\")","v":""},{"$f":"IF(C73=\"X\",IF(AN73=\"DA\",IF(AND(BH73>=5,AI73<>\"\"),LEN(TRIM(U73))-LEN(SUBSTITUTE(U73,CHAR(44),\"\"))+1,0),\"-\"),\"\")","v":""},{"$f":"IF(C73=\"X\",IF(AN73=\"DA\",LEN(TRIM(U73))-LEN(SUBSTITUTE(U73,CHAR(44),\"\"))+1,\"-\"),\"\")","v":""},{"$f":"IF(C73=\"X\",IF(AN73=\"\",\"Afectat sau NU?\",IF(AN73=\"DA\",((AG73+AH73)-(Z73+AA73))*24,IF(AN73=\"NU\",\"Nu a fost afectat producator/consumator\",\"Afectat sau NU?\"))),\"\")","v":""},{"$f":"IF(C73=\"X\",IF(AN73<>\"DA\",\"-\",IF(AND(AN73=\"DA\",BK73<=0),LEN(TRIM(V73))-LEN(SUBSTITUTE(V73,CHAR(44),\"\"))+1+LEN(TRIM(U73))-LEN(SUBSTITUTE(U73,CHAR(44),\"\"))+1,0)),\"\")","v":""},{"$f":"IF(C73=\"X\",IF(AN73=\"DA\",LEN(TRIM(V73))-LEN(SUBSTITUTE(V73,CHAR(44),\"\"))+1+LEN(TRIM(U73))-LEN(SUBSTITUTE(U73,CHAR(44),\"\"))+1,\"-\"),\"\")","v":""}]
[66,"X","-","Scoaterea din funcțiune SRM Arpașu de Jos - la solicitarea Delgaz Grid",143959,"Arpașu de Jos","Sibiu",471523.03496211098,475803.957974752,471523.03496211098,475803.957974752,"-","-","SM0814D0","Arpașu de Jos","-","-","-","-","SM-SD001","Engie România, E-on Energie, E.on Gaz Furnziare","Delgaz Grid","-","2017-11-25","09:00:00","2017-11-25","13:00:00","Brașov","Efectuată",null,"2017-11-25","09:00:00","2017-11-25","16:50:00","2017-11-24","15:50:00","2017-11-23","14:56:00","3717/24.11.2017","DA","La solicitarea Delgaz Grid",null,null,-42.066666666709352,{"$f":"IF(B74=\"X\",IF(AN74=\"DA\",IF(AR74<6,LEN(TRIM(V74))-LEN(SUBSTITUTE(V74,CHAR(44),\"\"))+1,0),\"-\"),\"\")","v":1},{"$f":"IF(B74=\"X\",IF(AN74=\"DA\",LEN(TRIM(V74))-LEN(SUBSTITUTE(V74,CHAR(44),\"\"))+1,\"-\"),\"\")","v":1},-17.166666666744277,{"$f":"IF(B74=\"X\",IF(AN74=\"DA\",IF(AU74<6,LEN(TRIM(U74))-LEN(SUBSTITUTE(U74,CHAR(44),\"\"))+1,0),\"-\"),\"\")","v":3},{"$f":"IF(B74=\"X\",IF(AN74=\"DA\",LEN(TRIM(U74))-LEN(SUBSTITUTE(U74,CHAR(44),\"\"))+1,\"-\"),\"\")","v":3},7.8333333333721384,{"$f":"IF(B74=\"X\",IF(AN74=\"DA\",IF(AX74>24,IF(AQ74=\"NU\",0,LEN(TRIM(V74))-LEN(SUBSTITUTE(V74,CHAR(44),\"\"))+1),0),\"-\"),\"\")","v":0},{"$f":"IF(B74=\"X\",IF(AN74=\"DA\",IF(AX74>24,LEN(TRIM(V74))-LEN(SUBSTITUTE(V74,CHAR(44),\"\"))+1,0),\"-\"),\"\")","v":0},null,null,null,null,"","","","","","","","",""]
[67,"X","-","Montare contor pentru efectuare proving la sistemul de măsură în SCV Urziceni - la solicitarea Romgaz",100683,"Urziceni","Ialomița",627365.72890070698,359086.40559711098,627365.72890070698,359086.40559711098,"-","-","-","-","-","-","PM0028","Urziceni Extras","VPM01","Alpha Metal, Alpiq Romindustries, Nova Power, Azomureș, Cez Vânzare, Complexul Energetic Hunedoara, Distrigaz Vest, Engie România, E-on Energie, Electrocentrale București, Energy Distribution, E.on Gaz Furnizare, Gaz Est, C-Gaz & Energy, Ottogaz, Premier Energy, OMV Petrom, Restart Energy, Romgaz, Tinmar, Wiee România","Romgaz - Depozit","-","2017-11-27","10:00:00","2017-11-27","13:00:00","Brăila","Efectuată",null,"2017-11-27","10:48:00","2017-11-27","13:06:00","2017-11-27","14:50:00","2017-11-20","10:47:00","8710/24.11.2017","DA","La solicitarea Romgaz",null,null,-168.01666666654637,1,1,4.03333333338378,21,21,2.2999999999883585,0,0,null,null,null,null,"","","","","","","","",""]
[68,"X","-","Demontare contor folosit pentru efectuare proving la sistemul de măsură în SCV Urziceni - la solicitarea Romgaz",100683,"Urziceni","Ialomița",627365.72890070698,359086.40559711098,627365.72890070698,359086.40559711098,"-","-","-","-","-","-","PM0028","Urziceni Extras","VPM01","Alpha Metal, Alpiq Romindustries, Nova Power, Azomureș, Cez Vânzare, Complexul Energetic Hunedoara, Distrigaz Vest, Engie România, E-on Energie, Electrocentrale București, Energy Distribution, E.on Gaz Furnizare, Gaz Est, C-Gaz & Energy, Ottogaz, Premier Energy, OMV Petrom, Restart Energy, Romgaz, Tinmar, Wiee România","Romgaz - Depozit","-","2017-11-28","10:00:00","2017-11-28","13:00:00","Brăila","Efectuată",null,"2017-11-28","10:15:00","2017-11-28","11:00:00","2017-11-28","12:21:00","2017-11-20","10:47:00","8733/27.11.2017","DA","La solicitarea Romgaz",null,null,-191.46666666667443,1,1,2.0999999998603016,21,21,0.75,0,0,null,null,null,null,"","","","","","","","",""]
[69,"X","-","Înlocuire contor în SRM Săbăoani",124206,"Săbăoani","Neamț",640933.109276762,613500.87137493002,640933.109276762,613500.87137493002,"-","-","SM0925D0","Săbăoani","-","-","-","-","SM-SD001","Engie România, Wiee România","Cordun Gaz","-","2017-11-29","11:00:00","2017-11-29","13:00:00","Bacău","Efectuată",null,"2017-11-29","11:43:00","2017-11-29","13:15:00","2017-11-28","14:34:00","2017-11-27",null,"8282/28.11.2017","NU",null,null,null,"Nu a fost afectat producator/consumator","-","-","Nu a fost afectat producator/consumator","-","-","Nu a fost afectat producator/consumator","-","-",null,null,null,null,"","","","","","","","",""]
[70,"X","-","Cuplare instalați tehnologice in SRM Macon Bârcea + Diverși",86687,"Bârcea","Hunedoara",340555.86636194499,484362.73920074699,340555.86636194499,484362.73920074699,"-","-","SM0298D0","Macon Bârcea + Diverși","-","-","-","-","SM-SD001","Engie România, E-on Energie, E.on Gaz Furnizare, Gaz Est","Delgaz Grid","-","2017-12-04","08:00:00","2017-12-04","18:00:00","Arad","Efectuată",null,"2017-12-04","08:10:00","2017-12-04","16:45:00","2017-12-04","11:12:00","2017-11-23",null,"11979/29.11.2017","DA",null,null,null,-272.16666666674428,1,1,3.0333333332673647,4,4,8.5833333331975155,0,0,null,null,null,null,"","","","","","","","",""]
[71,"X","-","Cuplare instalație de reglare măsurare provizorie în vederea modernizării SRM Ișalnița",70094,"Ișalnița","Dolj",399102.28826220398,320723.975908425,399102.28826220398,320723.975908425,"-","-","SM0207D6","CET Ișalnița","-","-","-","-","SM-CF001","Tinmar","Complexul Energetic Oltenia","-","2017-12-04","08:00:00","2017-12-04","20:00:00","Craiova","Efectuată",null,"2017-12-04","08:45:00","2017-12-04","18:30:00","2017-12-04","11:12:00","2017-11-29","10:06:00","3207/29.11.2017","DA",null,null,null,-118.6500000001397,1,1,2.4499999999534339,1,1,9.75,0,0,null,null,null,null,"","","","","","","","",""]
[72,"X","-","Remediere defect pe conducta 14\" Racord PM Mădulari",171218,"Mădulari","Vîlcea",430371.566671743,358245.24620811798,428807.47481397202,356611.12585935101,"-","-","-","-","-","-","PM0191","Mădulari","PM-PP001","Alpha Metal, Alpiq Romindustries, Azomureș, Nova Power, Cez Vânzare, Cis Gaz, Distrigaz Vest, Engie România, Axpo Energy, E-on Energie, E.on Furnizare, Enel, Gaz Est, C-Gaz & Energy, Met România, OMV Petrom, Premier Energy, Energy Gas, Restart Energy, RWE Supply, Saint Gobain, WIEE România","OMV Petrom, Amromco Energy","-","2017-12-05","10:00:00","2017-12-05","15:00:00","Craiova","Efectuată",null,"2017-12-05","10:00:00","2017-12-05","12:30:00","2017-12-05","13:50:00","2017-12-04","12:09:00","3242/05.12.2017","DA",null,null,null,{"$f":"IF(B80=\"X\",IF(AN80=\"\",\"Afectat sau NU?\",IF(AN80=\"DA\",IF(AK80=\"\",\"Neinformat\",((AK80+AL80)-(AE80+AF80))*24),IF(AN80=\"NU\",\"Nu a fost afectat producator/consumator\",\"Afectat sau NU?\"))),\"\")","v":-21.849999999976717},2,2,{"$f":"IF(B80=\"X\",IF(AN80=\"\",\"Afectat sau NU?\",IF(AN80=\"DA\",IF(AI80=\"\",\"Neinformat\",((AI80+AJ80)-(AE80+AF80))*24),IF(AN80=\"NU\",\"Nu a fost afectat producator/consumator\",\"Afectat sau NU?\"))),\"\")","v":3.8333333334303461},22,22,{"$f":"IF(B80=\"X\",IF(AN80=\"\",\"Afectat sau NU?\",IF(AN80=\"DA\",((AG80+AH80)-(AE80+AF80))*24,IF(AN80=\"NU\",\"Nu a fost afectat producator/consumator\",\"Afectat sau NU?\"))),\"\")","v":2.5000000001164153},0,0,null,null,null,null,"",{"$f":"IF(C80=\"X\",IF(AN80=\"DA\",IF(AND(BE80>=5,AK80<>\"\"),LEN(TRIM(V80))-LEN(SUBSTITUTE(V80,CHAR(44),\"\"))+1,0),\"-\"),\"\")","v":""},{"$f":"IF(C80=\"X\",IF(AN80=\"DA\",LEN(TRIM(V80))-LEN(SUBSTITUTE(V80,CHAR(44),\"\"))+1,\"-\"),\"\")","v":""},"",{"$f":"IF(C80=\"X\",IF(AN80=\"DA\",IF(AND(BH80>=5,AI80<>\"\"),LEN(TRIM(U80))-LEN(SUBSTITUTE(U80,CHAR(44),\"\"))+1,0),\"-\"),\"\")","v":""},{"$f":"IF(C80=\"X\",IF(AN80=\"DA\",LEN(TRIM(U80))-LEN(SUBSTITUTE(U80,CHAR(44),\"\"))+1,\"-\"),\"\")","v":""},{"$f":"IF(C80=\"X\",IF(AN80=\"\",\"Afectat sau NU?\",IF(AN80=\"DA\",((AG80+AH80)-(Z80+AA80))*24,IF(AN80=\"NU\",\"Nu a fost afectat producator/consumator\",\"Afectat sau NU?\"))),\"\")","v":""},{"$f":"IF(C80=\"X\",IF(AN80<>\"DA\",\"-\",IF(AND(AN80=\"DA\",BK80<=0),LEN(TRIM(V80))-LEN(SUBSTITUTE(V80,CHAR(44),\"\"))+1+LEN(TRIM(U80))-LEN(SUBSTITUTE(U80,CHAR(44),\"\"))+1,0)),\"\")","v":""},{"$f":"IF(C80=\"X\",IF(AN80=\"DA\",LEN(TRIM(V80))-LEN(SUBSTITUTE(V80,CHAR(44),\"\"))+1+LEN(TRIM(U80))-LEN(SUBSTITUTE(U80,CHAR(44),\"\"))+1,\"-\"),\"\")","v":""}]
[73,"X","-","Cuplare deviere conductă 16” Gura Șuții - București, zona Dragomirești",102605,"Dragomirești Vale","Ilfov",574824.61,328018.73,575177.67000000004,327177.67,"-","-","SM1004D0","Portland Chiajna","-","-","-","-","SM-SD001","Alpiq Romindustries, Nova Power, Cez Vânzare, Cis Gaz, Distrigaz Vest, Engie România, Axpo Energy, E-on Energie, Electrocentrale București, Energy Distribution, Enel Energie, Gaz Est, C-Gaz&Energy, Premier Energy, OMV Petrom, Energy Gas, Restart Energy, RWE Supply, Tinmar, WIEE România, Met România","Distrigaz Sud Rețele","-","2017-12-20","07:00:00","2017-12-20","19:00:00","București","Efectuată",null,"2017-12-20","08:33:00","2017-12-20","19:27:00","2017-12-19","17:05:00","2017-12-14","11:59:00","9542/19.12.2017","DA",null,null,null,{"$f":"IF(B81=\"X\",IF(AN81=\"\",\"Afectat sau NU?\",IF(AN81=\"DA\",IF(((AK81+AL81)-(AE81+AF81))*24<-720,\"Neinformat\",((AK81+AL81)-(AE81+AF81))*24),\"Nu a fost afectat producator/consumator\")),\"\")","v":-140.56666666665114},1,1,{"$f":"IF(B81=\"X\",IF(AN81=\"\",\"Afectat sau NU?\",IF(AN81=\"DA\",IF(((AI81+AJ81)-(AE81+AF81))*24<-720,\"Neinformat\",((AI81+AJ81)-(AE81+AF81))*24),\"Nu a fost afectat producator/consumator\")),\"\")","v":-15.46666666661622},21,21,{"$f":"IF(B81=\"X\",IF(AN81=\"\",\"Afectat sau NU?\",IF(AN81=\"DA\",((AG81+AH81)-(AE81+AF81))*24,\"Nu a fost afectat producator/consumator\")),\"\")","v":10.900000000081491},0,0,null,null,null,null,{"$f":"IF(C81=\"X\",IF(AN81=\"\",\"Afectat sau NU?\",IF(AN81=\"DA\",IF(AK81=\"\",\"Neinformat\",NETWORKDAYS(AK81+AL81,AE81+AF81,$BR$3:$BR$13)-1),\"Nu a fost afectat producator/consumator\")),\"\")","v":""},"","",{"$f":"IF(C81=\"X\",IF(AN81=\"\",\"Afectat sau NU?\",IF(AN81=\"DA\",IF(AI81=\"\",\"Neinformat\",NETWORKDAYS(AI81+AJ81,AE81+AF81,$BR$3:$BR$13)-1),\"Nu a fost afectat producator/consumator\")),\"\")","v":""},"","",{"$f":"IF(C81=\"X\",IF(AN81=\"\",\"Afectat sau NU?\",IF(AN81=\"DA\",((AG81+AH81)-(Z81+AA81))*24,\"Nu a fost afectat producator/consumator\")),\"\")","v":""},"",""]
[74,"X","-","Cuplare deviere conductă 16” Gura Șuții - București, zona Dragomirești",179249,"Chiajna","Ilfov",574824.61,328018.73,575177.67000000004,327177.67,"-","-","SM0911D0","CEFIN (IVECO) Chiajna","-","-","-","-","SM-SD001","Alpiq Romindustries, Nova Power, Cez Vânzare, Cis Gaz, Distrigaz Vest, Engie România, Axpo Energy, E-on Energie, Electrocentrale București, Energy Distribution, Enel Energie, Gaz Est, C-Gaz&Energy, Premier Energy, OMV Petrom, Energy Gas, Restart Energy, RWE Supply, Tinmar, WIEE România, Met România","Distrigaz Sud Rețele","-","2017-12-20","07:00:00","2017-12-20","19:00:00","București","Efectuată",null,"2017-12-20","08:30:00","2017-12-20","19:27:00","2017-12-19","17:05:00","2017-12-14","11:59:00","9542/19.12.2017","DA",null,null,null,-140.51666666666279,1,1,-15.416666666627862,21,21,10.950000000069849,0,0,null,null,null,null,"","","","","","","","",""]
[75,"X","-","Remediere defect pe conducta 10” Alunu - Zătreni, zona separator Văleni",170346,"Grădiștea","Vâlcea",408180.68900000001,379756.527,408180.68900000001,379756.527,"-","-","-","-","-","-","PM0053","Grădiștea","PM-PP001","Alpha Metal, Alpiq Romindustries, Nova Power, Cez Vânzare, Cis Gaz, Complex Energetic Hunedoara, Distrigaz Vest, Engie România, E-on Energie, Electrocentrale București, Energy Distribution, E.on Gaz Furnizare, C-Gaz&Energy, Gaz Est, Met România, Ottogaz, Premier Energy, Petrom, Energy Gas, Restart Energy, Romgaz, RWE Supply, Saint Gobain, Tinmar, WIEE România","Romgaz, Petrom","-","2017-12-23","09:40:00","2017-12-23","14:30:00","Craiova","Efectuată",null,"2017-12-23","09:40:00","2017-12-23","14:00:00",null,null,"2017-12-23","09:00:00","-","DA","mail de informare primit de la Dan Lazarescu sâmbătă 23 dec, zi nelucrătoare",null,null,-0.66666666674427688,2,2,"Neinformat",0,25,4.3333333333139308,0,0,null,null,null,null,"","","","","","","","",""]
[{"$f":"A83+1","v":76},"X","-","Reducere temporară a presiunii de ieșire din SRM Colonești - la solicitarea Distrigaz Sud Rețele",126228,"Colonești","Olt",475916.12141999998,349886.81706999999,475916.12141999998,349886.81706999999,"SM0964D0","Colonești","-","-","-","-","-","-","SM-SD001","Premier Energy, Engie România","Distrigaz Sud Rețele","-","2018-01-10","10:30:00","2018-01-10","14:30:00","Craiova","Efectuată",null,"2018-01-10","10:30:00","2018-01-10","14:30:00",null,null,"2018-01-09","09:24:00","-","NU",null,null,null,"Nu a fost afectat producator/consumator","-","-","Nu a fost afectat producator/consumator","-","-","Nu a fost afectat producator/consumator","-","-",null,null,null,null,"","","","","","","","",""]
[77,"X","-","Probleme tehnice în instalația tehnologică SRM Porumbenii Mici",85127,"Porumbenii Mici","Harghita",508390.27,530075.37,508390.27,530075.37,"-","-","SM0382D0","Porumbenii Mici","-","-","-","-","SM-SD001","Alpiq Romindustries, Met România","Harghita Gaz","-","2018-01-14","17:35:00","2018-01-14","18:35:00","Brașov","Efectuată",null,"2018-01-14","17:35:00","2018-01-14","18:35:00",null,null,"2018-01-14","17:37:00","-","NU",null,null,null,"Nu a fost afectat producator/consumator","-","-","Nu a fost afectat producator/consumator","-","-","Nu a fost afectat producator/consumator","-","-",null,null,null,null,"","","","","","","","",""]
[78,"-","X","Sistematizare conducte în zona NT Moșu",101564,"Butimanu","Dîmbovița",575362.14300000004,342970.90700000001,571035.05799999996,354388.152,"-","-","SM1066D0","Butimanu Înmagazinat","-","-","-","-","VSM01","Engie România, WIEE România","Romgaz - Depozit","aprilie - iunie 2018",null,null,null,null,"București",null,null,null,null,null,null,null,null,null,null,null,null,null,null,null,"","","","","","","","","",null,null,null,null,"Afectat sau NU?","-","-","Afectat sau NU?","-","-","Afectat sau NU?","-","-"]
[79,"-","X","Modernizare alimentare cu gaze naturale a municipiului Ploiești",130892,"Strejnic","Prahova",582017.65599999996,384857.52299999999,580681.36300000001,385825.565,"-","-","SM0124D0","Strejnic","-","-","-","-","SM-SD001","Engie România, Premier Energy","Distrigaz Sud Rețele","aprilie - iunie 2018",null,null,null,null,"București",null,null,null,null,null,null,null,null,null,null,null,null,null,null,null,"","","","","","","","","",null,null,null,null,"Afectat sau NU?","-","-","Afectat sau NU?","-","-","Afectat sau NU?","-","-"]
[80,"-","X","Modernizare alimentare cu gaze naturale a municipiului Ploiești",130534,"Ploiești","Prahova",582017.65599999996,384857.52299999999,580681.36300000001,385825.565,"-","-","SM0130D1","SC VEGA Ploiești","-","-","-","-","SM-CF001","OMV Petrom","Rompetrol Vega Ploiești","aprilie - iunie 2018",null,null,null,null,"București",null,null,null,null,null,null,null,null,null,null,null,null,null,null,null,"","","","","","","","","",null,null,null,null,"Afectat sau NU?","-","-","Afectat sau NU?","-","-","Afectat sau NU?","-","-"]
[81,"-","X","Modernizare alimentare cu gaze naturale a municipiului Ploiești",130534,"Ploiești","Prahova",582017.65599999996,384857.52299999999,580681.36300000001,385825.565,"-","-","SM0130D2 ","Ploiești Nord colonie ","-","-","-","-","SM-SD001","Cez Vânzare, Engie România, E-on Enrgie, Met România, Premier Enrgy, OMV Petrom, Energy Gas, Restart Energy","Distrigaz Sud Rețele","aprilie - iunie 2018",null,null,null,null,"București",null,null,null,null,null,null,null,null,null,null,null,null,null,null,null,{"$f":"IF(B89=\"X\",IF(AN89=\"\",\"Afectat sau NU?\",IF(AN89=\"DA\",IF(((AK89+AL89)-(AE89+AF89))*24<-720,\"Neinformat\",((AK89+AL89)-(AE89+AF89))*24),\"Nu a fost afectat producator/consumator\")),\"\")","v":""},{"$f":"IF(B89=\"X\",IF(AN89=\"DA\",IF(AR89<6,LEN(TRIM(V89))-LEN(SUBSTITUTE(V89,CHAR(44),\"\"))+1,0),\"-\"),\"\")","v":""},{"$f":"IF(B89=\"X\",IF(AN89=\"DA\",LEN(TRIM(V89))-LEN(SUBSTITUTE(V89,CHAR(44),\"\"))+1,\"-\"),\"\")","v":""},{"$f":"IF(B89=\"X\",IF(AN89=\"\",\"Afectat sau NU?\",IF(AN89=\"DA\",IF(((AI89+AJ89)-(AE89+AF89))*24<-720,\"Neinformat\",((AI89+AJ89)-(AE89+AF89))*24),\"Nu a fost afectat producator/consumator\")),\"\")","v":""},{"$f":"IF(B89=\"X\",IF(AN89=\"DA\",IF(AU89<6,LEN(TRIM(U89))-LEN(SUBSTITUTE(U89,CHAR(44),\"\"))+1,0),\"-\"),\"\")","v":""},{"$f":"IF(B89=\"X\",IF(AN89=\"DA\",LEN(TRIM(U89))-LEN(SUBSTITUTE(U89,CHAR(44),\"\"))+1,\"-\"),\"\")","v":""},{"$f":"IF(B89=\"X\",IF(AN89=\"\",\"Afectat sau NU?\",IF(AN89=\"DA\",((AG89+AH89)-(AE89+AF89))*24,\"Nu a fost afectat producator/consumator\")),\"\")","v":""},{"$f":"IF(B89=\"X\",IF(AN89=\"DA\",IF(AX89>24,IF(AQ89=\"NU\",0,LEN(TRIM(V89))-LEN(SUBSTITUTE(V89,CHAR(44),\"\"))+1),0),\"-\"),\"\")","v":""},{"$f":"IF(B89=\"X\",IF(AN89=\"DA\",IF(AX89>24,LEN(TRIM(V89))-LEN(SUBSTITUTE(V89,CHAR(44),\"\"))+1,0),\"-\"),\"\")","v":""},null,null,null,null,"Afectat sau NU?",{"$f":"IF(C89=\"X\",IF(AN89=\"DA\",IF(AND(BE89>=5,AK89<>\"\"),LEN(TRIM(V89))-LEN(SUBSTITUTE(V89,CHAR(44),\"\"))+1,0),\"-\"),\"\")","v":"-"},{"$f":"IF(C89=\"X\",IF(AN89=\"DA\",LEN(TRIM(V89))-LEN(SUBSTITUTE(V89,CHAR(44),\"\"))+1,\"-\"),\"\")","v":"-"},"Afectat sau NU?",{"$f":"IF(C89=\"X\",IF(AN89=\"DA\",IF(AND(BH89>=5,AI89<>\"\"),LEN(TRIM(U89))-LEN(SUBSTITUTE(U89,CHAR(44),\"\"))+1,0),\"-\"),\"\")","v":"-"},{"$f":"IF(C89=\"X\",IF(AN89=\"DA\",LEN(TRIM(U89))-LEN(SUBSTITUTE(U89,CHAR(44),\"\"))+1,\"-\"),\"\")","v":"-"},{"$f":"IF(C89=\"X\",IF(AN89=\"\",\"Afectat sau NU?\",IF(AN89=\"DA\",((AG89+AH89)-(Z89+AA89))*24,\"Nu a fost afectat producator/consumator\")),\"\")","v":"Afectat sau NU?"},{"$f":"IF(C89=\"X\",IF(AN89<>\"DA\",\"-\",IF(AND(AN89=\"DA\",BK89<=0),LEN(TRIM(V89))-LEN(SUBSTITUTE(V89,CHAR(44),\"\"))+1+LEN(TRIM(U89))-LEN(SUBSTITUTE(U89,CHAR(44),\"\"))+1,0)),\"\")","v":"-"},{"$f":"IF(C89=\"X\",IF(AN89=\"DA\",LEN(TRIM(V89))-LEN(SUBSTITUTE(V89,CHAR(44),\"\"))+1+LEN(TRIM(U89))-LEN(SUBSTITUTE(U89,CHAR(44),\"\"))+1,\"-\"),\"\")","v":"-"}]
[82,"-","X","Modernizare alimentare cu gaze naturale a municipiului Ploiești",132075,"Stoenești","Prahova",582017.65599999996,384857.52299999999,580681.36300000001,385825.565,"-","-","SM0121D0","Stoienești","-","-","-","-","SM-SD001","Engie România, E-on Energie","Distrigaz Sud Rețele","aprilie - iunie 2018",null,null,null,null,"București",null,null,null,null,null,null,null,null,null,null,null,null,null,null,null,"","","","","","","","","",null,null,null,null,"Afectat sau NU?","-","-","Afectat sau NU?","-","-","Afectat sau NU?","-","-"]
[83,"-","X","Modernizare alimentare cu gaze naturale a municipiului Ploiești",132075,"Aricești Rahtivani","Prahova",565988.75199999998,384473.08899999998,566751.09499999997,384322.74599999998,"-","-","SM0120D0","Aricești","-","-","-","-","SM-SD001","Engie România, Energy Gas, Tinmar","Distrigaz Sud Rețele","aprilie - iunie 2018",null,null,null,null,"București",null,null,null,null,null,null,null,null,null,null,null,null,null,null,null,"","","","","","","","","",null,null,null,null,"Afectat sau NU?","-","-","Afectat sau NU?","-","-","Afectat sau NU?","-","-"]
[84,"-","X","Modernizare alimentare cu gaze naturale a municipiului Ploiești",130534,"Ploiești","Prahova",578793.96799999999,380660.897,565576.07999999996,380715.14199999999,"-","-","SM0122D0","Crângul lui Bot","-","-","-","-","SM-SD001","Engie România","Distrigaz Sud Rețele","aprilie - iunie 2018",null,null,null,null,"București",null,null,null,null,null,null,null,null,null,null,null,null,null,null,null,"","","","","","","","","",null,null,null,null,"Afectat sau NU?","-","-","Afectat sau NU?","-","-","Afectat sau NU?","-","-"]
[85,"-","X","Montare gară de primire godevil pe conducta 20” Șendreni - Albești",49661,"Bărbuncești","Buzău",625768.21,414382.25,625768.21,414382.25,"-","-","-","-","PM0032","Bărbuncești","-","-","PM-PP001","Alpha Metal, Alpiq Romindustries, Cez Vânzare, Cis Gaz, Distrigaz Vest, Engie România, E-on Energie, Energy Distribution, Enel, E.on Gaz Furnizare, Gaz Est, C-Gaz Energy, Met România, Next Energy, Ottogaz, Premier Energy, OMV Petrom, Energy Gas, Restart Energy, Saint Gobain, Tinmar, WIEE România","OMV Petrom","aprilie - iunie \nmai - iunie 2018",null,null,null,null,"Brăila",null,"Ordin de sistare a lucrărilor datorat condițiilor meteo nefavorabile și accesului dificil în teren",null,null,null,null,null,null,null,null,null,null,null,null,null,"","","","","","","","","",null,null,null,null,"Afectat sau NU?","-","-","Afectat sau NU?","-","-","Afectat sau NU?","-","-"]
[86,"-","X","Reabilitare conductă 20” Hurezani - Hațeg, jud. Hunedoara, subtraversare DN66",78463,"Țicleni","Gorj",376120.48,380646.45,376120.48,380646.45,"-","-","-","-","PM0272","Dezbenzinare Țicleni","-","-","PM-PP001","Alpha Metal, Alpiq Romindustries, Cez Vânzare, Cis Gaz, Distrigaz Vest, Engie România, E-on Energie, Energy Distribution, Enel, E.on Gaz Furnizare, Gaz Est, C-Gaz Energy, Met România, Next Energy, Ottogaz, Premier Energy, OMV Petrom, Energy Gas, Restart Energy, Saint Gobain, Tinmar, WIEE România","OMV Petrom","aprilie - septembrie \nmai - octombrie 2018",null,null,null,null,"Craiova",null,"Avize neobținute în totalitate momentan",null,null,null,null,null,null,null,null,null,null,null,null,null,"","","","","","","","","",null,null,null,null,"Afectat sau NU?","-","-","Afectat sau NU?","-","-","Afectat sau NU?","-","-"]
[87,"-","X","Reabilitare conductă 20” Hurezani - Hațeg, jud. Hunedoara, subtraversare DN66",71064,"Brădești","Dolj",393288.95,331381.36,393288.95,331381.36,null,"-","-","-","PM0277","Brădești","-","-","PM-PP001","Alpha Metal, Nova Power, Cez Vânzare, Cis Gaz, Distrigaz Vest, Engie România, E-on Energie, Energy Distribution, E.on Gaz Furnizare, Gaz Est, Met România, Next Energy, Premier Energy, OMV Petrom, Energy Gas, Restart Energy, Saint Gobain, WIEE România","OMV Petrom","aprilie - septembrie \nmai - octombrie 2018",null,null,null,null,"Craiova",null,"Avize neobținute în totalitate momentan",null,null,null,null,null,null,null,null,null,null,null,null,null,"","","","","","","","","",null,null,null,null,"Afectat sau NU?","-","-","Afectat sau NU?","-","-","Afectat sau NU?","-","-"]
[88,"-","X","Reabilitare conductă 20” Hurezani - Hațeg, jud. Hunedoara, subtraversare DN66",81816,"Bibești","Gorj",381014.72,363384.3,381014.72,363384.3,"-","-","-","-","PM0196","Bibești","-","-","PM-PP001","Cez Vânzare, Distrigaz Vest, Engie România, E.on Energie, Enel, Energia Gas & Power, Met România, Next Energy, Premier Energy, OMV Petrom, Restart Energy, RWE Supply, Wiee România","Romgaz, Amronco Energy","aprilie - septembrie \nmai - octombrie 2018",null,null,null,null,"Craiova",null,"Avize neobținute în totalitate momentan",null,null,null,null,null,null,null,null,null,null,null,null,null,"","","","","","","","","",null,null,null,null,"Afectat sau NU?","-","-","Afectat sau NU?","-","-","Afectat sau NU?","-","-"]
[89,"-","X","Reabilitare conductă 20” Hurezani - Hațeg, jud. Hunedoara, subtraversare DN66",78828,"Socu","Gorj",379651.04,377092.85,379651.04,377092.85,"-","-","-","-","PM0065","Socu","-","-","PM-PP001","Alpha Metal, Nova Power, Complexul Energetic Hunedoara, Engie România, E-on Energie, Electrocentrale București, E.on Gaz Furnizare, Ottogaz, Premier Energy, Restart Energy, SNGN Romgaz, Tinmar","Amronco Energy","aprilie - septembrie \nmai - octombrie 2018",null,null,null,null,"Craiova",null,"Avize neobținute în totalitate momentan",null,null,null,null,null,null,null,null,null,null,null,null,null,"","","","","","","","","",null,null,null,null,"Afectat sau NU?","-","-","Afectat sau NU?","-","-","Afectat sau NU?","-","-"]
[90,"-","X","Reabilitare conductă 20” Hurezani - Hațeg, jud. Hunedoara, subtraversare DN66",78828,"Socu","Gorj",379648.41,377091.82,379648.41,377091.82,"-","-","-","-","PM0289","Socu II","-","-","PM-PP001","Alpha Metal, Nova Power, Complexul Energetic Hunedoara, Engie România, E-on Energie, Electrocentrale București, E.on Gaz Furnizare, Ottogaz, Premier Energy, Restart Energy, SNGN Romgaz, Tinmar","Amronco Energy","aprilie - septembrie \nmai - octombrie 2018",null,null,null,null,"Craiova",null,"Avize neobținute în totalitate momentan",null,null,null,null,null,null,null,null,null,null,null,null,null,"","","","","","","","","",null,null,null,null,"Afectat sau NU?","-","-","Afectat sau NU?","-","-","Afectat sau NU?","-","-"]
[91,"-","X","Conducta 12” Drăgășani - Caracal, subtraversare râu Olt",125472,"Caracal","Olt",460257.4093,298101.53899999999,449764.9228,290090.97009999998,"-","-","SM0934D0","Caracal","-","-","-","-","SM-SD001","Cez Vânzare, Engie România, E-on Energie, Premier Energy, OMV Petrom, Energy Gas, Restart Energy, Tinmar","Distrigaz Sud Rețele","iulie - septembrie 2018",null,null,null,null,"Craiova",null,null,null,null,null,null,null,null,null,null,null,null,null,null,null,"","","","","","","","","",null,null,null,null,"Afectat sau NU?","-","-","Afectat sau NU?","-","-","Afectat sau NU?","-","-"]
[92,"-","X","Conducta 20” Schitu Golești - Țigveni - refacere traversare râu Argeș, zona Valea Danului, et.I și et.II",13819,"Albeștii de Argeș","Argeș",474251.59220000001,409341.53989999997,461815.1715,401058.3432,"-","-","SM1244D0","Albești de Argeș","-","-","-","-","SM-SD001","Cez Vânzare, Engie România","Distrigaz Sud Rețele","iulie - septembrie 2018",null,null,null,null,"Craiova",null,null,null,null,null,null,null,null,null,null,null,null,null,null,null,"","","","","","","","","",null,null,null,null,"Afectat sau NU?","-","-","Afectat sau NU?","-","-","Afectat sau NU?","-","-"]
[93,"-","X","Conducta 20” Schitu Golești - Țigveni - refacere traversare râu Argeș, zona Valea Danului, et.I și et.II",19249,"Blaju","Argeș",474251.59220000001,409341.53989999997,461815.1715,401058.3432,"-","-","-","-","-","-","PM0288","Ciofrângeni","PM-PP001","Nova power, Cez Vânzare, Distrigaz vest, Engie România, E-on Energie, Enel, Met România, Premier Energy, OMV Petrom, RWE Supply, WIEE România","Amronco Energy","iulie - septembrie 2018",null,null,null,null,"Craiova",null,null,null,null,null,null,null,null,null,null,null,null,null,null,null,"","","","","","","","","",null,null,null,null,"Afectat sau NU?","-","-","Afectat sau NU?","-","-","Afectat sau NU?","-","-"]
[94,"-","X","Înlocuire conductă de racord SRM Comănești II",20821,"Comănești","Bacău",613079.43000000005,546959.34,613298.43999999994,546937.11,"-","-","SM1156D0","Comănești II","-","-","-","-","SM-SD001","Cez Vânzare, Cis Gaz, Engie România, E-on Energie, Enel, E.on Gaz Furnizare, Premier Energy, OMV Petrom, Restart Energy, Tinmar","Delgaz Grid","aprilie - iunie 2018",null,null,null,null,"Bacău","Efectuată",null,null,null,null,null,null,null,null,null,null,null,"Nefiin specificat in FM, a fost efectuata ca si lucrare neprogramata si publicata la pozitia 229",null,null,"","","","","","","","","",null,null,null,null,"Afectat sau NU?","-","-","Afectat sau NU?","-","-","Afectat sau NU?","-","-"]
[95,"-","X","Adaptare la teren SRM DEJ II",55008,"Dej","Cluj",415417.21,629079.68000000005,415417.21,629079.68000000005,"-","-","SM0546D1","Dej II oraș","-","-","-","-","SM-SD001","Alpiq Romindustries, Nova Power, Cez Vânzare, Cis Gaz, Engie România, E-on Energie, Enel, Energia Gas & Power, E.on Gaz Furnizare, Gaz Est, Premier Energy, OMV Petrom, Restart Energy, RWE Supply, Tinmar","Delgaz Grid","aprilie - iunie \nmai - iunie 2018",null,null,null,null,"Cluj",null,"În funcție de disponibilitatea Sucursalei Mediaș",null,null,null,null,null,null,null,null,null,null,null,null,null,"","","","","","","","","",null,null,null,null,"Afectat sau NU?","-","-","Afectat sau NU?","-","-","Afectat sau NU?","-","-"]
[96,"-","X","Adaptare la teren SRM DEJ II",55008,"Dej","Cluj",415417.21,629079.68000000005,415417.21,629079.68000000005,"-","-","SM0546D2","Dej II industrie","-","-","-","-","SM-SD001","Alpiq Romindustries, Nova Power, Cez Vânzare, Cis Gaz, Engie România, E-on Energie, Enel, Energia Gas & Power, E.on Gaz Furnizare, Gaz Est, Premier Energy, OMV Petrom, Restart Energy, RWE Supply, Tinmar","Delgaz Grid","aprilie - iunie \nmai - iunie 2018",null,null,null,null,"Cluj",null,"În funcție de disponibilitatea Sucursalei Mediaș",null,null,null,null,null,null,null,null,null,null,null,null,null,"","","","","","","","","",null,null,null,null,"Afectat sau NU?","-","-","Afectat sau NU?","-","-","Afectat sau NU?","-","-"]
[97,"-","X","Punere în siguranță conducta de racord SRM Răcăciuni, zona popas turistic Dumbrava",24766,"Răcăciuni","Bacău",653314.98,541191.14,653314.98,541191.14,"-","-","SM0505D0","Răcăciuni","-","-","-","-","SM-SD001","E-on Energie, E.on Gaz Furnizare","Delgaz Grid","iulie - septembrie 2018",null,null,null,null,"Bacău",null,null,null,null,null,null,null,null,null,null,null,null,null,null,null,"","","","","","","","","",null,null,null,null,"Afectat sau NU?","-","-","Afectat sau NU?","-","-","Afectat sau NU?","-","-"]
[98,"-","X","Punere în siguranță conducta de racord SRM Brăila, zona Ferma Agricolă",42682,"Brăila","Brăila",722659.63,428684.71,730172.74,425143.96,"-","-","SM0529D0","Brăila","-","-","-","-","SM-SD001","Alpiq Romindustries, Cez Vânzare, Cis Gaz, Engie România, E-on Energie, Energy Distribution, Enel, Gaz Est, Premier Energy, OMV Petrom, Energy Gas, Restart Energy, Tinmar, WIEE România","Distrigaz Sud Rețele","iulie - septembrie 2018",null,null,null,null,"Brăila",null,null,null,null,null,null,null,null,null,null,null,null,null,null,null,"","","","","","","","","",null,null,null,null,"Afectat sau NU?","-","-","Afectat sau NU?","-","-","Afectat sau NU?","-","-"]
[99,"-","X","Punere în siguranță conducta de racord SRM Brăila, zona Ferma Agricolă",42682,"Brăila","Brăila",722659.63,428684.71,730172.74,425143.96,"-","-","SM0530D0","SC Comsuin Brăila","-","-","-","-","SM-SD001","Engie România, Energy Distribution, Premier Energy","Distrigaz Sud Rețele","iulie - septembrie 2018",null,null,null,null,"Brăila",null,null,null,null,null,null,null,null,null,null,null,null,null,null,null,"","","","","","","","","",null,null,null,null,"Afectat sau NU?","-","-","Afectat sau NU?","-","-","Afectat sau NU?","-","-"]
[100,"-","X","Reparație conductă 12” Turburea - Turceni, tronson Aninoasa - Turceni",81264,"Plopșoru","Dolj",378027.11609999998,356211.29509999999,374011.13299999997,354479.24400000001,"-","-","SM1166D0","Turceni","-","-","-","-","SM-SD001","Cez vânzare, Engie România, E-on Energie, OMV Petrom","Distrigaz Sud Rețele","iulie 2018",null,null,null,null,"Craiova",null,null,null,null,null,null,null,null,null,null,null,null,null,null,null,"","","","","","","","","",null,null,null,null,"Afectat sau NU?","-","-","Afectat sau NU?","-","-","Afectat sau NU?","-","-"]
[101,"-","X","Reparație conductă 16” Govora - Drăgășani ",168372,"Băbeni","Vâlcea",440989.94199999998,386476.45699999999,440127.88900000002,372025.92300000001,"-","-","SM0224D0","Băbeni","-","-","-","-","SM-SD001","Alpiq Romindustries, Nova Power, Cez Vânzare, Engie România, Met România, SNGN Romgaz","Distrigaz Sud Rețele","iunie 2018",null,null,null,null,"Craiova",null,null,null,null,null,null,null,null,null,null,null,null,null,null,null,"","","","","","","","","",null,null,null,null,"Afectat sau NU?","-","-","Afectat sau NU?","-","-","Afectat sau NU?","-","-"]
[102,"-","X","Reparație conductă 16” Govora - Drăgășani ",172377,"Popești","Vâlcea",440989.94199999998,386476.45699999999,440127.88900000002,372025.92300000001,"-","-","-","-","-","-","PM0034","Popești Lăpușata","PM-PP001","Alpha Metal, Nova Power, Cez Vânzare, Cis Gaz, Distrigaz Vest, Engie România, E-on Energie, Energy Distribution, E.on Gaz Furnizare, Gaz Est, Met România, Next Energy, Premier Energy, OMV Petrom, Energy Gas, Restart Energy, Saint Gobain, WIEE România","OMV Petrom","iunie 2018",null,null,null,null,"Craiova",null,null,null,null,null,null,null,null,null,null,null,null,null,null,null,"","","","","","","","","",null,null,null,null,"Afectat sau NU?","-","-","Afectat sau NU?","-","-","Afectat sau NU?","-","-"]
[103,"-","X","Reparație conductă 20” Hurezani - Corbu - Bucuresti F2, tronson Drăgășani - Corbu, zona Jitaru - Oporelu","80515\n","Hurezani\n","Gorj\n",453702.58600000001,343855.375,463374.12099999998,337922.342,"-","-","-","-","PM0205\n"," Hurezani SU\n","-","-","PM-PP001","Alpha Metal, Nova Power, Complexul Energetic Hunedoara, Engie România, E-on Energie, Electrocentrale București, E.on Gaz Furnizare, Ottogaz, Premier Energy, Restart Energy, SNGN Romgaz, Tinmar","Romgaz","iulie - august 2018",null,null,null,null,"Craiova",null,null,null,null,null,null,null,null,null,null,null,null,null,null,null,"","","","","","","","","",null,null,null,null,"Afectat sau NU?","-","-","Afectat sau NU?","-","-","Afectat sau NU?","-","-"]
[104,"-","X","Reparație conductă 20” Hurezani - Corbu - Bucuresti F2, tronson Drăgășani - Corbu, zona Jitaru - Oporelu",80506,"Hurezani\n","Gorj\n",453702.58600000001,343855.375,463374.12099999998,337922.342,"-","-","-","-","PM0062\n"," Hurezani Bulbuceni\n","-","-","PM-PP001","Alpha Metal, Nova Power, Cez Vânzare, Cis Gaz, Distrigaz Vest, Engie România, E-on Energie, Energy Distribution, E.on Gaz Furnizare, Gaz Est, Met România, Next Energy, Premier Energy, OMV Petrom, Energy Gas, Restart Energy, Saint Gobain, WIEE România","OMV Petrom","iulie - august 2018",null,null,null,null,"Craiova",null,null,null,null,null,null,null,null,null,null,null,null,null,null,null,"","","","","","","","","",null,null,null,null,"Afectat sau NU?","-","-","Afectat sau NU?","-","-","Afectat sau NU?","-","-"]
[105,"-","X","Reparație conductă 20” Hurezani - Corbu - Bucuresti F2, tronson Drăgășani - Corbu, zona Jitaru - Oporelu",80757,"Hurezani\n","Gorj\n",453702.58600000001,343855.375,463374.12099999998,337922.342,"-","-","-","-","PM0253\n"," Hurezani Bustuchini\n ","-","-","PM-PP001","Alpha Metal, Nova Power, Cez Vânzare, Cis Gaz, Distrigaz Vest, Engie România, E-on Energie, Energy Distribution, E.on Gaz Furnizare, Gaz Est, Met România, Next Energy, Premier Energy, OMV Petrom, Energy Gas, Restart Energy, Saint Gobain, WIEE România","OMV Petrom","iulie - august 2018",null,null,null,null,"Craiova",null,null,null,null,null,null,null,null,null,null,null,null,null,null,null,"","","","","","","","","",null,null,null,null,{"$f":"IF(C113=\"X\",IF(AN113=\"\",\"Afectat sau NU?\",IF(AN113=\"DA\",IF(AK113=\"\",\"Neinformat\",NETWORKDAYS(AK113+AL113,AE113+AF113,$BR$3:$BR$13)-1),\"Nu a fost afectat producator/consumator\")),\"\")","v":"Afectat sau NU?"},"-","-",{"$f":"IF(C113=\"X\",IF(AN113=\"\",\"Afectat sau NU?\",IF(AN113=\"DA\",IF(AI113=\"\",\"Neinformat\",NETWORKDAYS(AI113+AJ113,AE113+AF113,$BR$3:$BR$13)-1),\"Nu a fost afectat producator/consumator\")),\"\")","v":"Afectat sau NU?"},"-","-","Afectat sau NU?","-","-"]
[106,"-","X","Reparație conductă 20” Hurezani - Corbu - Bucuresti F2, tronson Drăgășani - Corbu, zona Jitaru - Oporelu","172377\n","Popești","Vâlcea",453702.58600000001,343855.375,463374.12099999998,337922.342,"-","-","-","-","PM0034"," Popești Lăpușata","-","-","PM-PP001","Alpha Metal, Nova Power, Cez Vânzare, Cis Gaz, Distrigaz Vest, Engie România, E-on Energie, Energy Distribution, E.on Gaz Furnizare, Gaz Est, Met România, Next Energy, Premier Energy, OMV Petrom, Energy Gas, Restart Energy, Saint Gobain, WIEE România","OMV Petrom","iulie - august 2018",null,null,null,null,"Craiova",null,null,null,null,null,null,null,null,null,null,null,null,null,null,null,"","","","","","","","","",null,null,null,null,"Afectat sau NU?","-","-","Afectat sau NU?","-","-","Afectat sau NU?","-","-"]
[107,"-","X","Reparație conductă 20” Hurezani - Corbu - Bucuresti F2, tronson Drăgășani - Corbu, zona Jitaru - Oporelu",168434,"Tătărani","Vâlcea",453702.58600000001,343855.375,463374.12099999998,337922.342,"-","-","-","-","PM0068"," Tătărani","-","-","PM-PP001","Alpha Metal, Nova Power, Cez Vânzare, Cis Gaz, Distrigaz Vest, Engie România, E-on Energie, Energy Distribution, E.on Gaz Furnizare, Gaz Est, Met România, Next Energy, Premier Energy, OMV Petrom, Energy Gas, Restart Energy, Saint Gobain, WIEE România","OMV Petrom","iulie - august 2018",null,null,null,null,"Craiova",null,null,null,null,null,null,null,null,null,null,null,null,null,null,null,"","","","","","","","","",null,null,null,null,"Afectat sau NU?","-","-","Afectat sau NU?","-","-","Afectat sau NU?","-","-"]
[108,"-","X","Reparație conductă 20” Hurezani - Corbu - Bucuresti F2, tronson Drăgășani - Corbu, zona Jitaru - Oporelu",170872,"Pârâienii de Jos","Vâlcea",453702.58600000001,343855.375,463374.12099999998,337922.342,"-","-","-","-","PM0259"," Pârâienii de Jos","-","-","PM-PP001","Alpha Metal, Nova Power, Cez Vânzare, Cis Gaz, Distrigaz Vest, Engie România, E-on Energie, Energy Distribution, E.on Gaz Furnizare, Gaz Est, Met România, Next Energy, Premier Energy, OMV Petrom, Energy Gas, Restart Energy, Saint Gobain, WIEE România","OMV Petrom","iulie - august 2018",null,null,null,null,"Craiova",null,null,null,null,null,null,null,null,null,null,null,null,null,null,null,"","","","","","","","","",null,null,null,null,"Afectat sau NU?","-","-","Afectat sau NU?","-","-","Afectat sau NU?","-","-"]
[109,"-","X","Reparație conductă 20” Hurezani - Corbu - Bucuresti F2, tronson Drăgășani - Corbu, zona Jitaru - Oporelu",170346,"Grădiștea ","Vâlcea",453702.58600000001,343855.375,463374.12099999998,337922.342,"-","-","-","-","PM0053"," Grădiștea","-","-","PM-PP001","Alpha Metal, Nova Power, Cez Vânzare, Complexul Energetic Hunedoara, Cis Gaz, Distrigaz Vest, Engie România, E-on Energie, Electrocentrale București, Energy Distribution, E.on Gaz Furnizare, Gaz Est, Met România, Next Energy, Ottogaz, Premier Energy, OMV Petrom, Energy Gas, Restart Energy, Saint Gobain, WIEE România, SNGN Romgaz, Tinmar","Romgaz, OMV Petrom","iulie - august 2018",null,null,null,null,"Craiova",null,null,null,null,null,null,null,null,null,null,null,null,null,null,null,"","","","","","","","","",null,null,null,null,"Afectat sau NU?","-","-","Afectat sau NU?","-","-","Afectat sau NU?","-","-"]
[110,"-","X","Reparație conductă 20” Hurezani - Corbu - Bucuresti F2, tronson Drăgășani - Corbu, zona Jitaru - Oporelu",82243,"Stejari (Bălcești)","Gorj",453702.58600000001,343855.375,463374.12099999998,337922.342,"-","-","-","-","PM0206"," Piscu Stejari SU","-","-","PM-PP001","Alpha Metal, Nova Power, Complexul Energetic Hunedoara, Engie România, E-on Energie, Electrocentrale București, E.on Gaz Furnizare, Ottogaz, Premier Energy, Restart Energy, SNGN Romgaz, Tinmar","Romgaz","iulie - august 2018",null,null,null,null,"Craiova",null,null,null,null,null,null,null,null,null,null,null,null,null,null,null,"","","","","","","","","",null,null,null,null,"Afectat sau NU?","-","-","Afectat sau NU?","-","-","Afectat sau NU?","-","-"]
[111,"-","X","Reparație conductă 20” Hurezani - Corbu - Bucuresti F2, tronson Drăgășani - Corbu, zona Jitaru - Oporelu",80070,"Hălăngești ","Gorj",453702.58600000001,343855.375,463374.12099999998,337922.342,"-","-","-","-","PM0064"," Hălăngești","-","-","PM-PP001","Alpha Metal, Nova Power, Cez Vânzare, Cis Gaz, Distrigaz Vest, Engie România, E-on Energie, Energy Distribution, E.on Gaz Furnizare, Gaz Est, Met România, Next Energy, Premier Energy, OMV Petrom, Energy Gas, Restart Energy, Saint Gobain, WIEE România","OMV Petrom","iulie - august 2018",null,null,null,null,"Craiova",null,null,null,null,null,null,null,null,null,null,null,null,null,null,null,"","","","","","","","","",null,null,null,null,"Afectat sau NU?","-","-","Afectat sau NU?","-","-","Afectat sau NU?","-","-"]
[112,"-","X","Reparație conductă 20” Hurezani - Corbu - Bucuresti F2, tronson Drăgășani - Corbu, zona Jitaru - Oporelu",174290,"Zătreni","Vâlcea",453702.58600000001,343855.375,463374.12099999998,337922.342,"-","-","-","-","PM0270","SU Zătreni","-","-","PM-PP001","Alpha Metal, Nova Power, Cez Vânzare, Complexul Energetic Hunedoara, Distrigaz Est, Engie România, E-on Energie, Enel, Electrocentrale București, E.on Gaz Furnizare, Ottogaz, Met România, Premier Energy, OMV Petrom, Restart Energy, RWE România, SNGN Romgaz, Tinmar, WIEE România","Romgaz, Amronco Energy","iulie - august 2018",null,null,null,null,"Craiova",null,null,null,null,null,null,null,null,null,null,null,null,null,null,null,"","","","","","","","","",null,null,null,null,"Afectat sau NU?","-","-","Afectat sau NU?","-","-","Afectat sau NU?","-","-"]
[113,"-","X","Reparație conductă 20” Hurezani - Corbu - Bucuresti F2, tronson Drăgășani - Corbu, zona Jitaru - Oporelu",174290,"Zătreni","Vâlcea",453702.58600000001,343855.375,463374.12099999998,337922.342,"-","-","-","-","PM0054"," Zătreni","-","-","PM-PP001","Alpha Metal, Nova Power, Cez Vânzare, Complexul Energetic Hunedoara, Distrigaz Est, Engie România, E-on Energie, Enel, Electrocentrale București, E.on Gaz Furnizare, Ottogaz, Met România, Premier Energy, OMV Petrom, Restart Energy, RWE România, SNGN Romgaz, Tinmar, WIEE România","Romgaz, Amronco Energy","iulie - august 2018",null,null,null,null,"Craiova",null,null,null,null,null,null,null,null,null,null,null,null,null,null,null,"","","","","","","","","",null,null,null,null,"Afectat sau NU?","-","-","Afectat sau NU?","-","-","Afectat sau NU?","-","-"]
[114,"-","X","Reparație conductă 20” Hurezani - Corbu - Bucuresti F2, tronson Drăgășani - Corbu, zona Jitaru - Oporelu",171209,"Mamu","Vâlcea",453702.58600000001,343855.375,463374.12099999998,337922.342,"-","-","-","-","PM0296"," Mamu (Crețeni)","-","-","PM-PP001","Alpha Metal, Nova Power, Cez Vânzare, Cis Gaz, Distrigaz Vest, Engie România, E-on Energie, Energy Distribution, E.on Gaz Furnizare, Gaz Est, Met România, Next Energy, Premier Energy, OMV Petrom, Energy Gas, Restart Energy, Saint Gobain, WIEE România","OMV Petrom","iulie - august 2018",null,null,null,null,"Craiova",null,null,null,null,null,null,null,null,null,null,null,null,null,null,null,"","","","","","","","","",null,null,null,null,"Afectat sau NU?","-","-","Afectat sau NU?","-","-","Afectat sau NU?","-","-"]
[115,"-","X","Reparație conductă 20” Hurezani - Corbu - Bucuresti F2, tronson Drăgășani - Corbu, zona Jitaru - Oporelu",171218,"Mădulari","Vâlcea",453702.58600000001,343855.375,463374.12099999998,337922.342,"-","-","-","-","PM0191"," Mădulari","-","-","PM-PP001","Alpha Metal, Nova Power, Cez Vânzare, Cis Gaz, Distrigaz Vest, Engie România, E-on Energie, Enel, Energy Distribution, E.on Gaz Furnizare, Gaz Est, Met România, Next Energy, Premier Energy, OMV Petrom, Energy Gas, Restart Energy, RWE România, Saint Gobain, WIEE România","OMV Petrom, Amronco Energy","iulie - august 2018",null,null,null,null,"Craiova",null,null,null,null,null,null,null,null,null,null,null,null,null,null,null,"","","","","","","","","",null,null,null,null,"Afectat sau NU?","-","-","Afectat sau NU?","-","-","Afectat sau NU?","-","-"]
[116,"-","X","Reparație conductă 20” Țicleni - Turcinești ",77812,"Târgu Jiu","Gorj",371137.06599999999,386056.68199999997,374136.34299999999,380014.31599999999,"-","-","SM0083D0","SC Avicola Tg. Jiu","-","-","-","-","SM-SD001","Cez Vânzare, Cis Gaz, Distrigaz Vest, Engie România, E-on Energie, Enel, Premier Energy, OMV Petrom, Energy Gas, Restart Energy, RWE Supply, Tinmar","Distrigaz Sud Rețele","mai 2018",null,null,null,null,"Craiova",null,null,null,null,null,null,null,null,null,null,null,null,null,null,null,"","","","","","","","","",null,null,null,null,"Afectat sau NU?","-","-","Afectat sau NU?","-","-","Afectat sau NU?","-","-"]
[117,"-","X","Reparație conductă 20” Țicleni - Turcinești ",78463,"Țicleni","Gorj",371137.06599999999,386056.68199999997,374136.34299999999,380014.31599999999,"-","-","-","-","-","-","PM0198","Țicleni Târgug Jiu","PM-PP001","Alpha Metal, Nova Power, Cez Vânzare, Cis Gaz, Distrigaz Vest, Engie România, E-on Energie, Energy Distribution, E.on Gaz Furnizare, Gaz Est, Met România, Next Energy, Premier Energy, OMV Petrom, Energy Gas, Restart Energy, Saint Gobain, WIEE România","OMV Petrom","mai 2018",null,null,null,null,"Craiova",null,null,null,null,null,null,null,null,null,null,null,null,null,null,null,"","","","","","","","","",null,null,null,null,"Afectat sau NU?","-","-","Afectat sau NU?","-","-","Afectat sau NU?","-","-"]
[118,"-","X","Reparație conductă 3” racord SRM Bisericani",124938,"Bisericani","Neamț",596489.62472199998,605291.12254999997,594513.16851800005,607367.57725700003,"-","-","SM0456D0","Spitalul de Pneumoftiziologie Bisericani","-","-","-","-","SM-CF001","Met România","Spitalul de Pneumoftiziologie Bisericani","mai 2018",null,null,null,null,"Bacău",null,null,null,null,null,null,null,null,null,null,null,null,null,null,null,"","","","","","","","","",null,null,null,null,"Afectat sau NU?","-","-","Afectat sau NU?","-","-","Afectat sau NU?","-","-"]
[119,"-","X","Reparație conductă racord SRM Livezi localitate",23289,"Livezi","Bacău",633283.34,546591.74,633307.15,546563.16,"-","-","SM1265D0","Livezi","-","-","-","-",null,"punctul nu este momerntan pus în funcțiune",null,"iulie 2018",null,null,null,null,"Bacău",null,null,null,null,null,null,null,null,null,null,null,null,null,null,null,"","","","","","","","","",null,null,null,null,"Afectat sau NU?","-","-","Afectat sau NU?","-","-","Afectat sau NU?","-","-"]
[120,"-","X","Reparație conductă 4” racord SRM Zagna Vădeni (R307-R198 și R198-R308), zona Vădeni            ",44391,"Vădeni","Brăila",726933.61,434717.27,728268.27,433340.27,"-","-","SM0532D0","Zagna Vădeni","-","-","-","-","SM-SD001","Engie România, Enel, Premier Energy","Distrigaz Sud Rețele","aprilie - septembrie\niunie - septembrie 2018",null,null,null,null,"Brăila",null,"condiții meteo nefavorabile și acces dificil în teren",null,null,null,null,null,null,null,null,null,null,null,null,null,"","","","","","","","","",null,null,null,null,"Afectat sau NU?","-","-","Afectat sau NU?","-","-","Afectat sau NU?","-","-"]
[121,"-","X","Reparație conductă 24” Peceneaga - Siliștea (R21-R20), zona Tichilești",43313,"Gropeni","Brăila",728735.12,411121.88,728184.03,400321.14,"-","-","SM0115D0","SC Tebu Consult Invest Gropeni","-","-","-","-","SM-CF001","Tinmar","Tebu Consult Invest","aprilie - septembrie \naugust - octombrie 2018",null,null,null,null,"Brăila",null,"acces dificil în teren,\ncondiții de debit redus,\nacces prin culturi agricole de sezon",null,null,null,null,null,null,null,null,null,null,null,null,null,"","","","","","","","","",null,null,null,null,"Afectat sau NU?","-","-","Afectat sau NU?","-","-","Afectat sau NU?","-","-"]
[122,"-","X","Reparație conductă 24” Peceneaga - Siliștea (R21-R20), zona Tichilești",44177,"Tichilești","Brăila",728735.12,411121.88,728184.03,400321.14,"-","-","SM0528D0","Tichilești","-","-","-","-","SM-SD001","Engie România, E-on Energie","Distrigaz Sud Rețele","aprilie - septembrie \naugust - octombrie 2018",null,null,null,null,"Brăila",null,"acces dificil în teren,\ncondiții de debit redus,\nacces prin culturi agricole de sezon",null,null,null,null,null,null,null,null,null,null,null,null,null,"","","","","","","","","",null,null,null,null,"Afectat sau NU?","-","-","Afectat sau NU?","-","-","Afectat sau NU?","-","-"]
[123,"-","X","Reparație conductă 20” Adjudul Vechi - Siliștea, zona Malul Alb (R67-R68)",76692,"Matca","Galați",689722,482285.32,702807.18,468728.4,"-","-","SM0980D0","Matca (Vega 93)","-","-","-","-","SM-SD001","Engie România, Enel","Vega 93","aprilie - septembrie \niunie - septembre 2018",null,null,null,null,"Brăila",null,"acces dificil prin culturi agricole de sezon",null,null,null,null,null,null,null,null,null,null,null,null,null,"","","","","","","","","",null,null,null,null,"Afectat sau NU?","-","-","Afectat sau NU?","-","-","Afectat sau NU?","-","-"]
[124,"-","X","Reparație conductă 16” racord SRM Vaslui, înlocuire R96 și eliminare separator",162194,"Sălcioara","Vaslui",702930.04,531560.03,715279.04,557596.13,"-","-","SM1130D0","Sălcioara","-","-","-","-","SM-SD001","WIEE România","Delgaz Grid","aprilie - septembrie \nmai - septembrie 2018",null,null,null,null,"Brăila",null,"se urmăresc condiții de debit redus (consumuri mici pe perioada anotimpului cald)",null,null,null,null,null,null,null,null,null,null,null,null,null,"","","","","","","","","",null,null,null,null,"Afectat sau NU?","-","-","Afectat sau NU?","-","-","Afectat sau NU?","-","-"]
[125,"-","X","Reparație conductă 16” racord SRM Vaslui, înlocuire R96 și eliminare separator",163137,"Chițcani","Vaslui",702930.04,531560.03,715279.04,557596.13,"-","-","SM1256D0","SC FNC Safir Chițcani","-","-","-","-","SM-CF001","WIEE România","Safir","aprilie - septembrie \nmai - septembrie 2018",null,null,null,null,"Brăila",null,"se urmăresc condiții de debit redus (consumuri mici pe perioada anotimpului cald)",null,null,null,null,null,null,null,null,null,null,null,null,null,"","","","","","","","","",null,null,null,null,"Afectat sau NU?","-","-","Afectat sau NU?","-","-","Afectat sau NU?","-","-"]
[126,"-","X","Reparație conductă 16” racord SRM Vaslui, înlocuire R96 și eliminare separator",163137,"Costești","Vaslui",702930.04,531560.03,715279.04,557596.13,"-","-","SM1114D0","Chițcani","-","-","-","-","SM-SD001","Gaz Est","Gaz Est","aprilie - septembrie \nmai - septembrie 2018",null,null,null,null,"Brăila",null,"se urmăresc condiții de debit redus (consumuri mici pe perioada anotimpului cald)",null,null,null,null,null,null,null,null,null,null,null,null,null,"","","","","","","","","",null,null,null,null,"Afectat sau NU?","-","-","Afectat sau NU?","-","-","Afectat sau NU?","-","-"]
[127,"-","X","Reparație conductă 16” racord SRM Vaslui, înlocuire R96 și eliminare separator",165817,"Roșiești","Vaslui",702930.04,531560.03,715279.04,557596.13,"-","-","SM1150D0","SC Sagem Roșiești","-","-","-","-","SM-CF001","WIEE România","Sagem","aprilie - septembrie \nmai - septembrie 2018",null,null,null,null,"Brăila",null,"se urmăresc condiții de debit redus (consumuri mici pe perioada anotimpului cald)",null,null,null,null,null,null,null,null,null,null,null,null,null,"","","","","","","","","",null,null,null,null,"Afectat sau NU?","-","-","Afectat sau NU?","-","-","Afectat sau NU?","-","-"]
[127.1,"-","X","Reparație conductă 16” racord SRM Vaslui, înlocuire R96 și eliminare separator",162194,"Gara Banca","Vaslui",702930.04,531560.03,715279.04,557596.13,"-","-","SM1185D0","Gara Banca","-","-","-","-","SM-SD001","Gaz Est","Gaz Est","mai - septembrie 2018",null,null,null,null,"Brăila",null,"se urmăresc condiții de debit redus (consumuri mici pe perioada anotimpului cald).\nSRM nou pus în funcție PIF : 18.12.2017",null,null,null,null,null,null,null,null,null,null,null,null,null,null,null,null,null,null,"",null,null,null,null,null,null,null,null,null,null,null,null,"-",null,null,"-"]
[{"$f":"A135+1","v":128},"-","X","Reparație conductă 16” racord SRM Vaslui, înlocuire R96 și eliminare separator",165817,"Roșiești","Vaslui",702930.04,531560.03,715279.04,557596.13,"-","-","SM1238D0","Roșiești","-","-","-","-","SM-SD001","Gaz Est","Gaz Est","aprilie - septembrie \nmai - septembrie 2018",null,null,null,null,"Brăila",null,"se urmăresc condiții de debit redus (consumuri mici pe perioada anotimpului cald)",null,null,null,null,null,null,null,null,null,null,null,null,null,"","","","","","","","","",null,null,null,null,"Afectat sau NU?","-","-","Afectat sau NU?","-","-","Afectat sau NU?","-","-"]
[129,"-","X","Reparație conductă 20” Bârghiș - Făgăraș, tronson Cincu - Făgăraș",40820,"Cincu","Brașov",485001.60684999998,491486.84542000003,481681,499886,"-","-","SM0786D0","Cincu","-","-","-","-","SM-SD001","Engie România, E-on Energie","Distrigaz Sud Rețele","iunie - septembrie 2018",null,null,null,null,"Mediaș",null,null,null,null,null,null,null,null,null,null,null,null,null,null,null,"","","","","","","","","",null,null,null,null,"Afectat sau NU?","-","-","Afectat sau NU?","-","-","Afectat sau NU?","-","-"]
[130,"-","X","Reparație conductă 10” Pct.B - Victoria - defecte de coroziune",42101,"Ucea de Jos","Brașov",474295.75397000002,477143.14286000002,475942.20400000003,472860.79700000002,"-","-","SM0811D0","Ucea de Jos","-","-","-","-","SM-SD001","Engie România, OMV Petrom","Distrigaz Sud Rețele","mai - septembrie 2018",null,null,null,null,"Brașov",null,null,null,null,null,null,null,null,null,null,null,null,null,null,null,"","","","","","","","","",null,null,null,null,"Afectat sau NU?","-","-","Afectat sau NU?","-","-","Afectat sau NU?","-","-"]
[131,"-","X","Reparație conductă 10” Pct.B - Victoria - defecte de coroziune",42101,"Ucea de Sus","Brașov",474295.75397000002,477143.14286000002,475942.20400000003,472860.79700000002,"-","-","SM0812D0","Ucea de Sus","-","-","-","-","SM-SD001","Engie România","Distrigaz Sud Rețele","mai - septembrie 2018",null,null,null,null,"Brașov",null,null,null,null,null,null,null,null,null,null,null,null,null,null,null,"","","","","","","","","",null,null,null,null,"Afectat sau NU?","-","-","Afectat sau NU?","-","-","Afectat sau NU?","-","-"]
[132,"-","X","Reparație conductă racord SRM Vard",144456,"Vard","Sibiu",467779,494027,468618,494023,"-","-","SM0789D0","Vard","-","-","-","-","SM-SD001","E-on Energie, E.on Gaz Furnizare","Delgaz Grid","iunie 2018",null,null,null,null,"Mediaș",null,null,null,null,null,null,null,null,null,null,null,null,null,null,null,"","","","","","","","","",null,null,null,null,"Afectat sau NU?","-","-","Afectat sau NU?","-","-","Afectat sau NU?","-","-"]
[133,"-","X","Reparație conductă 10” racord Beclean - Năsăud",34903,"Cociu","Bistrița Năsăud",437752.71499499999,629581.66003200004,448508.545422,641785.32882599998,"-","-","SM0027D0","Cociu","-","-","-","-","SM-SD001","E-on Energie, E.on Gaz Furnizare","Delgaz Grid","iunie - iulie 2018",null,null,null,null,"Cluj",null,null,null,null,null,null,null,null,null,null,null,null,null,null,null,"","","","","","","","","",null,null,null,null,"Afectat sau NU?","-","-","Afectat sau NU?","-","-","Afectat sau NU?","-","-"]
[134,"-","X","Reparație conductă 10” racord Beclean - Năsăud",33122,"Chiuza","Bistrița Năsăud",437752.71499499999,629581.66003200004,448508.545422,641785.32882599998,"-","-","SM1269D0","Chiuza","-","-","-","-","SM-SD001","OMV Petrom","Premier Energy","iunie - iulie 2018",null,null,null,null,"Cluj",null,null,null,null,null,null,null,null,null,null,null,null,null,null,null,"","","","","","","","","",null,null,null,null,"Afectat sau NU?","-","-","Afectat sau NU?","-","-","Afectat sau NU?","-","-"]
[135,"-","X","Reparație conductă 10” racord Beclean - Năsăud",32544,"Năsăud","Bistrița Năsăud",437752.71499499999,629581.66003200004,448508.545422,641785.32882599998,"-","-","SM0870D0","Năsăud","-","-","-","-","SM-SD001","Nova power, Cis Gaz, Engie România, E-on Energie, Enel, Premier Energy","CPL Concordia","iunie - iulie 2018",null,null,null,null,"Cluj",null,null,null,null,null,null,null,null,null,null,null,null,null,null,null,"","","","","","","","","",null,null,null,null,"Afectat sau NU?","-","-","Afectat sau NU?","-","-","Afectat sau NU?","-","-"]
[136,"-","X","Reparație conductă racord Abrămuț - Petrom ",27178,"Abrămuţ","Bihor",294775.56679299998,651782.20349800005,294775.56679299998,651782.20349800005,"-","-","-","-","-","-","PM0083","Abrămuţ","PM-PP001","Alpha Metal, Nova Power, Cez Vânzare, Cis Gaz, Distrigaz Vest, Engie România, E-on Energie, Energy Distribution, E.on Gaz Furnizare, Gaz Est, Met România, Next Energy, Premier Energy, OMV Petrom, Energy Gas, Restart Energy, Saint Gobain, WIEE România","OMV Petrom","mai - iunie 2018",null,null,null,null,"Cluj",null,null,null,null,null,null,null,null,null,null,null,null,null,null,null,"","","","","","","","","",null,null,null,null,"Afectat sau NU?","-","-","Afectat sau NU?","-","-","Afectat sau NU?","-","-"]
[137,"-","X","Reparație Panou Vaidei ",118575,"Vaideiu","Mureș",448030.67194099998,556139.22179800004,448030.67194099998,556139.22179800004,"-","-","-","-","-","-","PM0136","Vaideiu SU","PM-PP001","Alpha Metal, Nova Power, Complexul Energetic Hunedoara, Engie România, E-on Energie, Electrocentrale București, E.on Gaz Furnizare, Ottogaz, Premier Energy, Restart Energy, SNGN Romgaz, Tinmar","Romgaz","iunie - iulie 2018",null,null,null,null,"Cluj",null,null,null,null,null,null,null,null,null,null,null,null,null,null,null,"","","","","","","","","",null,null,null,null,{"$f":"IF(C146=\"X\",IF(AN146=\"\",\"Afectat sau NU?\",IF(AN146=\"DA\",IF(AK146=\"\",\"Neinformat\",NETWORKDAYS(AK146+AL146,AE146+AF146,$BR$3:$BR$13)-1),\"Nu a fost afectat producator/consumator\")),\"\")","v":"Afectat sau NU?"},"-","-",{"$f":"IF(C146=\"X\",IF(AN146=\"\",\"Afectat sau NU?\",IF(AN146=\"DA\",IF(AI146=\"\",\"Neinformat\",NETWORKDAYS(AI146+AJ146,AE146+AF146,$BR$3:$BR$13)-1),\"Nu a fost afectat producator/consumator\")),\"\")","v":"Afectat sau NU?"},"-","-","Afectat sau NU?","-","-"]
[138,"-","X","Reparație Panou Vaidei ",117667,"Iclănzel","Mureș",448030.67194099998,556139.22179800004,448030.67194099998,556139.22179800004,"-","-","SM0672D0","Iclănzel","-","-","-","-","SM-SD001","Alpiq Romindustries, Engie România, E-on Energie, Enel, E.on Gaz Furnizare, Restart Energiy","Delgaz Grid","iunie - iulie 2018",null,null,null,null,"Cluj",null,null,null,null,null,null,null,null,null,null,null,null,null,null,null,"","","","","","","","","",null,null,null,null,"Afectat sau NU?","-","-","Afectat sau NU?","-","-","Afectat sau NU?","-","-"]
[139,"-","X","Lucrări de mentenanță pe conducta 12” racord SRM Roșiori de Vede",151870,"Roșiorii de Vede","Teleorman",482098.38199999998,278705.44199999998,493993.49400000001,285232.495,"-","-","SM0082D0","Roșiorii de Vede","-","-","-","-","SM-SD001","Cez Vânzare, Engie România, E-on Energie, Premier Energy, Restart Energy","Premier Energy","septembrie 2018",null,null,null,null,"Craiova",null,null,null,null,null,null,null,null,null,null,null,null,null,null,null,"","","","","","","","","",null,null,null,null,"Afectat sau NU?","-","-","Afectat sau NU?","-","-","Afectat sau NU?","-","-"]
[140,"-","X","Lucrări de mentenanță pe conducta 12” Strâmba - Turcineşti, zona SRM Câlnic",80846,"Mătăsari","Gorj",346261.03100000002,379765.54300000001,347430.94300000003,386957.87599999999,"-","-","SM0994D0","Mătăsari","-","-","-","-","SM-SD001","Cez Vânzare, Engie România, OMV Petrom","Distrigaz Sud Rețele","august 2018",null,null,null,null,"Craiova",null,null,null,null,null,null,null,null,null,null,null,null,null,null,null,"","","","","","","","","",null,null,null,null,"Afectat sau NU?","-","-","Afectat sau NU?","-","-","Afectat sau NU?","-","-"]
[141,"-","X","Lucrări de mentenanță pe conducta 12” Strâmba - Turcineşti, zona SRM Câlnic",78141,"Motru","Gorj",346261.03100000002,379765.54300000001,347430.94300000003,386957.87599999999,"-","-","SM0993D0"," Motru","-","-","-","-","SM-SD001","Cez Vânzare, Cis Gaz, Engie România, E-on Energie, Premier Energy, OMV Petrom, Restart Energy","Premier Energy","august 2018",null,null,null,null,"Craiova",null,null,null,null,null,null,null,null,null,null,null,null,null,null,null,"","","","","","","","","",null,null,null,null,"Afectat sau NU?","-","-","Afectat sau NU?","-","-","Afectat sau NU?","-","-"]
[142,"-","X","Lucrări de mentenanță pe conducta 12” Strâmba - Turcineşti, zona SRM Câlnic",80427,"Godinești","Gorj",346261.03100000002,379765.54300000001,347430.94300000003,386957.87599999999,"-","-","SM0960D0","Godinești","-","-","-","-","SM-SD001","Cez Vânzare, Engie Rommânia","Distrigaz Sud Rețele","august 2018",null,null,null,null,"Craiova",null,null,null,null,null,null,null,null,null,null,null,null,null,null,null,"","","","","","","","","",null,null,null,null,"Afectat sau NU?","-","-","Afectat sau NU?","-","-","Afectat sau NU?","-","-"]
[143,"-","X","Lucrări de mentenanță pe conducta 12” Strâmba - Turcineşti, zona SRM Câlnic",82617,"Strâmba Jiu","Gorj",346261.03100000002,379765.54300000001,347430.94300000003,386957.87599999999,"-","-","-","-","-","-","PM0197","Strâmba","PM-PP001","Alpha Metal, Nova Power, Cez Vânzare, Complexul Energetic Hunedoara, Distrigaz Vest, Engie România, E-on Energie, Enel, Electrocentrale București, E.on Gaz Furnizare, Met România, Ottogaz, Premier Energy, OMV Petrom, Restart Energy, RWE România, SNGN Romgaz, Tinmar, WIEE România","Romgaz, Amronco Energy","august 2018",null,null,null,null,"Craiova",null,null,null,null,null,null,null,null,null,null,null,null,null,null,null,"","","","","","","","","",null,null,null,null,"Afectat sau NU?","-","-","Afectat sau NU?","-","-","Afectat sau NU?","-","-"]
[144,"-","X","Lucrări de mentenanță pe conducta 16” Slătioarele - Vața",19793,"Vața","Argeș",474706.092,359387.538,477763.848,369836.35200000001,"-","-","SM0219D0","Vața","-","-","-","-","SM-SD001","Engie România","Distrigaz Sud Rețele","august 2018",null,null,null,null,"Craiova",null,null,null,null,null,null,null,null,null,null,null,null,null,null,null,"","","","","","","","","",null,null,null,null,"Afectat sau NU?","-","-","Afectat sau NU?","-","-","Afectat sau NU?","-","-"]
[145,"-","X","Lucrări de mentenanță pe conducta 16” Slătioarele - Vața",18028,"Poiana Lacului","Argeș",474706.092,359387.538,477763.848,369836.35200000001,"-","-","SM1258D0","Poiana Lacului","-","-","-","-","SM-SD001","OMV Petrom, Restart Energy","Tehnologia Radion","august 2018",null,null,null,null,"Craiova",null,null,null,null,null,null,null,null,null,null,null,null,null,null,null,{"$f":"IF(B154=\"X\",IF(AN154=\"\",\"Afectat sau NU?\",IF(AN154=\"DA\",IF(((AK154+AL154)-(AE154+AF154))*24<-720,\"Neinformat\",((AK154+AL154)-(AE154+AF154))*24),\"Nu a fost afectat producator/consumator\")),\"\")","v":""},{"$f":"IF(B154=\"X\",IF(AN154=\"DA\",IF(AR154<6,LEN(TRIM(V154))-LEN(SUBSTITUTE(V154,CHAR(44),\"\"))+1,0),\"-\"),\"\")","v":""},{"$f":"IF(B154=\"X\",IF(AN154=\"DA\",LEN(TRIM(V154))-LEN(SUBSTITUTE(V154,CHAR(44),\"\"))+1,\"-\"),\"\")","v":""},{"$f":"IF(B154=\"X\",IF(AN154=\"\",\"Afectat sau NU?\",IF(AN154=\"DA\",IF(((AI154+AJ154)-(AE154+AF154))*24<-720,\"Neinformat\",((AI154+AJ154)-(AE154+AF154))*24),\"Nu a fost afectat producator/consumator\")),\"\")","v":""},{"$f":"IF(B154=\"X\",IF(AN154=\"DA\",IF(AU154<6,LEN(TRIM(U154))-LEN(SUBSTITUTE(U154,CHAR(44),\"\"))+1,0),\"-\"),\"\")","v":""},{"$f":"IF(B154=\"X\",IF(AN154=\"DA\",LEN(TRIM(U154))-LEN(SUBSTITUTE(U154,CHAR(44),\"\"))+1,\"-\"),\"\")","v":""},{"$f":"IF(B154=\"X\",IF(AN154=\"\",\"Afectat sau NU?\",IF(AN154=\"DA\",((AG154+AH154)-(AE154+AF154))*24,\"Nu a fost afectat producator/consumator\")),\"\")","v":""},{"$f":"IF(B154=\"X\",IF(AN154=\"DA\",IF(AX154>24,IF(AQ154=\"NU\",0,LEN(TRIM(V154))-LEN(SUBSTITUTE(V154,CHAR(44),\"\"))+1),0),\"-\"),\"\")","v":""},{"$f":"IF(B154=\"X\",IF(AN154=\"DA\",IF(AX154>24,LEN(TRIM(V154))-LEN(SUBSTITUTE(V154,CHAR(44),\"\"))+1,0),\"-\"),\"\")","v":""},null,null,null,null,"Afectat sau NU?",{"$f":"IF(C154=\"X\",IF(AN154=\"DA\",IF(AND(BE154>=5,AK154<>\"\"),LEN(TRIM(V154))-LEN(SUBSTITUTE(V154,CHAR(44),\"\"))+1,0),\"-\"),\"\")","v":"-"},{"$f":"IF(C154=\"X\",IF(AN154=\"DA\",LEN(TRIM(V154))-LEN(SUBSTITUTE(V154,CHAR(44),\"\"))+1,\"-\"),\"\")","v":"-"},"Afectat sau NU?",{"$f":"IF(C154=\"X\",IF(AN154=\"DA\",IF(AND(BH154>=5,AI154<>\"\"),LEN(TRIM(U154))-LEN(SUBSTITUTE(U154,CHAR(44),\"\"))+1,0),\"-\"),\"\")","v":"-"},{"$f":"IF(C154=\"X\",IF(AN154=\"DA\",LEN(TRIM(U154))-LEN(SUBSTITUTE(U154,CHAR(44),\"\"))+1,\"-\"),\"\")","v":"-"},{"$f":"IF(C154=\"X\",IF(AN154=\"\",\"Afectat sau NU?\",IF(AN154=\"DA\",((AG154+AH154)-(Z154+AA154))*24,\"Nu a fost afectat producator/consumator\")),\"\")","v":"Afectat sau NU?"},{"$f":"IF(C154=\"X\",IF(AN154<>\"DA\",\"-\",IF(AND(AN154=\"DA\",BK154<=0),LEN(TRIM(V154))-LEN(SUBSTITUTE(V154,CHAR(44),\"\"))+1+LEN(TRIM(U154))-LEN(SUBSTITUTE(U154,CHAR(44),\"\"))+1,0)),\"\")","v":"-"},{"$f":"IF(C154=\"X\",IF(AN154=\"DA\",LEN(TRIM(V154))-LEN(SUBSTITUTE(V154,CHAR(44),\"\"))+1+LEN(TRIM(U154))-LEN(SUBSTITUTE(U154,CHAR(44),\"\"))+1,\"-\"),\"\")","v":"-"}]
[146,"-","X","Lucrări de mentenanță în SRM Bănești",132315,"Bănești","Prahova",559787.94700000004,399683.53100000002,559787.94700000004,399683.53100000002,"-","-","SM0092D0","Bănești","-","-","-","-","SM-SD001","Engie România, Tinmar","Distrigaz Sud Rețele","iunie 2018",null,null,null,null,"București",null,null,null,null,null,null,null,null,null,null,null,null,null,null,null,"","","","","","","","","",null,null,null,null,"Afectat sau NU?","-","-","Afectat sau NU?","-","-","Afectat sau NU?","-","-"]
[147,"-","X","Lucrări de mentenanță în SRM Moreni",65841,"Moreni","Dâmbovița",552087.19799999997,385342.33,552087.19799999997,385342.33,"-","-","SM0102D1","Moreni  ","-","-","-","-","SM-SD001","Cez Vânzare, Engie România, E-on Energie, Premier Energy","Distrigaz Sud Rețele","aprilie - iulie 2018",null,null,null,null,"București","Efectuată (NU a mai fost necesară întreruperea)",null,null,null,null,null,null,null,null,null,null,null,null,null,null,"","","","","","","","","",null,null,null,null,"Afectat sau NU?","-","-","Afectat sau NU?","-","-","Afectat sau NU?","-","-"]
[148,"-","X","Lucrări de mentenanță în SRM Moreni",67737,"Ghirdoveni","Dâmbovița",552087.19799999997,385342.33,552087.19799999997,385342.33,"-","-","SM0102D2","Moreni - Ghirdoveni","-","-","-","-","SM-SD001","Cez Vânzare, Engie România","Distrigaz Sud Rețele","aprilie - iulie 2018",null,null,null,null,"București","Efectuată (NU a mai fost necesară întreruperea)",null,null,null,null,null,null,null,null,null,null,null,null,null,null,"","","","","","","","","",null,null,null,null,"Afectat sau NU?","-","-","Afectat sau NU?","-","-","Afectat sau NU?","-","-"]
[149,"-","X","Lucrări de mentenanță pe conducta 20”' Ernei - Reghin",117177,"Gorneşti","Mureș",472177.99744499999,569756.78032400005,473998.14189199999,574954.81245900004,"-","-","SM0699D0","Gorneşti","-","-","-","-","SM-SD001","Alpiq Romindusrties, Cis Gaz, Engie România, E-on Energie, Enel, E.on Gaz Furnizare","Delgaz Grid","iulie - august 2018",null,null,null,null,"Cluj",null,null,null,null,null,null,null,null,null,null,null,null,null,null,null,"","","","","","","","","",null,null,null,null,"Afectat sau NU?","-","-","Afectat sau NU?","-","-","Afectat sau NU?","-","-"]
[150,"-","X","Lucrări de mentenanță pe conducta 20”' Ernei - Reghin",117177,"Periş","Mureș",472177.99744499999,569756.78032400005,473998.14189199999,574954.81245900004,"-","-","SM0701D0","Periş","-","-","-","-","SM-SD001","Alpiq Romindustries, Cez Vânzare, Cis Gaz, E-on Energie, Enel, E.on Gaz, Restart Energy","Delgaz Grid","iulie - august 2018",null,null,null,null,"Cluj",null,null,null,null,null,null,null,null,null,null,null,null,null,null,null,"","","","","","","","","",null,null,null,null,"Afectat sau NU?","-","-","Afectat sau NU?","-","-","Afectat sau NU?","-","-"]
[151,"-","X","Lucrări de mentenanță pe conducta 20”' Ernei - Reghin",118799,"Petelea","Mureș",472177.99744499999,569756.78032400005,473998.14189199999,574954.81245900004,"-","-","SM0710D0","Petelea","-","-","-","-","SM-SD001","Cis Gaz, E-on Energie, Enel, E.on Gaz Furnizare, Gaz Est, Restart Energy","Delgaz Grid","iulie - august 2018",null,null,null,null,"Cluj",null,null,null,null,null,null,null,null,null,null,null,null,null,null,null,"","","","","","","","","",null,null,null,null,"Afectat sau NU?","-","-","Afectat sau NU?","-","-","Afectat sau NU?","-","-"]
[152,"-","X","Lucrări de mentenanță pe conducta 20”' Ernei - Reghin",114809,"Reghin","Mureș",472177.99744499999,569756.78032400005,473998.14189199999,574954.81245900004,"-","-","SM0696D0","Reghin","-","-","-","-","SM-SD001","Alpiq Romindustries, Cez Vânzare, Cis Gaz, Engie România, E-on Energie, Enel, E.on Gaz Furnizare, Gaz Est, Met România, Premier Energy, OMV Petrom, Restart Energy","Delgaz Grid","iulie - august 2018",null,null,null,null,"Cluj",null,null,null,null,null,null,null,null,null,null,null,null,null,null,null,"","","","","","","","","",null,null,null,null,"Afectat sau NU?","-","-","Afectat sau NU?","-","-","Afectat sau NU?","-","-"]
[153,"-","X","Montare/înlocuire îmbinare electroizolanță pe conducta 8” Vața - Pitești Sud",13935,"Albota","Argeș",488282.29700000002,362733.68400000001,491673.72100000002,366155.92300000001,"-","-","SM1245D0","Albota","-","-","-","-","SM-SD001","Cez Vânzare, Engie România, Enel, Restart Energy, Tinmar","Distrigaz Sud Rețele","august 2018",null,null,null,null,"Craiova",null,null,null,null,null,null,null,null,null,null,null,null,null,null,null,"","","","","","","","","",null,null,null,null,"Afectat sau NU?","-","-","Afectat sau NU?","-","-","Afectat sau NU?","-","-"]
[154,"-","X","Montare/înlocuire îmbinare electroizolanță pe conducta 2” racord SRM Secuieni 1",124233,"Secuieni ","Neamț",642260.426661,597186.69621900003,642269.95571899996,597145.42458500003,"-","-","SM0472D0","SC SCAZ Secuieni I","-","-","-","-","SM-CF001","Gaz Est","SCAZ Secuieni","iulie 2018",null,null,null,null,"Bacău",null,null,null,null,null,null,null,null,null,null,null,null,null,null,null,"","","","","","","","","",null,null,null,null,"Afectat sau NU?","-","-","Afectat sau NU?","-","-","Afectat sau NU?","-","-"]
[155,"-","X","Montare/înlocuire îmbinare electroizolanță pe conducta 2” racord SRM Secuieni 2 ",124233,"Secuieni ","Neamț",640462.35116199998,596963.69362699997,640482.99326400005,596912.89293500001,"-","-","SM0481D0","SC SCAZ Secuieni II","-","-","-","-","SM-CF001","Gaz Est","SCAZ Secuieni","iulie 2018",null,null,null,null,"Bacău",null,null,null,null,null,null,null,null,null,null,null,null,null,null,null,"","","","","","","","","",null,null,null,null,"Afectat sau NU?","-","-","Afectat sau NU?","-","-","Afectat sau NU?","-","-"]
[156,"-","X","Montare/înlocuire îmbinare electroizolanță pe conducta 6” racord SRM Podoleni ",124625,"Podoleni","Neamț",622525.47635300003,589094.20635300002,622773.13130100002,588848.14168,"-","-","SM0939D0","Podoleni","-","-","-","-","SM-SD001","Engie România, E-on Energie, E.on Gaz Furnizare","Delgaz Grid","august 2018",null,null,null,null,"Bacău",null,null,null,null,null,null,null,null,null,null,null,null,null,null,null,"","","","","","","","","",null,null,null,null,"Afectat sau NU?","-","-","Afectat sau NU?","-","-","Afectat sau NU?","-","-"]
[157,"-","X","Montare/înlocuire îmbinare electroizolanță pe conducta 10 3/4” Tazlău - Săvinești",124616,"Tazlău","Neamț",613260.50357499998,581376.34801800002,613225.58045600005,581343.00888500002,"-","-","SM0452D0","Tazlău","-","-","-","-","SM-SD001","E-on Energie, E.on Gaz Furnizare, Met România","Delgaz Grid","august 2018",null,null,null,null,"Bacău",null,null,null,null,null,null,null,null,null,null,null,null,null,null,null,"","","","","","","","","",null,null,null,null,"Afectat sau NU?","-","-","Afectat sau NU?","-","-","Afectat sau NU?","-","-"]
[158,"-","X","Montare/înlocuire îmbinare electroizolanță pe conducta 10 3/4” Tazlău - Săvinești",124616,"Tazlău","Neamț",613260.50357499998,581376.34801800002,613225.58045600005,581343.00888500002,"-","-","-","-","-","-","PM0096","Tazlău","PM-PP001","Alpha Metal, Nova Power, Complexul Energetic Hunedoara, Engie România, E-on Energie, Electrocentrale București, E.on Gaz Furnizare, Ottogaz, Premier Energy, Restart Energy, SNGN Romgaz, Tinmar","Romgaz","august 2018",null,null,null,null,"Bacău",null,null,null,null,null,null,null,null,null,null,null,null,null,null,null,"","","","","","","","","",null,null,null,null,"Afectat sau NU?","-","-","Afectat sau NU?","-","-","Afectat sau NU?","-","-"]
[159,"-","X","Montare/înlocuire îmbinare electroizolanță pe conducta de racord SRM Vad",41818,"Vad","Brașov",511539.32152,478245.47863000003,477822,511691,"-","-","SM0021D0","Vad","-","-","-","-","SM-SD001","Engie România, E-on Energie","Distrigaz Sud Rețele","iulie 2018",null,null,null,null,"Brașov",null,null,null,null,null,null,null,null,null,null,null,null,null,null,null,"","","","","","","","","",null,null,null,null,"Afectat sau NU?","-","-","Afectat sau NU?","-","-","Afectat sau NU?","-","-"]
[160,"-","X","Montare/înlocuire îmbinare electroizolanță în SRM Șercaia",41818,"Șercaia","Brașov",508967.56782,481292.40377999999,481124,510692,"-","-","SM0019D0","Șercaia","-","-","-","-","SM-SD001","Engie România","Distrigaz Sud Rețele","iulie 2018",null,null,null,null,"Brașov",null,null,null,null,null,null,null,null,null,null,null,null,null,null,null,"","","","","","","","","",null,null,null,null,"Afectat sau NU?","-","-","Afectat sau NU?","-","-","Afectat sau NU?","-","-"]
[161,"-","X","Montare/înlocuire îmbinare electroizolanță în SRM Comana",40857," Comana","Brașov",519175.98452,490071.24725000001,490172,518741,"-","-","SM0025D0","Comana","-","-","-","-","SM-SD001","Engie România, Enel","Distrigaz Sud Rețele","iulie 2018",null,null,null,null,"Brașov",null,null,null,null,null,null,null,null,null,null,null,null,null,null,null,{"$f":"IF(B170=\"X\",IF(AN170=\"\",\"Afectat sau NU?\",IF(AN170=\"DA\",IF(((AK170+AL170)-(AE170+AF170))*24<-720,\"Neinformat\",((AK170+AL170)-(AE170+AF170))*24),\"Nu a fost afectat producator/consumator\")),\"\")","v":""},{"$f":"IF(B170=\"X\",IF(AN170=\"DA\",IF(AR170<6,LEN(TRIM(V170))-LEN(SUBSTITUTE(V170,CHAR(44),\"\"))+1,0),\"-\"),\"\")","v":""},{"$f":"IF(B170=\"X\",IF(AN170=\"DA\",LEN(TRIM(V170))-LEN(SUBSTITUTE(V170,CHAR(44),\"\"))+1,\"-\"),\"\")","v":""},{"$f":"IF(B170=\"X\",IF(AN170=\"\",\"Afectat sau NU?\",IF(AN170=\"DA\",IF(((AI170+AJ170)-(AE170+AF170))*24<-720,\"Neinformat\",((AI170+AJ170)-(AE170+AF170))*24),\"Nu a fost afectat producator/consumator\")),\"\")","v":""},{"$f":"IF(B170=\"X\",IF(AN170=\"DA\",IF(AU170<6,LEN(TRIM(U170))-LEN(SUBSTITUTE(U170,CHAR(44),\"\"))+1,0),\"-\"),\"\")","v":""},{"$f":"IF(B170=\"X\",IF(AN170=\"DA\",LEN(TRIM(U170))-LEN(SUBSTITUTE(U170,CHAR(44),\"\"))+1,\"-\"),\"\")","v":""},{"$f":"IF(B170=\"X\",IF(AN170=\"\",\"Afectat sau NU?\",IF(AN170=\"DA\",((AG170+AH170)-(AE170+AF170))*24,\"Nu a fost afectat producator/consumator\")),\"\")","v":""},{"$f":"IF(B170=\"X\",IF(AN170=\"DA\",IF(AX170>24,IF(AQ170=\"NU\",0,LEN(TRIM(V170))-LEN(SUBSTITUTE(V170,CHAR(44),\"\"))+1),0),\"-\"),\"\")","v":""},{"$f":"IF(B170=\"X\",IF(AN170=\"DA\",IF(AX170>24,LEN(TRIM(V170))-LEN(SUBSTITUTE(V170,CHAR(44),\"\"))+1,0),\"-\"),\"\")","v":""},null,null,null,null,"Afectat sau NU?",{"$f":"IF(C170=\"X\",IF(AN170=\"DA\",IF(AND(BE170>=5,AK170<>\"\"),LEN(TRIM(V170))-LEN(SUBSTITUTE(V170,CHAR(44),\"\"))+1,0),\"-\"),\"\")","v":"-"},{"$f":"IF(C170=\"X\",IF(AN170=\"DA\",LEN(TRIM(V170))-LEN(SUBSTITUTE(V170,CHAR(44),\"\"))+1,\"-\"),\"\")","v":"-"},"Afectat sau NU?",{"$f":"IF(C170=\"X\",IF(AN170=\"DA\",IF(AND(BH170>=5,AI170<>\"\"),LEN(TRIM(U170))-LEN(SUBSTITUTE(U170,CHAR(44),\"\"))+1,0),\"-\"),\"\")","v":"-"},{"$f":"IF(C170=\"X\",IF(AN170=\"DA\",LEN(TRIM(U170))-LEN(SUBSTITUTE(U170,CHAR(44),\"\"))+1,\"-\"),\"\")","v":"-"},{"$f":"IF(C170=\"X\",IF(AN170=\"\",\"Afectat sau NU?\",IF(AN170=\"DA\",((AG170+AH170)-(Z170+AA170))*24,\"Nu a fost afectat producator/consumator\")),\"\")","v":"Afectat sau NU?"},{"$f":"IF(C170=\"X\",IF(AN170<>\"DA\",\"-\",IF(AND(AN170=\"DA\",BK170<=0),LEN(TRIM(V170))-LEN(SUBSTITUTE(V170,CHAR(44),\"\"))+1+LEN(TRIM(U170))-LEN(SUBSTITUTE(U170,CHAR(44),\"\"))+1,0)),\"\")","v":"-"},{"$f":"IF(C170=\"X\",IF(AN170=\"DA\",LEN(TRIM(V170))-LEN(SUBSTITUTE(V170,CHAR(44),\"\"))+1+LEN(TRIM(U170))-LEN(SUBSTITUTE(U170,CHAR(44),\"\"))+1,\"-\"),\"\")","v":"-"}]
[{"$f":"A170+1","v":162},"-","X","Montare/înlocuire îmbinare electroizolanță în SRM Vârghiș",64997,"Vârghiș","Harghita",545495.68151999998,513386.56692000001,513364,545447,"-","-","SM0392D0","Vârghiș","-","-","-","-","SM-SD001","Engie România, Met România","Distrigaz Sud Rețele","august 2018",null,null,null,null,"Brașov",null,null,null,null,null,null,null,null,null,null,null,null,null,null,null,"","","","","","","","","",null,null,null,null,"Afectat sau NU?","-","-","Afectat sau NU?","-","-","Afectat sau NU?","-","-"]
[163,"-","X","Montare/înlocuire îmbinare electroizolanță în SRM Tabăra Creștină",84629,"Lueta","Harghita",543408.34510000004,536008.17645000003,535955,543400,"-","-","SM0413D0","Fundația Tabor Lueta","-","-","-","-","SM-CF001","Distrigaz Vest","Fundația Tabor","august 2018",null,null,null,null,"Brașov",null,null,null,null,null,null,null,null,null,null,null,null,null,null,null,"","","","","","","","","",null,null,null,null,"Afectat sau NU?","-","-","Afectat sau NU?","-","-","Afectat sau NU?","-","-"]
[164,"-","X","Montare/înlocuire îmbinare electroizolanță în SRM Noul Român",143959,"Noul Român","Brașov",467412.78827000002,479215.43604,479214,467412,"-","-","SM0794D0","Noul Român","-","-","-","-","SM-SD001","E-on Energie, E.on Gaz Furnizare, Restart Energy","Delgaz Grid","iulie 2018",null,null,null,null,"Brașov",null,null,null,null,null,null,null,null,null,null,null,null,null,null,null,"","","","","","","","","",null,null,null,null,"Afectat sau NU?","-","-","Afectat sau NU?","-","-","Afectat sau NU?","-","-"]
[165,"-","X","Montare/înlocuire îmbinare electroizolanță în SRM Ucea de Sus",42101,"Ucea de Sus","Brașov",475941.25771999999,472864.01864999998,472823,475828,"-","-","SM0812D0","Ucea de Sus","-","-","-","-","SM-SD001","Engie România","Distrigaz Sud Rețele","iulie 2018",null,null,null,null,"Brașov",null,null,null,null,null,null,null,null,null,null,null,null,null,null,null,"","","","","","","","","",null,null,null,null,"Afectat sau NU?","-","-","Afectat sau NU?","-","-","Afectat sau NU?","-","-"]
[166,"-","X","Montare/înlocuire îmbinare electroizolanță pe conducta de racord SRM Videle",151905,"Videle","Teleorman",543744.13899999997,321212.962,543274.56599999999,310044.61499999999,"-","-","SM1111D0","Videle","-","-","-","-","SM-SD001","Cez Vânzare, Engie România, E-on Energie, Gaz Est, Premier Energy, OMV Petrom, Energy Gas","Premier Energy","august 2018",null,null,null,null,"București",null,null,null,null,null,null,null,null,null,null,null,null,null,null,null,"","","","","","","","","",null,null,null,null,"Afectat sau NU?","-","-","Afectat sau NU?","-","-","Afectat sau NU?","-","-"]
[167,"-","X","Montare/înlocuire îmbinare electroizolanță pe conducta de racord SRM Videle",104225,"Mârșa","Giurgiu",543744.13899999997,321212.962,543274.56599999999,310044.61499999999,"-","-","SM1165D0","Depozit 160 Videle","-","-","-","-","SM-SD001","OMV Petrom","OMV Petrom","august 2018",null,null,null,null,"București",null,null,null,null,null,null,null,null,null,null,null,null,null,null,null,"","","","","","","","","",null,null,null,null,"Afectat sau NU?","-","-","Afectat sau NU?","-","-","Afectat sau NU?","-","-"]
[168,"-","X","Lucrări de mentenanță în SRM Focșani",174744,"Focșani","Vrancea",668732.43000000005,471274.5,668732.43000000005,471274.5,"-","-","SM0512D0","Focșani","-","-","-","-","SM-SD001","Nova power, Cez Vânzare, Engie România, E-on Energie, Energy Distribution, Enel, Energia Gas & Power, Gaz Est, Met România, Premier Energy, OMV Petrom, Energy Gas, Restart energy, RWE Supply, WIEE România","Distrigaz Sud Rețele","aprilie - septembrie \niulie - septembrie 2018",null,null,null,null,"Brăila",null,"se urmăresc condiții de debit redus (consumuri mici pe perioada anotimpului cald)",null,null,null,null,null,null,null,null,null,null,null,null,null,"","","","","","","","","",null,null,null,null,"Afectat sau NU?","-","-","Afectat sau NU?","-","-","Afectat sau NU?","-","-"]
[169,"-","X","Lucrări de mentenanță în SRM Chișcani",42708,"Chișcani","Brăila",727559.85,414006.44,727559.85,414006.44,"-","-","SM0531D1","Chișcani","-","-","-","-","SM-SD001","Cez Vânzare,  Engie România,  E-on Energie, Enel, Premier Energy","Distrigaz Sud Rețele","aprilie - septembrie \nmai - septembrie 2018",null,null,null,null,"Brăila",null,"se urmăresc condiții de debit redus (consumuri mici pe perioada anotimpului cald)",null,null,null,null,null,null,null,null,null,null,null,null,null,"","","","","","","","","",null,null,null,null,{"$f":"IF(C178=\"X\",IF(AN178=\"\",\"Afectat sau NU?\",IF(AN178=\"DA\",IF(AK178=\"\",\"Neinformat\",NETWORKDAYS(AK178+AL178,AE178+AF178,$BR$3:$BR$13)-1),\"Nu a fost afectat producator/consumator\")),\"\")","v":"Afectat sau NU?"},"-","-",{"$f":"IF(C178=\"X\",IF(AN178=\"\",\"Afectat sau NU?\",IF(AN178=\"DA\",IF(AI178=\"\",\"Neinformat\",NETWORKDAYS(AI178+AJ178,AE178+AF178,$BR$3:$BR$13)-1),\"Nu a fost afectat producator/consumator\")),\"\")","v":"Afectat sau NU?"},"-","-","Afectat sau NU?","-","-"]
[170,"-","X","Lucrări de mentenanță în SRM Mândra",41426,"Mândra","Brașov",479974,504159,479974,504159,"-","-","SM0020D0","Mândra BV","-","-","-","-","SM-SD001","Engie România","Distrigaz Sud Rețele","iulie 2018",null,null,null,null,"Brașov",null,null,null,null,null,null,null,null,null,null,null,null,null,null,null,"","","","","","","","","",null,null,null,null,"Afectat sau NU?","-","-","Afectat sau NU?","-","-","Afectat sau NU?","-","-"]
[171,"-","X","Lucrări de mentenanță în SRM Victoria II ",40465," Victoria","Brașov",466961,478828,466961,478828,"-","-","SM0817D1","SC Viromet Victoria","-","-","-","-","SM-CF001","WIEE România","Viromet","iulie 2018",null,null,null,null,"Brașov",null,null,null,null,null,null,null,null,null,null,null,null,null,null,null,"","","","","","","","","",null,null,null,null,"Afectat sau NU?","-","-","Afectat sau NU?","-","-","Afectat sau NU?","-","-"]
[172,"-","X","Lucrări de mentenanță în SRM Victoria II ",40465," Victoria","Brașov",466961,478828,466961,478828,"-","-","SM0817D2","Victoria - Cartier Sumerna","-","-","-","-","SM-SD001","Engie România","Distrigaz Sud Rețele","iulie 2018",null,null,null,null,"Brașov",null,null,null,null,null,null,null,null,null,null,null,null,null,null,null,"","","","","","","","","",null,null,null,null,"Afectat sau NU?","-","-","Afectat sau NU?","-","-","Afectat sau NU?","-","-"]
[173,"-","X","Lucrări de mentenanță în SRM Valea Călugărească      ",135949,"Valea Călugărească","Prahova",591733.45499999996,384306.78600000002,591733.45499999996,384306.78600000002,"-","-","SM0136D1","Valea Călugărească","-","-","-","-","SM-SD001","Engie România","Distrigaz Sud Rețele","septembrie 2018",null,null,null,null,"București",null,null,null,null,null,null,null,null,null,null,null,null,null,null,null,"","","","","","","","","",null,null,null,null,"Afectat sau NU?","-","-","Afectat sau NU?","-","-","Afectat sau NU?","-","-"]
[174,"-","X","Lucrări de mentenanță în SRM Valea Călugărească      ",135949,"Valea Călugărească","Prahova",591733.45499999996,384306.78600000002,591733.45499999996,384306.78600000002,"-","-","SM1112D0","Urlați","-","-","-","-","SM-SD001","Cez Vânzare, Engie România, Alpiq Romindustries, E-on Energie, Energy Gas, OMV Petrom, Premier Energy","Distrigaz Sud Rețele","septembrie 2018",null,null,null,null,"București",null,null,null,null,null,null,null,null,null,null,null,null,null,null,null,"","","","","","","","","",null,null,null,null,"Afectat sau NU?","-","-","Afectat sau NU?","-","-","Afectat sau NU?","-","-"]
[175,"-","X","Reparație conductă 6” racord alimentare ELSID Titu",66081,"Titu","Dâmbovița",540291.87,360529.12699999998,544542.81400000001,352331.20799999998,"-","-","SM0147D0","SC Elsid Titu","-","-","-","-","SM-CF001","E-on Energie","Elsid","iulie - septembrie 2018",null,null,null,null,"București",null,null,null,null,null,null,null,null,null,null,null,null,null,null,null,"","","","","","","","","",null,null,null,null,"Afectat sau NU?","-","-","Afectat sau NU?","-","-","Afectat sau NU?","-","-"]
[176,"-","X","Punere în siguranță tronson conductă transport gaze naturale 20” Adjudu Vechi, zonele Braniștea, Schela și Independența (RV64- RV65)",77153,"Schela","Galați",724254.19,442629.69,716510.08,451620.98,"-","-","SM0522D0","Schela","-","-","-","-","SM-SD001","Cez Vânzare, Engie România, Enel","Distrigaz Sud Rețele","aprilie - septembrie \niunie - septembrie 2018",null,null,null,null,"Brăila",null,"se urmăresc condiții de debit redus (consumuri mici pe perioada anotimpului cald)",null,null,null,null,null,null,null,null,null,null,null,null,null,"","","","","","","","","",null,null,null,null,"Afectat sau NU?","-","-","Afectat sau NU?","-","-","Afectat sau NU?","-","-"]
[177,"-","X","Punere în siguranță tronson conductă transport gaze naturale 20” Adjudu Vechi, zonele Braniștea, Schela și Independența (RV64- RV65)",76585,"Independența","Galați",724254.19,442629.69,716510.08,451620.98,"-","-","SM0523D2","Independența","-","-","-","-","SM-SD001","Cez Vânzare, Engie România, Energy Distribution, Enel, Premier Energy","Distrigaz Sud Rețele","aprilie - septembrie \niunie - septembrie 2018",null,null,null,null,"Brăila",null,"se urmăresc condiții de debit redus (consumuri mici pe perioada anotimpului cald)",null,null,null,null,null,null,null,null,null,null,null,null,null,"","","","","","","","","",null,null,null,null,"Afectat sau NU?","-","-","Afectat sau NU?","-","-","Afectat sau NU?","-","-"]
[178,"-","X","Punere în siguranță tronson conductă transport gaze naturale 20” Adjudu Vechi, zonele Braniștea, Schela și Independența (RV64- RV65)",76585,"Independența","Galați",724254.19,442629.69,716510.08,451620.98,"-","-","SM0523D1","SC Cereal Prod Independența Galați","-","-","-","-","SM-CF001","punct suspendat momentan","Cereal Prod","aprilie - septembrie \niunie - septembrie 2018",null,null,null,null,"Brăila",null,"se urmăresc condiții de debit redus (consumuri mici pe perioada anotimpului cald)",null,null,null,null,null,null,null,null,null,null,null,null,null,"","","","","","","","","",null,null,null,null,"Afectat sau NU?","-","-","Afectat sau NU?","-","-","Afectat sau NU?","-","-"]
[179,"-","X","Punere în siguranță tronson conductă transport gaze naturale 20” Adjudu Vechi, zonele Braniștea, Schela și Independența (RV64- RV65)",42682,"Lascăr Catargiu","Galați",724254.19,442629.69,716510.08,451620.98,"-","-","SM0519D0","Independența - Petrom","-","-","-","-","SM-CF001","OMV Petrom","OMV Petrom","aprilie - septembrie \niunie - septembrie 2018",null,null,null,null,"Brăila",null,"se urmăresc condiții de debit redus (consumuri mici pe perioada anotimpului cald)",null,null,null,null,null,null,null,null,null,null,null,null,null,"","","","","","","","","",null,null,null,null,"Afectat sau NU?","-","-","Afectat sau NU?","-","-","Afectat sau NU?","-","-"]
[180,"-","X","Reabilitare conductă 20” Șendreni - Albești",43279,"Grădiștea","Brăila",702787.34,426837.6,677089.85,419343.64,"-","-","-","-","-","-","PM0265","Balta Albă Gr 22","PM-PP001","Nova Power, Cez Vânzare, Distrigaz Vest, Engie România, E-on Energie, Enel, Met România, Premier Energy, OMV Petrom, RWE Supply, WIEE România","Amronco Energy","aprilie - septembrie 2018",null,null,null,null,"Brăila",null,null,null,null,null,null,null,null,null,null,null,null,null,null,null,"","","","","","","","","",null,null,null,null,"Afectat sau NU?","-","-","Afectat sau NU?","-","-","Afectat sau NU?","-","-"]
[181,"-","X","Reabilitare conductă 20” Șendreni - Albești",43180,"Galbenu","Brăila",673804.03,417584.6,664130.81999999995,407745.49,"-","-","-","-","-","-","PM0264","Galbenu","PM-PP001","Alpha Metal, Nova Power, Complexul Energetic Hunedoara, Engie România, E-on Energie, Electrocentrale București, E.on Gaz Furnizare, Ottogaz, Premier Energy, Restart Energy, SNGN Romgaz, Tinmar","Romgaz","aprilie - septembrie 2018",null,null,null,null,"Brăila",null,null,null,null,null,null,null,null,null,null,null,null,null,null,null,"","","","","","","","","",null,null,null,null,"Afectat sau NU?","-","-","Afectat sau NU?","-","-","Afectat sau NU?","-","-"]
[181.1,"-","X","Reabilitare conductă 20” Șendreni - Albești",43180,"Galbenu","Brăila",673804.03,417584.6,664130.81999999995,407745.49,"-","-","-","-","-","-","PM0299","Galbenu II","PM-PP001","Alpha metal, Nova Power, Cez Vânzare, Complexul Energetic Hunedoara, Engie România, E.on Energie, Electrocentrale București, E.on Gaz Furnizare, Gaz Est, C-Gaz Energy Distribution, Met România, Premier Energy, Energy Gas Provider, Romgaz, Tinmar, Wiee","Romgaz","aprilie - septembrie 2018",null,null,null,null,"Brăila",null,"Panou de măsură nou pus în funcție\nPIF : 02.03.2018",null,null,null,null,null,null,null,null,null,null,null,null,null,{"$f":"IF(B191=\"X\",IF(AN191=\"\",\"Afectat sau NU?\",IF(AN191=\"DA\",IF(((AK191+AL191)-(AE191+AF191))*24<-720,\"Neinformat\",((AK191+AL191)-(AE191+AF191))*24),\"Nu a fost afectat producator/consumator\")),\"\")","v":""},{"$f":"IF(B191=\"X\",IF(AN191=\"DA\",IF(AR191<6,LEN(TRIM(V191))-LEN(SUBSTITUTE(V191,CHAR(44),\"\"))+1,0),\"-\"),\"\")","v":""},{"$f":"IF(B191=\"X\",IF(AN191=\"DA\",LEN(TRIM(V191))-LEN(SUBSTITUTE(V191,CHAR(44),\"\"))+1,\"-\"),\"\")","v":""},{"$f":"IF(B191=\"X\",IF(AN191=\"\",\"Afectat sau NU?\",IF(AN191=\"DA\",IF(((AI191+AJ191)-(AE191+AF191))*24<-720,\"Neinformat\",((AI191+AJ191)-(AE191+AF191))*24),\"Nu a fost afectat producator/consumator\")),\"\")","v":""},{"$f":"IF(B191=\"X\",IF(AN191=\"DA\",IF(AU191<6,LEN(TRIM(U191))-LEN(SUBSTITUTE(U191,CHAR(44),\"\"))+1,0),\"-\"),\"\")","v":""},{"$f":"IF(B191=\"X\",IF(AN191=\"DA\",LEN(TRIM(U191))-LEN(SUBSTITUTE(U191,CHAR(44),\"\"))+1,\"-\"),\"\")","v":""},{"$f":"IF(B191=\"X\",IF(AN191=\"\",\"Afectat sau NU?\",IF(AN191=\"DA\",((AG191+AH191)-(AE191+AF191))*24,\"Nu a fost afectat producator/consumator\")),\"\")","v":""},{"$f":"IF(B191=\"X\",IF(AN191=\"DA\",IF(AX191>24,IF(AQ191=\"NU\",0,LEN(TRIM(V191))-LEN(SUBSTITUTE(V191,CHAR(44),\"\"))+1),0),\"-\"),\"\")","v":""},{"$f":"IF(B191=\"X\",IF(AN191=\"DA\",IF(AX191>24,LEN(TRIM(V191))-LEN(SUBSTITUTE(V191,CHAR(44),\"\"))+1,0),\"-\"),\"\")","v":""},null,null,null,null,{"$f":"IF(C191=\"X\",IF(AN191=\"\",\"Afectat sau NU?\",IF(AN191=\"DA\",IF(AK191=\"\",\"Neinformat\",NETWORKDAYS(AK191+AL191,AE191+AF191,$BR$3:$BR$13)-1),\"Nu a fost afectat producator/consumator\")),\"\")","v":"Afectat sau NU?"},{"$f":"IF(C191=\"X\",IF(AN191=\"DA\",IF(AND(BE191>=5,AK191<>\"\"),LEN(TRIM(V191))-LEN(SUBSTITUTE(V191,CHAR(44),\"\"))+1,0),\"-\"),\"\")","v":"-"},{"$f":"IF(C191=\"X\",IF(AN191=\"DA\",LEN(TRIM(V191))-LEN(SUBSTITUTE(V191,CHAR(44),\"\"))+1,\"-\"),\"\")","v":"-"},{"$f":"IF(C191=\"X\",IF(AN191=\"\",\"Afectat sau NU?\",IF(AN191=\"DA\",IF(AI191=\"\",\"Neinformat\",NETWORKDAYS(AI191+AJ191,AE191+AF191,$BR$3:$BR$13)-1),\"Nu a fost afectat producator/consumator\")),\"\")","v":"Afectat sau NU?"},{"$f":"IF(C191=\"X\",IF(AN191=\"DA\",IF(AND(BH191>=5,AI191<>\"\"),LEN(TRIM(U191))-LEN(SUBSTITUTE(U191,CHAR(44),\"\"))+1,0),\"-\"),\"\")","v":"-"},{"$f":"IF(C191=\"X\",IF(AN191=\"DA\",LEN(TRIM(U191))-LEN(SUBSTITUTE(U191,CHAR(44),\"\"))+1,\"-\"),\"\")","v":"-"},{"$f":"IF(C191=\"X\",IF(AN191=\"\",\"Afectat sau NU?\",IF(AN191=\"DA\",((AG191+AH191)-(Z191+AA191))*24,\"Nu a fost afectat producator/consumator\")),\"\")","v":"Afectat sau NU?"},{"$f":"IF(C191=\"X\",IF(AN191<>\"DA\",\"-\",IF(AND(AN191=\"DA\",BK191<=0),LEN(TRIM(V191))-LEN(SUBSTITUTE(V191,CHAR(44),\"\"))+1+LEN(TRIM(U191))-LEN(SUBSTITUTE(U191,CHAR(44),\"\"))+1,0)),\"\")","v":"-"},{"$f":"IF(C191=\"X\",IF(AN191=\"DA\",LEN(TRIM(V191))-LEN(SUBSTITUTE(V191,CHAR(44),\"\"))+1+LEN(TRIM(U191))-LEN(SUBSTITUTE(U191,CHAR(44),\"\"))+1,\"-\"),\"\")","v":"-"}]
[{"$f":"A190+1","v":182},"-","X","Reabilitare conductă 20” Șendreni - Albești",46830,"Ghergheasa","Buzău",673804.03,417584.6,664130.81999999995,407745.49,"-","-","SM0181D0","Ghergheasa","-","-","-","-","SM-SD001","Alpiq Romindustries, Cez Vânzare, Engie România, E-on Energie, Gaz Est, Premier Energy, OMV Petrom, Restart Energy, Tinmar","Distrigaz Sud Rețele","aprilie - septembrie 2018",null,null,null,null,"Brăila",null,null,null,null,null,null,null,null,null,null,null,null,null,null,null,"","","","","","","","","",null,null,null,null,"Afectat sau NU?","-","-","Afectat sau NU?","-","-","Afectat sau NU?","-","-"]
[183,"-","X","Reabilitare conductă 20” Șendreni - Albești",48771,"Poșta Câlnău","Buzău",673804.03,417584.6,664130.81999999995,407745.49,"SM1136D0","Poşta Câlnău","-","-","-","-","-","-","SM-SD001","C-Gaz&Energy","Distrigaz Sud Rețele","aprilie - septembrie 2018",null,null,null,null,"Brăila",null,null,null,null,null,null,null,null,null,null,null,null,null,null,null,"","","","","","","","","",null,null,null,null,"Afectat sau NU?","-","-","Afectat sau NU?","-","-","Afectat sau NU?","-","-"]
[184,"-","X","Reabilitare conductă 20” Șendreni - Albești",46377,"Bobocu","Buzău",673804.03,417584.6,664130.81999999995,407745.49,"SM0180D0","UM Bobocu","-","-","-","-","-","-","SM-CF001","Premier Energy","UM Bobocu","aprilie - septembrie 2018",null,null,null,null,"Brăila",null,null,null,null,null,null,null,null,null,null,null,null,null,null,null,"","","","","","","","","",null,null,null,null,"Afectat sau NU?","-","-","Afectat sau NU?","-","-","Afectat sau NU?","-","-"]
[185,"-","X","Reabilitare conductă 20” Șendreni - Albești",46830,"Ghergheasa","Buzău",673815.46,417595.58,673804.03,417584.6,"-","-","-","-","-","-","PM0021","Ghergheasa (Boldu)","PM-PP001","Alpha Metal, Nova Power, Complexul Energetic Hunedoara, Engie România, E-on Energie, Electrocentrale București, E.on Gaz Furnizare, Ottogaz, Premier Energy, Restart Energy, SNGN Romgaz, Tinmar","Romgaz","aprilie - septembrie 2018",null,null,null,null,"Brăila",null,null,null,null,null,null,null,null,null,null,null,null,null,null,null,"","","","","","","","","",null,null,null,null,"Afectat sau NU?","-","-","Afectat sau NU?","-","-","Afectat sau NU?","-","-"]
[186,"-","X","Reabilitare conductă 20” Șendreni - Albești",46830,"Ghergheasa","Buzău",673815.46,417595.58,673804.03,417584.6,"-","-","-","-","-","-","PM0261","Ghergheasa  ","PM-PP001","Nova Power, Cez Vânzare, Distrigaz Vest, Engie România, E-on Energie, Enel, Met România, Premier Energy, OMV Petrom, RWE Supply, WIEE România","Amronco Energy","aprilie - septembrie 2018",null,null,null,null,"Brăila",null,null,null,null,null,null,null,null,null,null,null,null,null,null,null,"","","","","","","","","",null,null,null,null,"Afectat sau NU?","-","-","Afectat sau NU?","-","-","Afectat sau NU?","-","-"]
[187,"-","X","Reabilitare conductă 20” Șendreni - Albești",46377,"Roșioru","Buzău",673804.03,417584.6,664130.81999999995,407745.49,"-","-","-","-","-","-","PM0022","Roșioru","PM-PP001","Alpha Metal, Nova Power, Cez Vânzare, Complexul Energetic Hunedoara, Engie România, E-on Energie, Electrocentrale București, E.on Gaz Furnizare, Enel, Met România, Ottogaz, Premier Energy, OMV Petrom, Restart Energy, SNGN Romgaz, RWE Supply, WIEE România,  Tinmar","Romgaz, Amronco Energy","aprilie - septembrie 2018",null,null,null,null,"Brăila",null,null,null,null,null,null,null,null,null,null,null,null,null,null,null,"","","","","","","","","",null,null,null,null,"Afectat sau NU?","-","-","Afectat sau NU?","-","-","Afectat sau NU?","-","-"]
[188,"-","X","Reabilitare conductă 20” Șendreni - Albești",46787,"Bentu","Buzău",655767.59039999999,398942.38309999998,655767.59039999999,398942.38309999998,"-","-","-","-","-","-","PM0033","Bentu","PM-PP001","Alpha Metal, Nova Power, Cez Vânzare, Cis Gaz, Distrigaz Vest, Engie România, E-on Energie, Energy Distribution, E.on Gaz Furnizare, Gaz Est, Met România, Next Energy, Premier Energy, OMV Petrom, Energy Gas, Restart Energy, Saint Gobain, WIEE România","OMV Petrom","15 aprilie - 15 octombrie 2018",null,null,null,null,"Brăila",null,null,null,null,null,null,null,null,null,null,null,null,null,null,null,"","","","","","","","","",null,null,null,null,"Afectat sau NU?","-","-","Afectat sau NU?","-","-","Afectat sau NU?","-","-"]
[189,"-","X","Reabilitare conductă 28” Seleuș - Cristur - Bățani, etapa 2C (jud. Covasna)",64997,"Vârghiș","Covasna",513364,545447,513364,545447,"-","-","SM0392D0","Vârghiș","-","-","-","-","SM-SD001","Engie România, Met România, Restart Energy","Distrigaz Sud Rețele","aprilie - septembrie \nmai - septembrie 2018",null,null,null,null,"Brașov",null,"Ordin de începere a lucrărilor cu data de 01.05.2018",null,null,null,null,null,null,null,null,null,null,null,null,null,"","","","","","","","","",null,null,null,null,"Afectat sau NU?","-","-","Afectat sau NU?","-","-","Afectat sau NU?","-","-"]
[190,"-","X","Reabilitare conductă 28” Seleuș - Cristur - Bățani, etapa 2C (jud. Covasna)",63447,"Biborțeni","Covasna",510829,550912,510829,550912,"-","-","SM0393D0","Biborțeni","-","-","-","-","SM-SD001","Engie România","Distrigaz Sud Rețele","aprilie - septembrie 2018",null,null,null,null,"Brașov",null,"Nu se va opri -se va monta teu de obturare si va ramane alimentat",null,null,null,null,null,null,null,null,null,null,null,null,null,"","","","","","","","","",null,null,null,null,"Afectat sau NU?","-","-","Afectat sau NU?","-","-","Afectat sau NU?","-","-"]
[191,"-","X","Reabilitare conductă 28” Seleuș - Cristur - Bățani, etapa 2B (jud. Harghita)",85582,"Secuieni","Harghita",496424,528373,496424,528373,"-","-","SM0374D0","Secuieni I HG","-","-","-","-","SM-SD001","Alpiq Romindustries, E-on Energie, Met România","Harghita Gaz","iulie - septembrie 2018",null,null,null,null,"Mediaș",null,null,null,null,null,null,null,null,null,null,null,null,null,null,null,"","","","","","","","","",null,null,null,null,"Afectat sau NU?","-","-","Afectat sau NU?","-","-","Afectat sau NU?","-","-"]
[192,"-","X","Reabilitare conductă 28” Seleuș - Cristur - Bățani, etapa 2B (jud. Harghita)",85582,"Secuieni","Harghita",496424,528373,496424,528373,"-","-","SM0374D1","Secuieni II HG","-","-","-","-","SM-SD001","Met România","Harghita Gaz","iulie - septembrie 2018",null,null,null,null,"Mediaș",null,null,null,null,null,null,null,null,null,null,null,null,null,null,null,"","","","","","","","","",null,null,null,null,"Afectat sau NU?","-","-","Afectat sau NU?","-","-","Afectat sau NU?","-","-"]
[193,"-","X","Reabilitare conductă 28” Seleuș - Cristur - Bățani, etapa 2B (jud. Harghita)",83525,"Cristuru Secuiesc","Harghita",496424,528373,496424,528373,"-","-","SM0373D0","Cristuru Secuiesc","-","-","-","-","SM-SD001","Alpiq Romindustries, Nova Power, Engie România, E-on Energie, E.on Gaz Furnizare, Met România, Premier Energy, OMV Petrom, Restart Energy","Delgaz Grid","iulie - septembrie 2018",null,null,null,null,"Mediaș",null,null,null,null,null,null,null,null,null,null,null,null,null,null,null,"","","","","","","","","",null,null,null,null,"Afectat sau NU?","-","-","Afectat sau NU?","-","-","Afectat sau NU?","-","-"]
[194,"-","X","Reabilitare conductă 28” Seleuș - Cristur - Bățani, etapa 2B (jud. Harghita)",85127,"Porumbenii Mici","Harghita",496424,528373,496424,528373,"-","-","SM0382D0","Porumbenii Mici","-","-","-","-","SM-SD001","Met România","Harghita Gaz","iulie - septembrie 2018",null,null,null,null,"Mediaș",null,null,null,null,null,null,null,null,null,null,null,null,null,null,null,"","","","","","","","","",null,null,null,null,"Afectat sau NU?","-","-","Afectat sau NU?","-","-","Afectat sau NU?","-","-"]
[195,"-","X","Reabilitare conductă 28” Seleuș - Cristur - Bățani, etapa 2B (jud. Harghita)",85127,"Porumbenii Mari","Harghita",496424,528373,496424,528373,"-","-","SM0383D0","Porumbenii Mari ","-","-","-","-","SM-SD001","E-on Energie, Met România, Restart Energy","Harghita Gaz","iulie - septembrie 2018",null,null,null,null,"Mediaș",null,null,null,null,null,null,null,null,null,null,null,null,null,null,null,"","","","","","","","","",null,null,null,null,"Afectat sau NU?","-","-","Afectat sau NU?","-","-","Afectat sau NU?","-","-"]
[196,"-","X","Reabilitare conductă 28” Seleuș - Cristur - Bățani, etapa 2B (jud. Harghita)",85127,"Lutița","Harghita",496424,528373,496424,528373,"-","-","SM0384D0","Lutița ","-","-","-","-","SM-SD001","Alpiq Romindustries, E-on Energie, E.on Gaz Furnizare, Met România, Restart Energy","Delgaz Grid","iulie - septembrie 2018",null,null,null,null,"Mediaș",null,null,null,null,null,null,null,null,null,null,null,null,null,null,null,"","","","","","","","","",null,null,null,null,"Afectat sau NU?","-","-","Afectat sau NU?","-","-","Afectat sau NU?","-","-"]
[197,"-","X","Godevilare 32” Șendreni - Butimanu",44202,"Urleasca","Brăila",706868.94931900001,410011.75256200001,706868.94931900001,410011.75256200001,"SM0182D0","SC Agroperiland Urleasca","-","-","-","-","-","-","SM-SD001","Engie România","Distrigaz Sud Rețele","aprilie - septembrie 2018",null,null,null,null,"Brăila","reducere pe perioada trecerii PIG-ului / întrerupere în caz de blocare PIG","în funcție de condițiile de operare : debite, presiuni, calitatea gazelor",null,null,null,null,null,null,null,null,null,null,null,null,null,"","","","","","","","","",null,null,null,null,"Afectat sau NU?","-","-","Afectat sau NU?","-","-","Afectat sau NU?","-","-"]
[198,"-","X","Godevilare 32” Șendreni - Butimanu",43331,"Oprișenești","Brăila",700197.91659000004,406768.469553,700197.91659000004,406768.469553,"SM0184D1","Oprişeneşti","-","-","-","-","-","-","SM-SD001","Alpiq Romindustries, Cez Vânzare, Engie România, E-on Energie, Enel, Gaz Est, Premier Energy, Tinmar","Distrigaz Sud Rețele","aprilie - septembrie 2018",null,null,null,null,"Brăila","reducere pe perioada trecerii PIG-ului / întrerupere în caz de blocare PIG","în funcție de condițiile de operare : debite, presiuni, calitatea gazelor",null,null,null,null,null,null,null,null,null,null,null,null,null,"","","","","","","","","",null,null,null,null,"Afectat sau NU?","-","-","Afectat sau NU?","-","-","Afectat sau NU?","-","-"]
[199,"-","X","Godevilare 32” Șendreni - Butimanu",43331,"Oprișenești","Brăila",700197.91659000004,406768.469553,700197.91659000004,406768.469553,"SM0184D2","Oprişeneşti - Petrom","-","-","-","-","-","-","SM-CF001","OMV Petrom","OMV Petrom","aprilie - septembrie 2018",null,null,null,null,"Brăila","reducere pe perioada trecerii PIG-ului / întrerupere în caz de blocare PIG","în funcție de condițiile de operare : debite, presiuni, calitatea gazelor",null,null,null,null,null,null,null,null,null,null,null,null,null,"","","","","","","","","",null,null,null,null,"Afectat sau NU?","-","-","Afectat sau NU?","-","-","Afectat sau NU?","-","-"]
[200,"-","X","Godevilare 32” Șendreni - Butimanu",100683,"Urziceni","Ialomița",627361.88199999998,359074.07309999998,627361.88199999998,359074.07309999998,"SM1064D0","Urziceni înmagazinat","-","-","-","-","-","-","VSM01","Engie România, WIEE România","Romgaz - Depozit","aprilie - septembrie 2018",null,null,null,null,"Brăila","reducere pe perioada trecerii PIG-ului / întrerupere în caz de blocare PIG","în funcție de condițiile de operare : debite, presiuni, calitatea gazelor",null,null,null,null,null,null,null,null,null,null,null,null,null,"","","","","","","","","",null,null,null,null,"Afectat sau NU?","-","-","Afectat sau NU?","-","-","Afectat sau NU?","-","-"]
[201,"-","X","Godevilare 32” Șendreni - Butimanu",100683,"Urziceni","Ialomița",630239.05429999996,361188.5183,630239.05429999996,361188.5183,"-","-","-","-","PM0026","Urziceni Nord","-","-","PM-PP001","Alpha Metal, Nova Power, Complexul Energetic Hunedoara, Engie România, E-on Energie, Electrocentrale București, E.on Gaz Furnizare, Ottogaz, Premier Energy, Restart Energy, SNGN Romgaz, Tinmar","Romgaz","aprilie - septembrie 2018",null,null,null,null,"Brăila","reducere pe perioada trecerii PIG-ului / întrerupere în caz de blocare PIG","în funcție de condițiile de operare : debite, presiuni, calitatea gazelor",null,null,null,null,null,null,null,null,null,null,null,null,null,"","","","","","","","","",null,null,null,null,{"$f":"IF(C211=\"X\",IF(AN211=\"\",\"Afectat sau NU?\",IF(AN211=\"DA\",IF(AK211=\"\",\"Neinformat\",NETWORKDAYS(AK211+AL211,AE211+AF211,$BR$3:$BR$13)-1),\"Nu a fost afectat producator/consumator\")),\"\")","v":"Afectat sau NU?"},"-","-",{"$f":"IF(C211=\"X\",IF(AN211=\"\",\"Afectat sau NU?\",IF(AN211=\"DA\",IF(AI211=\"\",\"Neinformat\",NETWORKDAYS(AI211+AJ211,AE211+AF211,$BR$3:$BR$13)-1),\"Nu a fost afectat producator/consumator\")),\"\")","v":"Afectat sau NU?"},"-","-","Afectat sau NU?","-","-"]
[202,"-","X","Godevilare 32” Șendreni - Butimanu",48138,"Padina","Buzău",668340.0013,378301.80180000002,668340.0013,378301.80180000002,"-","-","-","-","PM0294","Padina Nord I","-","-","PM-PP001","Alpha Metal, Nova Power, Azomures, Cez Vânzare, Cis Gaz, Distrigaz Vest, Engie România, E-on Energie, Energy Distribution, E.on Gaz Furnizare, Gaz Est, Met România, Premier Energy, OMV Petrom, Energy Gas, Restart Energy, Saint Gobain, WIEE România ","Hunt Oil Company, OMV Petrom","aprilie - septembrie 2018",null,null,null,null,"Brăila","reducere pe perioada trecerii PIG-ului / întrerupere în caz de blocare PIG","în funcție de condițiile de operare : debite, presiuni, calitatea gazelor",null,null,null,null,null,null,null,null,null,null,null,null,null,"","","","","","","","","",null,null,null,null,"Afectat sau NU?","-","-","Afectat sau NU?","-","-","Afectat sau NU?","-","-"]
[203,"-","X","Godevilare 20” Albești - Urziceni",46910,"Godeanu - Siliștea","Buzău",635304.78650799999,374143.83540500002,635304.78650799999,374143.83540500002,"SM1099D0","Glodeanu - Siliştea (Caşota)","-","-","-","-","-","-","SM-SD001","Engie România","Distrigaz Sud Rețele","aprilie - septembrie 2018",null,null,null,null,"Brăila","reducere pe perioada trecerii PIG-ului / întrerupere în caz de blocare PIG","în funcție de condițiile de operare : debite, presiuni, calitatea gazelor",null,null,null,null,null,null,null,null,null,null,null,null,null,"","","","","","","","","",null,null,null,null,"Afectat sau NU?","-","-","Afectat sau NU?","-","-","Afectat sau NU?","-","-"]
[204,"-","X","Godevilare 20” Albești - Urziceni",47578,"Florica","Buzău",640479.18409999995,379210.75829999999,640479.18409999995,379210.75829999999,"-","-","-","-","PM0023","Florica","-","-","PM-PP001","Alpha Metal, Nova Power, Complexul Energetic Hunedoara, Engie România, E-on Energie, Electrocentrale București, E.on Gaz Furnizare, Ottogaz, Premier Energy, Restart Energy, SNGN Romgaz, Tinmar","Romgaz","aprilie - septembrie 2018",null,null,null,null,"Brăila","reducere pe perioada trecerii PIG-ului / întrerupere în caz de blocare PIG","în funcție de condițiile de operare : debite, presiuni, calitatea gazelor",null,null,null,null,null,null,null,null,null,null,null,null,null,"","","","","","","","","",null,null,null,null,"Afectat sau NU?","-","-","Afectat sau NU?","-","-","Afectat sau NU?","-","-"]
[205,"-","X","Godevilare 20” Albești - Urziceni",103283,"Gârbovi","Ialomița",638666.27450000006,367711.19640000002,638666.27450000006,367711.19640000002,"-","-","-","-","PM0029","Gârbovi","-","-","PM-PP001","Alpha Metal, Nova Power, Complexul Energetic Hunedoara, Engie România, E-on Energie, Electrocentrale București, E.on Gaz Furnizare, Ottogaz, Premier Energy, Restart Energy, SNGN Romgaz, Tinmar","Romgaz","aprilie - septembrie 2018",null,null,null,null,"Brăila","reducere pe perioada trecerii PIG-ului / întrerupere în caz de blocare PIG","în funcție de condițiile de operare : debite, presiuni, calitatea gazelor",null,null,null,null,null,null,null,null,null,null,null,null,null,"","","","","","","","","",null,null,null,null,"Afectat sau NU?","-","-","Afectat sau NU?","-","-","Afectat sau NU?","-","-"]
[206,"-","X","Godevilare 20” Albești - Urziceni",103292,"Gârbovi","Ialomița",638665.79689999996,367709.78840000002,638665.79689999996,367709.78840000002,"-","-","-","-","PM0036","Gârbovi Petrom","-","-","PM-PP001","Alpha Metal, Nova Power, Azomures, Cez Vânzare, Cis Gaz, Distrigaz Vest, Engie România, E-on Energie, Energy Distribution, E.on Gaz Furnizare, Gaz Est, Met România, Premier Energy, OMV Petrom, Energy Gas, Restart Energy, Saint Gobain, WIEE România ","OMV Petrom","aprilie - septembrie 2018",null,null,null,null,"Brăila","reducere pe perioada trecerii PIG-ului / întrerupere în caz de blocare PIG","în funcție de condițiile de operare : debite, presiuni, calitatea gazelor",null,null,null,null,null,null,null,null,null,null,null,null,null,"","","","","","","","","",null,null,null,null,"Afectat sau NU?","-","-","Afectat sau NU?","-","-","Afectat sau NU?","-","-"]
[207,"-","X","Godevilare Ø20\" Urziceni - Moara Domnească",102240,"Coșereni","Ialomita",627314.19200000004,359000.32900000003,596653.76800000004,334093.08100000001,"SM1178D0","Coșereni","-","-","-","-","-","-","SM-SD001","Engie România, Cez Vânzare","Megaconstruct","aprilie - septembrie \nmai - septembrie 2018",null,null,null,null,"București",null,"În funcție de calitate gazelor naturale",null,null,null,null,null,null,null,null,null,null,null,null,null,"","","","","","","","","",null,null,null,null,"Afectat sau NU?","-","-","Afectat sau NU?","-","-","Afectat sau NU?","-","-"]
[208,"-","X","Godevilare 16” Bărbuncești - Albești",44818,"Buzău","Buzău",643078.57652,405160.02606,643078.57652,405160.02606,"SM0179D0","Buzău","-","-","-","-","-","-","SM-SD001","Alpiq Romindustries, Cez Vânzare, Engie România, E-on Energie, Enel, Gaz Est, Met România, Premier Energy, OMV Petrom, Energy Gas, Restart Energy, RWE Supply, Tinmar","Distrigaz Sud Rețele","aprilie - septembrie 2018",null,null,null,null,"Brăila","reducere pe perioada trecerii PIG-ului / întrerupere în caz de blocare PIG","în funcție de condițiile de operare : debite, presiuni, calitatea gazelor",null,null,null,null,null,null,null,null,null,null,null,null,null,"","","","","","","","","",null,null,null,null,"Afectat sau NU?","-","-","Afectat sau NU?","-","-","Afectat sau NU?","-","-"]
[209,"-","X","Godevilare 16” Bărbuncești - Albești",49661,"Bărbuncești","Buzău",625768.21600000001,414382.25400000002,625768.21600000001,414382.25400000002,"-","-","-","-","PM0032","Bărbunceşti","-","-","PM-PP001","Alpha Metal, Nova Power, Azomures, Cez Vânzare, Cis Gaz, Distrigaz Vest, Engie România, E-on Energie, Energy Distribution, E.on Gaz Furnizare, Gaz Est, Met România, Premier Energy, OMV Petrom, Energy Gas, Restart Energy, Saint Gobain, WIEE România ","OMV Petrom","aprilie - septembrie 2018",null,null,null,null,"Brăila","reducere pe perioada trecerii PIG-ului / întrerupere în caz de blocare PIG","în funcție de condițiile de operare : debite, presiuni, calitatea gazelor",null,null,null,null,null,null,null,null,null,null,null,null,null,"","","","","","","","","",null,null,null,null,"Afectat sau NU?","-","-","Afectat sau NU?","-","-","Afectat sau NU?","-","-"]
[210,"-","X","Montare linie de măsură în SRM Buzău",44818,"Buzău","Buzău",643078.57652,405160.02606,643078.57652,405160.02606,"SM0179D0","Buzău","-","-","-","-","-","-","SM-SD001","Alpiq Romindustries, Cez Vânzare, Engie România, E-on Energie România, Enel, Gaz Est, Met România, Premier Energy, OMV Petrom, Energy Gas, restart Energy, RWE Supply, Tinmar","Distrigaz Sud Rețele","aprilie - septembrie 2018",null,null,null,null,"Brăila",null,null,null,null,null,null,null,null,null,null,null,null,null,null,null,"","","","","","","","","",null,null,null,null,"Afectat sau NU?","-","-","Afectat sau NU?","-","-","Afectat sau NU?","-","-"]
[211,"-","X","Montare/înlocuire îmbinare electroizolanță pe conducta intrare în SRM Mihăești AG",17263,"Mihăești","Argeș",500597.91899999999,401110.33799999999,500597.91899999999,401110.33799999999,"-","-","SM1243D0","Mihăești AG","-","-","-","-","SM-SD001","Engie România","Distrigaz Sud Rețele","iunie - august 2018",null,null,null,null,"Craiova",null,null,null,null,null,null,null,null,null,null,null,null,null,null,null,"","","","","","","","","",null,null,null,null,"Afectat sau NU?","-","-","Afectat sau NU?","-","-","Afectat sau NU?","-","-"]
[212,"-","X","Revizie robineți și montare panou măsura la SRM CET Cuci (Luduș)",116439,"Cuci","Mureș",437377.00861000002,552509.92030600004,437377.00861000002,552509.92030600004,"-","-","SM0873D0","CET CUCI (Luduș)","-","-","-","-","SM-CF001","SNGN Romgaz","Romgaz - SPEE","iunie - iulie 2018",null,null,null,null,"Cluj",null,null,null,null,null,null,null,null,null,null,null,null,null,null,null,"","","","","","","","","",null,null,null,null,"Afectat sau NU?","-","-","Afectat sau NU?","-","-","Afectat sau NU?","-","-"]
[213,"-","X","Montare robinet pe linia de ieșire la SRM Medieșu Aurit II",138084,"Medieşu Aurit","Satu Mare",363318.38584800001,701241.08323900006,363318.38584800001,701241.08323900006,"-","-","SM1056D0","Medieșu Aurit II","-","-","-","-","SM-SD001","E-on Energie, E.on Gaz Furnizare","Delgaz Grid","aprilie - mai \nmai 2018",null,null,null,null,"Cluj",null,"În funcție de disponibilitatea Sucursalei Mediaș",null,null,null,null,null,null,null,null,null,null,null,null,null,"","","","","","","","","",null,null,null,null,"Afectat sau NU?","-","-","Afectat sau NU?","-","-","Afectat sau NU?","-","-"]
[214,"-","X","Modificare linie măsura SRM Sighetul Marmației",106620,"Sărăsău","Maramureș",412768.47919099999,716349.94566800003,412768.47919099999,716349.94566800003,"-","-","SM0992D0"," Sighetul Marmației","-","-","-","-","SM-SD001","Alpiq Romindustries, Cez Vânzare, Engie România, E-on Energie, Premier Energy, OMV Petrom, Tinmar","Berg Sistem Gaz","mai - iunie 2018",null,null,null,null,"Cluj",null,null,null,null,null,null,null,null,null,null,null,null,null,null,null,"","","","","","","","","",null,null,null,null,"Afectat sau NU?","-","-","Afectat sau NU?","-","-","Afectat sau NU?","-","-"]
[215,"-","X","Modificare linie măsura SRM Odoreu",138280,"Odoreu","Satu Mare",348654.66322799999,702722.66322800005,348654.66322799999,702722.66322800005,"-","-","SM0917D0","Odoreu","-","-","-","-","SM-SD001","Alpiq Romindustries, Engie România, E-on Energie, E.on Gaz Furnizare, Restart Energy","Delgaz Grid","iunie - iulie 2018",null,null,null,null,"Cluj",null,null,null,null,null,null,null,null,null,null,null,null,null,null,null,"","","","","","","","","",null,null,null,null,"Afectat sau NU?","-","-","Afectat sau NU?","-","-","Afectat sau NU?","-","-"]
[216,"-","X","Optimizare legături intrare/ieșire la SRM Ungheni Valea Mureșului",119466,"Ungheni","Mureș",458080.65433599998,553034.86078800005,458080.65433599998,553034.86078800005,"-","-","SM0703D2"," Ungheni - Valea Mureşului","-","-","-","-","SM-SD001","Alpiq Romindustries, Cez Vânzare, Cis Gaz, Engie România, E-on Energie, E.on Gaz Furnizare","Delgaz Grid","august - septembrie 2018",null,null,null,null,"Cluj",null,null,null,null,null,null,null,null,null,null,null,null,null,null,null,"","","","","","","","","",null,null,null,null,"Afectat sau NU?","-","-","Afectat sau NU?","-","-","Afectat sau NU?","-","-"]
[217,"-","X","Optimizare legături intrare/ieșire la SRM Ungheni Valea Nirajului",119894,"Ungheni","Mureș",458080.65433599998,553034.86078800005,458080.65433599998,553034.86078800005,"-","-","SM0703D1"," Ungheni - Valea Nirajului","-","-","-","-","SM-SD001","Alpiq Romindustries, Cez Vânzare, Cis Gaz, Engie România, E-on Energie, E.on Gaz Furnizare, OMV Petrom, Restart Energy","Delgaz Grid","august - septembrie 2018",null,null,null,null,"Cluj",null,null,null,null,null,null,null,null,null,null,null,null,null,null,null,"","","","","","","","","",null,null,null,null,"Afectat sau NU?","-","-","Afectat sau NU?","-","-","Afectat sau NU?","-","-"]
[218,"-","X","Reamplasare instalțtie mecanică SRM Triteni",59693,"Tritenii de Jos","Cluj",419531.07470900001,566242.24867,419531.07470900001,566242.24867,"-","-","SM0623D0","Tritenii de Jos","-","-","-","-","SM-SD001","Alpiq Romindustries, Engie România, E-on Energie, E.on Gaz Furnizare","Delgaz Grid","mai - iunie 2018",null,null,null,null,"Cluj",null,null,null,null,null,null,null,null,null,null,null,null,null,null,null,"","","","","","","","","",null,null,null,null,"Afectat sau NU?","-","-","Afectat sau NU?","-","-","Afectat sau NU?","-","-"]
[219,"-","X","Montare robinet izolare pe linia de ieșire SRM Satu Mare III",136483,"Satu Mare","Satu Mare",338737.43790000002,704248.24282599997,338737.43790000002,704248.24282599997,"-","-","SM0898D0","Satu Mare III","-","-","-","-","SM-SD001","Alpiq Romindustries, Nova power, Cez Vânzare, Distrigaz Vest, Engie România, E-on Energie, Enel, E.on Gaz Furnizare, Gaz Est, Premier Energy, OMV Petrom, Energy Gas, Restart Energy, RWE Supply, Tinmar","Delgaz Grid","aprilie - mai 2018",null,null,null,null,"Cluj",null,null,null,null,null,null,null,null,null,null,null,null,null,null,null,"","","","","","","","","",null,null,null,null,"Afectat sau NU?","-","-","Afectat sau NU?","-","-","Afectat sau NU?","-","-"]
[220,"X","-","Reducere temporară a presiunii de ieșire din SRM Potcoava - la solicitarea Distrigaz Sud Rețele",128374,"Potcoava","Olt",469086.7683,333852.36090000003,469086.7683,333852.36090000003,"SM0242D0","Potcoava","-","-","-","-","-","-","SM-SD001","Cez Vânzare, Engie România, Premier Energy","Distrigaz Sud Rețele","-","2018-01-18","10:15:00","2018-01-18","14:35:00","Craiova","Efectuată",null,"2018-01-18","10:15:00","2018-01-18","14:35:00",null,null,"2018-01-15","14:41:00","-","Nu",null,null,null,"Nu a fost afectat producator/consumator","-","-","Nu a fost afectat producator/consumator","-","-","Nu a fost afectat producator/consumator","-","-",null,null,null,null,"","","","","","","","",""]
[221,"X","-","Cuplare tronson relocat/protejat al conductei 4\" Racord SRM Nădab",9459,"Nădab","Arad",231860.27274040901,559343.53106264898,231860.27274040901,559343.53106264898,"-","-","SM0354D0","Nădab","-","-","-","-","SM-SD001","OMV Petrom, RWE Supply","Gaz Vest","-","2018-02-09","10:00:00","2018-02-09","15:00:00","Arad","Efectuată",null,"2018-02-09","10:00:00","2018-02-09","15:15:00","2018-02-08","12:29:00","2018-02-05",null,"1024/06.02.2018","Da",null,null,null,-105.99999999994179,1,1,-21.516666666604578,2,2,5.25,0,0,null,null,null,null,"","","","","","","","",""]
[222,"X","-","Remediere defect de coroziune pe conducta 3\" Racord SRM Bentonită Medieșul Aurit",138084,"Medieşu Aurit","Satu Mare",359769.49043140101,699383.21859131102,359696.02365368302,698813.47393544705,"-","-","SM0580D0","SC Bentonită Medieșu Aurit","-","-","-","-","SM-CF001","E-on Energie","SC Bentonită SA","-","2018-02-13","08:00:00","2018-02-13","15:00:00","Cluj","Efectuată",null,"2018-02-13","08:00:00","2018-02-13","12:25:00","2018-02-12","12:51:00","2018-02-08",null,"1716/08.02.2018","Nu",null,null,null,"Nu a fost afectat producator/consumator","-","-","Nu a fost afectat producator/consumator","-","-","Nu a fost afectat producator/consumator","-","-",null,null,null,null,"","","","","","","","",""]
[223,"X","-","Reducere temporară a presiunii de ieșire din SRM Cungrea - la solicitarea Distrigaz Sud Rețele",126503,"Cungrea","Olt",449878.74837300001,353927.76124000002,449878.74837300001,353927.76124000002,"SM0226D1","Cungrea","-","-","-","-","-","-","SM-SD001","Cez Vânzare, Engie România, Premier Energy","Distrigaz Sud Rețele","-","2018-02-21","07:30:00","2018-02-21","16:30:00","Craiova","Efectuată",null,"2018-02-21","07:30:00","2018-02-21","16:30:00",null,null,"2018-02-19","10:38:00","-","Nu",null,null,null,"Nu a fost afectat producator/consumator","-","-","Nu a fost afectat producator/consumator","-","-","Nu a fost afectat producator/consumator","-","-",null,null,null,null,"","","","","","","","",""]
[224,"X","-","Probleme tehnice în instalația tehnologică SRM Dragomirești",102605,"Dragomirești","Ilfov",575792.14522707101,330193.94897306501,575792.14522707101,330193.94897306501,"-","-","SM0098D0","Dragomirești","-","-","-","-","SM-SD001","Cez Vânzare, Engie România, Enel Energie, Premier Energy, Energy Gas, Restart Energy","Distrigaz Sud Rețele","-","2018-02-27","18:50:00","2018-02-27","21:40:00","București","Efectuată",null,"2018-02-27","18:50:00","2018-02-27","21:40:00",null,null,"2018-02-27","18:50:00","-","Da","Raport stare SNT a ajuns la BET in 28.02.2018, ora 6:32",null,null,0,1,1,"Neinformat",0,6,2.8333333334885538,0,0,null,null,null,null,"","","","","","","","",""]
[225,"X","-","Obstrucție fizică a conductei 5\" racord SRM Slătioara din cauza impurităților istorice aflate în conductă",125374,"Slătioara","Olt",446522.14530573,324753.20870671002,446522.14530573,324753.20870671002,"-","-","SM1255D0","Slătioara","-","-","-","-","SM-SD001","Cez Vânzare, Engie România, Enel Energie","Distrigaz Sud Rețele","-","2018-02-28","15:30:00","2018-03-01","11:00:00","Craiova","Efectuată",null,"2018-02-28","15:30:00","2018-03-01","11:00:00",null,null,"2018-02-28","16:06:00","-","Da","mail de informare de la ET Craiova sosit dupa orele de program",null,null,{"$f":"IF(B235=\"X\",IF(AN235=\"\",\"Afectat sau NU?\",IF(AN235=\"DA\",IF(((AK235+AL235)-(AE235+AF235))*24<-720,\"Neinformat\",((AK235+AL235)-(AE235+AF235))*24),\"Nu a fost afectat producator/consumator\")),\"\")","v":0.59999999986030161},{"$f":"IF(B235=\"X\",IF(AN235=\"DA\",IF(AR235<6,LEN(TRIM(V235))-LEN(SUBSTITUTE(V235,CHAR(44),\"\"))+1,0),\"-\"),\"\")","v":1},{"$f":"IF(B235=\"X\",IF(AN235=\"DA\",LEN(TRIM(V235))-LEN(SUBSTITUTE(V235,CHAR(44),\"\"))+1,\"-\"),\"\")","v":1},{"$f":"IF(B235=\"X\",IF(AN235=\"\",\"Afectat sau NU?\",IF(AN235=\"DA\",IF(((AI235+AJ235)-(AE235+AF235))*24<-720,\"Neinformat\",((AI235+AJ235)-(AE235+AF235))*24),\"Nu a fost afectat producator/consumator\")),\"\")","v":"Neinformat"},{"$f":"IF(B235=\"X\",IF(AN235=\"DA\",IF(AU235<6,LEN(TRIM(U235))-LEN(SUBSTITUTE(U235,CHAR(44),\"\"))+1,0),\"-\"),\"\")","v":0},{"$f":"IF(B235=\"X\",IF(AN235=\"DA\",LEN(TRIM(U235))-LEN(SUBSTITUTE(U235,CHAR(44),\"\"))+1,\"-\"),\"\")","v":3},{"$f":"IF(B235=\"X\",IF(AN235=\"\",\"Afectat sau NU?\",IF(AN235=\"DA\",((AG235+AH235)-(AE235+AF235))*24,\"Nu a fost afectat producator/consumator\")),\"\")","v":19.5},{"$f":"IF(B235=\"X\",IF(AN235=\"DA\",IF(AX235>24,IF(AQ235=\"NU\",0,LEN(TRIM(V235))-LEN(SUBSTITUTE(V235,CHAR(44),\"\"))+1),0),\"-\"),\"\")","v":0},{"$f":"IF(B235=\"X\",IF(AN235=\"DA\",IF(AX235>24,LEN(TRIM(V235))-LEN(SUBSTITUTE(V235,CHAR(44),\"\"))+1,0),\"-\"),\"\")","v":0},null,null,null,null,"",{"$f":"IF(C235=\"X\",IF(AN235=\"DA\",IF(AND(BE235>=5,AK235<>\"\"),LEN(TRIM(V235))-LEN(SUBSTITUTE(V235,CHAR(44),\"\"))+1,0),\"-\"),\"\")","v":""},{"$f":"IF(C235=\"X\",IF(AN235=\"DA\",LEN(TRIM(V235))-LEN(SUBSTITUTE(V235,CHAR(44),\"\"))+1,\"-\"),\"\")","v":""},"",{"$f":"IF(C235=\"X\",IF(AN235=\"DA\",IF(AND(BH235>=5,AI235<>\"\"),LEN(TRIM(U235))-LEN(SUBSTITUTE(U235,CHAR(44),\"\"))+1,0),\"-\"),\"\")","v":""},{"$f":"IF(C235=\"X\",IF(AN235=\"DA\",LEN(TRIM(U235))-LEN(SUBSTITUTE(U235,CHAR(44),\"\"))+1,\"-\"),\"\")","v":""},{"$f":"IF(C235=\"X\",IF(AN235=\"\",\"Afectat sau NU?\",IF(AN235=\"DA\",((AG235+AH235)-(Z235+AA235))*24,\"Nu a fost afectat producator/consumator\")),\"\")","v":""},{"$f":"IF(C235=\"X\",IF(AN235<>\"DA\",\"-\",IF(AND(AN235=\"DA\",BK235<=0),LEN(TRIM(V235))-LEN(SUBSTITUTE(V235,CHAR(44),\"\"))+1+LEN(TRIM(U235))-LEN(SUBSTITUTE(U235,CHAR(44),\"\"))+1,0)),\"\")","v":""},{"$f":"IF(C235=\"X\",IF(AN235=\"DA\",LEN(TRIM(V235))-LEN(SUBSTITUTE(V235,CHAR(44),\"\"))+1+LEN(TRIM(U235))-LEN(SUBSTITUTE(U235,CHAR(44),\"\"))+1,\"-\"),\"\")","v":""}]
[{"$f":"A235+1","v":226},"X","-","Identificare tronsoane pe conducta 10\" Doba - Slatina, ce pot conține lichide",128221,"Doba","Olt",437264.916459709,332895.32384631899,437264.916459709,332895.32384631899,"-","-","-","-","PM0057","Slatina \n(Doba gr. 23)","-","-","PM-PP001","Alpha Metal, Nova Power, Cez Vânzare, Complexul Energetic Hunedoara, Engie România, E-on Energie, Electrocentrale București, E.on Gaz Furnizare, C-Gaz & Energy, Met România, Ottogaz, Premier Energy, Romgaz, Tinmar","Romgaz","-","2018-03-06","23:00:00","2018-03-07","14:00:00","Craiova","Efectuată",null,"2018-03-07","07:00:00","2018-03-07","12:00:00","2018-03-06","15:30:00","2018-03-06","11:06:00","635/06.03.2018","Nu",null,null,null,"Nu a fost afectat producator/consumator","-","-","Nu a fost afectat producator/consumator","-","-","Nu a fost afectat producator/consumator","-","-",null,null,null,null,"","","","","","","","",""]
[227,"X","-","Remediere defect apărut in NT Jugureanu",44328,"Jugureanu","Brăila",682880.07480542001,382317.18105925998,682880.07480542001,382317.18105925998,"-","-","-","-","-","-","PM0024","Jugureanu-Padina","PM-PP001","Alpha Metal, Nova Power, Cez Vânzare, Complexul Energetic Hunedoara, Engie România, E-on Energie, Electrocentrale Bucuresti, E.on Gaz Furnizare, C-Gaz & Energy, Met România, Ottogaz, Premier Energy, Romgaz, Tinmar, Wiee România, Azomureș, Cis Gaz, Energy Distribution, Enel, Gaz Est, Next Energy, OMV Petrom, Energy Gas, Restart Energy, Saint Gobain","Romgaz, OMV Petrom","-","2018-03-14","10:00:00","2018-03-14","14:00:00","Brăila","Efectuată",null,"2018-03-14","09:30:00","2018-03-14","11:25:00","2018-03-12","11:45:00","2018-03-06","12:32:00","2074/07.03.2018","Da",null,null,null,-188.96666666673264,2,2,-45.75,25,25,1.9166666666278616,0,0,null,null,null,null,"","","","","","","","",""]
[228,"X","-","Eliminare separator de lichide din firul conductei 20\" Deleni - Cuci",116395,"Șeulia de Mureș","Mureș",442750.12157977303,543079.917743242,437888.214937818,550730.81495836703,"-","-","SM0685D0","Șeulia de Mureș","-","-","-","-","SM-SD001","Cis Gaz, E-on Energie, Enel, E.on Gaz Furnizare, Restart Energy","Delgaz Grid","-","2018-03-14","08:00:00","2018-03-14","15:00:00","Cluj","Efectuată",null,"2018-03-14","08:18:00","2018-03-14","15:18:00","2018-03-13","12:19:00","2018-03-07","15:00:00","3084/12.03.2018","Da",null,null,null,-161.29999999998836,1,1,-19.983333333337214,5,5,6.9999999999417923,0,0,null,null,null,null,"","","","","","","","",""]
[229,"-","X","Cuplare conductă racord 6\" SRM Comănești II nou",20821,"Comănești","Bacău",613079.43000000005,546959.34,613298.43999999994,546937.11,"-","-","SM1156D0","Comănești II","-","-","-","-","SM-SD001","Cez Vânzare, Cis Gaz, Engie România, E-on Energie, Enel, E.on Gaz Furnizare, Premier Energy, OMV Petrom, Restart Energy, Tinmar","Delgaz Grid","-","2018-03-16","09:00:00","2018-03-16","13:00:00","Bacău","Efectuată",null,"2018-03-16","09:00:00","2018-03-16","13:00:00","2018-03-14","12:55:00","2018-03-08","11:26:00","1461/13.03.2018","Da","In FM nu era specificat ca era lucrare programata conform pozitiei 94",null,null,"","","","","","","","","",null,null,null,null,6,1,1,2,0,10,0,11,11]
[230,"X","-","Remediere defect apărut pe conducta 10\" Nadeș - Sighișoara",114514,"Hetiur","Mureș",483697.720819104,527946.783244133,482308.93283686199,529508.17223863897,"-","-","SM0834D0","Hetiur","-","-","-","-","SM-SD001","E-on Energie, E.on Gaz Furnizare, Restart Energy","Delgaz Grid","-","2018-03-14","17:06:00","2018-03-15","09:00:00","Brașov","Efectuată",null,"2018-03-14","14:06:00","2018-03-15","09:00:00",null,null,"2018-03-14","16:59:00","1174/15.03.2018","Da","Raport stare SNT a ajuns la BET in 14.03.2018, ora 18:59",null,null,2.8833333333022892,1,1,"Neinformat",0,3,18.899999999965075,0,0,null,null,null,null,"","","","","","","","",""]
[231,"X","-","Înlocuire robinet blocat în SRM SC Donalam Călărași",92569,"Călărași","Călărași",684827.24612657796,306820.36335027101,684827.24612657796,306820.36335027101,"-","-","SM1121D0","SC Donalam Călărași","-","-","-","-","SM-CF001","RWE Supply","Donalam","-","2018-03-19","09:30:00","2018-03-19","12:30:00","Brăila","Efectuată",null,"2018-03-19","10:33:00","2018-03-19","11:48:00","2018-03-19","12:23:00","2018-03-16","14:56:00","2452/19.03.2018","Da",null,null,null,-67.616666666697711,1,1,1.8333333333721384,1,1,1.2500000000582077,0,0,null,null,null,null,"","","","","","","","",""]
[232,"X","-","Scoaterea din funcțiune SRM Eurovia Bragadiru - la solicitarea Engie",179221,"Bragadiru","Ilfov",579794.431484528,320163.34545735503,579794.431484528,320163.34545735503,"-","-","SM0940D0","SC Eurovia Bragadiru","-","-","-","-","SM-CF001","Engie Romînia","Eurovia-Construct Internațional","-","2018-03-21","12:15:00","2018-03-22","12:08:00","București","Efectuată",null,"2018-03-21","12:15:00","2018-03-22","12:08:00","2018-03-21","13:03:00","2018-03-21","13:03:00","-","Da",null,null,null,0.79999999998835847,1,1,0.79999999998835847,1,1,23.883333333476912,0,0,null,null,null,null,"","","","","","","","",""]
[233,"X","-","Lucrări de mentenanță în SRM CET Arad Lignit III",9379,"Șofronea","Arad",216852.70969456801,531509.85275263095,216852.70969456801,531509.85275263095,"-","-","SM0360D1","Șofronea","-","-","-","-","SM-SD001","Alpiq Romindustries, E.on Energie, OMV Petrom","Gaz Vest","-","2018-04-03","09:30:00","2018-04-03","14:00:00","Arad","Efectuată",null,"2018-04-03","09:10:00","2018-04-03","10:00:00","2018-03-26","11:06:00","2018-04-03","10:00:00","2305/21.03.2018","Nu",null,null,null,"Nu a fost afectat producator/consumator","-","-","Nu a fost afectat producator/consumator","-","-","Nu a fost afectat producator/consumator","-","-",null,null,null,null,{"$f":"IF(C243=\"X\",IF(AN243=\"\",\"Afectat sau NU?\",IF(AN243=\"DA\",IF(AK243=\"\",\"Neinformat\",NETWORKDAYS(AK243+AL243,AE243+AF243,$BR$3:$BR$13)-1),\"Nu a fost afectat producator/consumator\")),\"\")","v":""},"","",{"$f":"IF(C243=\"X\",IF(AN243=\"\",\"Afectat sau NU?\",IF(AN243=\"DA\",IF(AI243=\"\",\"Neinformat\",NETWORKDAYS(AI243+AJ243,AE243+AF243,$BR$3:$BR$13)-1),\"Nu a fost afectat producator/consumator\")),\"\")","v":""},"","","","",""]
[234,"X","-","Probleme tehnice în instalația tehnologică SRM Modern Calor Botoșani",35731,"Botoșani","Botoșani",621980.13889813703,695921.01504442794,621980.13889813703,695921.01504442794,"-","-","SM0494D2","S.C. Modern Calor Botoșani","-","-","-","-","SM-CF001","Tinmar","Modern Calor","-","2018-03-23","16:03:00","2018-03-23","19:20:00","Bacău","Efectuată",null,"2018-03-23","16:03:00","2018-03-23","19:20:00",null,null,"2018-03-23","16:45:00","-","Da","e-mail de informare de la dispeceri sosit in 23.03.2018 19:02",null,null,0.70000000001164153,1,1,"Neinformat",0,1,3.28333333338378,0,0,null,null,null,null,"","","","","","","","",""]
[235,"X","-","Remediere defect apărut pe conducta 10\" Suceava - Rădăuți, subtraversare râu Suceava, zona Milisăuți",146628,"Rădăuți","Suceava",569839.79310267197,705208.03773337498,569839.79310267197,705208.03773337498,"-","-","SM0498D0","Rădăuți","-","-","-","-","SM-SD001","Alpiq Romindustries, Cez Vânzare, Engie România, E-on Energie, Enel, Gaz Est, Ottogaz, Premier Energy, OMV Petrom, Energy Gas, Tinmar","SC Nord Gaz SRL","-","2018-03-26","13:00:00","2018-03-26","19:00:00","Bacău","Efectuată",null,"2018-03-26","13:00:00","2018-03-26","18:10:00","2018-03-26","14:29:00","2018-03-26","13:24:00","1715/26.03.2018","Da",null,null,null,0.40000000008149073,1,1,1.4833333334536292,11,11,5.1666666667442769,0,0,null,null,null,null,"","","","","","","","",""]
[236,"X","-","Remediere defect apărut pe conducta 10\" Suceava - Rădăuți, subtraversare râu Suceava, zona Milisăuți",146628,"Rădăuți","Suceava",572280.12462628097,706243.26054225198,572280.12462628097,706243.26054225198,"-","-","SM1031D0","SC EGGER Rădăuți","-","-","-","-","SM-CF001","OMV Petrom","SC Egger România SRL","-","2018-03-26","13:00:00","2018-03-26","19:00:00","Bacău","Efectuată",null,"2018-03-26","13:00:00","2018-03-26","18:10:00","2018-03-26","14:29:00","2018-03-26","13:31:00","1715/26.03.2018","Da",null,null,null,0.51666666677920148,1,1,1.4833333334536292,1,1,5.1666666667442769,0,0,null,null,null,null,"","","","","","","","",""]
[237,"X","-","Lucrări de mentenanță pe conducta 16” Ungheni - C.I.C. Tîrgu Mureș",114355,"Cristești","Mureș",460263.04757310101,554878.82784493105,462456.74242455699,556499.35231440805,"-","-","SM0705D0","Cristești MS","-","-","-","-","SM-SD001","Alpiq Romindustries, Cez Vânzare, Cis Gaz, Engie România, E.on Energie, Enel, E.on Gaz Furnizare, Gaz Est, Premier Energy, Energy Gas, Restart Energy","Delgaz Grid","-","2018-03-27","08:00:00","2018-03-27","18:00:00","Mediaș","Efectuată",null,"2018-03-27","08:30:00","2018-03-27","19:40:00","2018-03-27","10:32:00","2018-03-26","14:03:00","2238/26.08.2018","Da",null,null,null,-18.449999999895226,1,1,2.0333333333255723,11,11,11.166666666744277,0,0,null,null,null,null,"","","","","","","","",""]
[238,"X","-","Sistare alimentare cu gaze naturale CET Galați, prin SRM Arcelor Mittal Galați - la solicitarea S.C. Electrocentrale Galați S.A.",75098,"Galați","Galați",731869.41680179595,440777.62345259002,731869.41680179595,440777.62345259002,"-","-","SM0525D2","CET Galați","-","-","-","-","SM-CF001","Romgaz","S.C. Electrocentrale Galați S.A.","-","2018-03-30","09:00:00",null,null,"Brăila","Efectuată (Reluarea alimentării se va face conform unei noi solicitări) ",null,"2018-03-30","08:59:00",null,null,"2018-03-28","11:19:00","2018-03-28","14:42:00","2760/27.03.2018","Da",null,null,null,-42.283333333209157,1,1,-45.666666666569654,1,1,-1036544.9833333333,0,0,null,null,null,null,"","","","","","","","",""]
[239,"X","-","Scoaterea din funcțiune SRM Mohu - la solicitarea Delgaz Grid",143557,"Mohu","Sibiu",429626.81669816101,509184.37396718102,429626.81669816101,509184.37396718102,"-","-","SM0746D0","Mohu","-","-","-","-","SM-SD001","E.on Energie, E.on Gaz Furnizare, Restart Energy","Delgaz Grid","-","2018-03-29","08:00:00","2018-03-29","16:00:00","Mediaș","Efectuată",null,"2018-03-29","08:45:00","2018-03-29","16:00:00","2018-03-29","10:59:00","2018-03-22","15:44:00","2338/28.03.2018","Da",null,null,null,-161.0166666667792,1,1,2.2333333332790062,3,3,7.2499999998835847,0,0,null,null,null,null,"","","","","","","","",""]
[240,"X","-","Remediere defect de coroziune apărut la robinetul 93 de pe conducta 12\"-14\" Sărmășel - Satu Mare",106407,"Săsar","Maramureș",388964.11179205298,683820.69504734804,391417.88205374999,682352.61665296496,"-","-","SM0582D0","Săsar I","-","-","-","-","SM-SD001","Engie România, E.on Energie, Enel, Energia Gas & Power, E.on Gaz Furnizare","Delgaz Grid","-","2018-04-12","09:00:00","2018-04-12","15:00:00","Cluj","Efectuată",null,"2018-04-12","09:18:00","2018-04-12","10:45:00","2018-04-12","11:55:00","2018-04-11","11:17:00","4227/05.04.2018","Nu",null,null,null,"Nu a fost afectat producator/consumator","-","-","Nu a fost afectat producator/consumator","-","-","Nu a fost afectat producator/consumator","-","-",null,null,null,null,"","","","","","","","",""]
[241,"X","-","Sistare alimentare cu gaze naturale SRM Viișoara - la solicitarea Delgaz Grid",60062,"Viișoara","Cluj",416850.15331703,562898.11493220006,416850.15331703,562898.11493220006,"-","-","SM0619D0","Viișoara","-","-","-","-","SM-SD001","Cis Gaz, Distrigaz Vest, Engie, E.on Energie, Gaz Est, E.on Gaz Furnizare","Delgaz Grid","-","2018-04-19","08:30:00","2018-04-19","16:00:00","Cluj",null,null,null,null,null,null,"2018-04-18","12:55:00","2018-04-17","08:33:00","-",null,null,null,null,"Afectat sau NU?","-","-","Afectat sau NU?","-","-","Afectat sau NU?","-","-",null,null,null,null,"","","","","","","","",""]
[242,null,null,null,null,null,null,null,null,null,null,null,null,null,null,null,null,null,null,null,null,null,null,null,null,null,null,null,null,null,null,null,null,null,null,null,null,null,null,null,null,null,null,"","","","","","","","","",null,null,null,null,"","","","","","","","",""]
[243,null,null,null,null,null,null,null,null,null,null,null,null,null,null,null,null,null,null,null,null,null,null,null,null,null,null,null,null,null,null,null,null,null,null,null,null,null,null,null,null,null,null,"","","","","","","","","",null,null,null,null,"","","","","","","","",""]
[244,null,null,null,null,null,null,null,null,null,null,null,null,null,null,null,null,null,null,null,null,null,null,null,null,null,null,null,null,null,null,null,null,null,null,null,null,null,null,null,null,null,null,"","","","","","","","","",null,null,null,null,"","","","","","","","",""]
[245,null,null,null,null,null,null,null,null,null,null,null,null,null,null,null,null,null,null,null,null,null,null,null,null,null,null,null,null,null,null,null,null,null,null,null,null,null,null,null,null,null,null,"","","","","","","","","",null,null,null,null,"","","","","","","","",""]
[246,null,null,null,null,null,null,null,null,null,null,null,null,null,null,null,null,null,null,null,null,null,null,null,null,null,null,null,null,null,null,null,null,null,null,null,null,null,null,null,null,null,null,"","","","","","","","","",null,null,null,null,"","","","","","","","",""]
[247,null,null,null,null,null,null,null,null,null,null,null,null,null,null,null,null,null,null,null,null,null,null,null,null,null,null,null,null,null,null,null,null,null,null,null,null,null,null,null,null,null,null,"","","","","","","","","",null,null,null,null,"","","","","","","","",""]
[248,null,null,null,null,null,null,null,null,null,null,null,null,null,null,null,null,null,null,null,null,null,null,null,null,null,null,null,null,null,null,null,null,null,null,null,null,null,null,null,null,null,null,"","","","","","","","","",null,null,null,null,"","","","","","","","",""]